Organisation name,Organisation Code,Effective date,Directorate / service where expenditure incurred,Service Category label,Service category URI,Supplier (Beneficiary) name,Local supplier (beneficiary) internal reference,Supplier,Supplier registered charity number,VCSE grant,Payment date - G/L Date,Transaction number,Net Amount,Irrecoverable VAT,purpose_of_spend,Procurement classification / merchant category: Council�s procurement category name,Procurement classification / merchant category: CPV label,Procurement classification / merchant category: CPV code,Procurement classification / merchant category: Proclass label,Procurement classification / merchant category: Proclass code,card_transaction
The Royal Borough of Kensington and Chelsea,RBKC,,Director Integrated Commissioning,Head of Service Commissioning ASC,,Medequip Assistive Technology Ltd ,1234994,,,,19/01/2023,2200295653,"114,101.21",,Hired and Contracted Services,,,,,,No
The Royal Borough of Kensington and Chelsea,RBKC,,Director Integrated Commissioning,Head of Service Commissioning ASC,,Medequip Assistive Technology Ltd ,1234994,,,,21/02/2023,2200302718,"158,233.39",,Hired and Contracted Services,,,,,,No
The Royal Borough of Kensington and Chelsea,RBKC,,Director Integrated Commissioning,Head of Service Commissioning ASC,,Medequip Assistive Technology Ltd ,1234994,,,,23/03/2023,2200309890,"10,174.73",,Hired and Contracted Services,,,,,,No
The Royal Borough of Kensington and Chelsea,RBKC,,Director Integrated Commissioning,Head of Service Commissioning ASC,,Medequip Assistive Technology Ltd ,1234994,,,,23/03/2023,2200309891,"126,521.03",,Hired and Contracted Services,,,,,,No
The Royal Borough of Kensington and Chelsea,RBKC,,Director Integrated Commissioning,Head of Service Commissioning ASC,,Bevan Brittan Llp ,1232737,,,,07/02/2023,2200299566,"6,863.50",,Legal Costs,,,,,,No
The Royal Borough of Kensington and Chelsea,RBKC,,Director Integrated Commissioning,Head of Service Commissioning ASC,,Bevan Brittan Llp ,1232737,,,,07/02/2023,2200299567,867.5,,Legal Costs,,,,,,No
The Royal Borough of Kensington and Chelsea,RBKC,,Director Integrated Commissioning,Head of Service Commissioning ASC,,Bevan Brittan Llp ,1232737,,,,07/02/2023,2200299568,"2,210.50",,Legal Costs,,,,,,No
The Royal Borough of Kensington and Chelsea,RBKC,,Director Integrated Commissioning,Head of Service Commissioning ASC,,Bevan Brittan Llp ,1232737,,,,07/02/2023,2200299569,592.5,,Legal Costs,,,,,,No
The Royal Borough of Kensington and Chelsea,RBKC,,Director Integrated Commissioning,Head of Service Commissioning ASC,,Bevan Brittan Llp ,1232737,,,,07/02/2023,2200299570,965,,Legal Costs,,,,,,No
The Royal Borough of Kensington and Chelsea,RBKC,,Director Integrated Commissioning,Head of Service Commissioning ASC,,Bevan Brittan Llp ,1232737,,,,09/02/2023,2200300139,"5,295.50",,Creditors Control : AP GRIR,,,,,,No
The Royal Borough of Kensington and Chelsea,RBKC,,Director Integrated Commissioning,Head of Service Commissioning ASC,,Bevan Brittan Llp ,1232737,,,,15/02/2023,2200301332,"35,399.22",,Creditors Control : AP GRIR,,,,,,No
The Royal Borough of Kensington and Chelsea,RBKC,,Director Integrated Commissioning,Head of Service Commissioning ASC,,Medequip Assistive Technology Ltd ,1234994,,,,03/02/2023,3110519303,"3,700.00",,Legal Costs,,,,,,No
The Royal Borough of Kensington and Chelsea,RBKC,,Director Adult Social Care,Head of Service Care and Assessment RBKC,,Doro AB,1274450,,,,12/01/2023,2200294283,"6,250.00",,Payments to Voluntary bodies,,,,,,No
The Royal Borough of Kensington and Chelsea,RBKC,,Director Adult Social Care,Head of Service Care and Assessment RBKC,,Doro AB,1274450,,,,24/01/2023,2200296526,628,,Payments to Voluntary bodies,,,,,,No
The Royal Borough of Kensington and Chelsea,RBKC,,Director Adult Social Care,Head of Service Care and Assessment RBKC,,Doro AB,1274450,,,,27/02/2023,2200304247,672,,Payments to Voluntary bodies,,,,,,No
The Royal Borough of Kensington and Chelsea,RBKC,,Director Adult Social Care,Head of Service Care and Assessment RBKC,,Doro AB,1274450,,,,02/03/2023,2200305058,"5,670.00",,Payments to Voluntary bodies,,,,,,No
The Royal Borough of Kensington and Chelsea,RBKC,,Director Adult Social Care,Head of Service Care and Assessment RBKC,,Doro AB,1274450,,,,22/03/2023,2200309510,720,,Payments to Voluntary bodies,,,,,,No
The Royal Borough of Kensington and Chelsea,RBKC,,Director Adult Social Care,Head of Service Care and Assessment RBKC,,Red Alert Ltd ,1231238,,,,05/01/2023,2200292650,"3,087.00",,Payments to Voluntary bodies,,,,,,No
The Royal Borough of Kensington and Chelsea,RBKC,,Director Adult Social Care,Head of Service Care and Assessment RBKC,,Red Alert Ltd ,1231238,,,,15/02/2023,2200301347,"2,940.00",,Payments to Voluntary bodies,,,,,,No
The Royal Borough of Kensington and Chelsea,RBKC,,Director Adult Social Care,Head of Service Care and Assessment RBKC,,Red Alert Ltd ,1231238,,,,14/03/2023,2200307540,"2,782.50",,Payments to Voluntary bodies,,,,,,No
The Royal Borough of Kensington and Chelsea,RBKC,,Director Adult Social Care,Head of Service Care and Assessment RBKC,,Tunstall Healthcare (UK) Ltd (Use 3012996),1235586,,,,06/01/2023,2200292842,"1,900.00",,Payments to Voluntary bodies,,,,,,No
The Royal Borough of Kensington and Chelsea,RBKC,,Director Adult Social Care,Head of Service Care and Assessment RBKC,,Tunstall Healthcare (UK) Ltd (Use 3012996),1235586,,,,10/01/2023,2200293598,"1,948.50",,Payments to Voluntary bodies,,,,,,No
The Royal Borough of Kensington and Chelsea,RBKC,,Director Adult Social Care,Head of Service Care and Assessment RBKC,,Tunstall Healthcare (UK) Ltd (Use 3012996),1235586,,,,18/01/2023,2200295316,690,,Payments to Voluntary bodies,,,,,,No
The Royal Borough of Kensington and Chelsea,RBKC,,Director Adult Social Care,Head of Service Care and Assessment RBKC,,Tunstall Healthcare (UK) Ltd (Use 3012996),1235586,,,,03/02/2023,2200298957,"4,950.20",,Payments to Voluntary bodies,,,,,,No
The Royal Borough of Kensington and Chelsea,RBKC,,Director Adult Social Care,Head of Service Care and Assessment RBKC,,Tunstall Healthcare (UK) Ltd (Use 3012996),1235586,,,,14/02/2023,2200301233,"2,073.00",,Payments to Voluntary bodies,,,,,,No
The Royal Borough of Kensington and Chelsea,RBKC,,Director Adult Social Care,Head of Service Care and Assessment RBKC,,Tunstall Healthcare (UK) Ltd (Use 3012996),1235586,,,,03/03/2023,2200305243,"4,243.00",,Payments to Voluntary bodies,,,,,,No
The Royal Borough of Kensington and Chelsea,RBKC,,Director Adult Social Care,Head of Service Care and Assessment RBKC,,Tunstall Healthcare (UK) Ltd (Use 3012996),1235586,,,,03/03/2023,2200305352,"1,873.50",,Payments to Voluntary bodies,,,,,,No
The Royal Borough of Kensington and Chelsea,RBKC,,Director Adult Social Care,Head of Service Care and Assessment RBKC,,Tunstall Healthcare (UK) Ltd (Use 3012996),1235586,,,,27/03/2023,2200310467,525,,Payments to Voluntary bodies,,,,,,No
The Royal Borough of Kensington and Chelsea,RBKC,,Planning and Place,Support and Systems,,T/A Adrianas Cafe & Ea,1295355,,,,09/01/2023,2200293292,"4,332.51",,Catering,,,,,,No
The Royal Borough of Kensington and Chelsea,RBKC,,Planning and Place,Support and Systems,,BRG Interim Solutions Limited,1301334,,,,16/03/2023,2200308137,"19,800.00",,Professional Fees,,,,,,No
The Royal Borough of Kensington and Chelsea,RBKC,,Planning and Place,Support and Systems,,BRG Interim Solutions Limited,1301334,,,,22/03/2023,2200309658,"3,000.00",,Professional Fees,,,,,,No
The Royal Borough of Kensington and Chelsea,RBKC,,Planning and Place,Support and Systems,,"BSI Assurance UK Ltd (Membership, Subscriptions and Standards)",1232995,,,,21/03/2023,2200309084,"1,471.00",,Subscriptions,,,,,,No
The Royal Borough of Kensington and Chelsea,RBKC,,Planning and Place,Support and Systems,,Chartered Association ,1252686,,,,04/01/2023,2200292213,"1,250.00",,Subscriptions,,,,,,No
The Royal Borough of Kensington and Chelsea,RBKC,,Planning and Place,Support and Systems,,Ihs Global Ltd ,1234760,,,,31/03/2023,2200312382,"9,756.99",,Subscriptions,,,,,,No
The Royal Borough of Kensington and Chelsea,RBKC,,Planning and Place,Support and Systems,,LABC ,1234875,,,,16/01/2023,2200294723,"4,560.00",,Fees,,,,,,No
The Royal Borough of Kensington and Chelsea,RBKC,,Planning and Place,Support and Systems,,LABC ,1234875,,,,17/03/2023,2200308587,"4,343.08",,Subscriptions,,,,,,No
The Royal Borough of Kensington and Chelsea,RBKC,,"Cleaner, Greener and Cultural Services",Leisure and Parks,,C J Jordan & Son Ltd ,1233031,,,,12/01/2023,2200294375,"2,925.40",,Creditors Control : AP GRIR,,,,,,No
The Royal Borough of Kensington and Chelsea,RBKC,,"Cleaner, Greener and Cultural Services",Leisure and Parks,,C J Jordan & Son Ltd ,1233031,,,,24/01/2023,2200296586,595.6,,Creditors Control : AP GRIR,,,,,,No
The Royal Borough of Kensington and Chelsea,RBKC,,"Cleaner, Greener and Cultural Services",Leisure and Parks,,C J Jordan & Son Ltd ,1233031,,,,24/01/2023,2200296636,690.75,,Creditors Control : AP GRIR,,,,,,No
The Royal Borough of Kensington and Chelsea,RBKC,,"Cleaner, Greener and Cultural Services",Leisure and Parks,,C J Jordan & Son Ltd ,1233031,,,,24/01/2023,2200296671,"1,491.90",,Creditors Control : AP GRIR,,,,,,No
The Royal Borough of Kensington and Chelsea,RBKC,,"Cleaner, Greener and Cultural Services",Leisure and Parks,,C J Jordan & Son Ltd ,1233031,,,,03/02/2023,2200298789,"1,792.60",,Creditors Control : AP GRIR,,,,,,No
The Royal Borough of Kensington and Chelsea,RBKC,,"Cleaner, Greener and Cultural Services",Leisure and Parks,,C J Jordan & Son Ltd ,1233031,,,,17/02/2023,2200302031,"1,301.60",,Creditors Control : AP GRIR,,,,,,No
The Royal Borough of Kensington and Chelsea,RBKC,,"Cleaner, Greener and Cultural Services",Leisure and Parks,,C J Jordan & Son Ltd ,1233031,,,,17/02/2023,2200302032,"1,248.64",,Creditors Control : AP GRIR,,,,,,No
The Royal Borough of Kensington and Chelsea,RBKC,,"Cleaner, Greener and Cultural Services",Leisure and Parks,,C J Jordan & Son Ltd ,1233031,,,,17/02/2023,2200302042,761.2,,Creditors Control : AP GRIR,,,,,,No
The Royal Borough of Kensington and Chelsea,RBKC,,"Cleaner, Greener and Cultural Services",Leisure and Parks,,C J Jordan & Son Ltd ,1233031,,,,17/02/2023,2200302043,"1,590.30",,Creditors Control : AP GRIR,,,,,,No
The Royal Borough of Kensington and Chelsea,RBKC,,"Cleaner, Greener and Cultural Services",Leisure and Parks,,C J Jordan & Son Ltd ,1233031,,,,17/02/2023,2200302044,"1,700.00",,Creditors Control : AP GRIR,,,,,,No
The Royal Borough of Kensington and Chelsea,RBKC,,"Cleaner, Greener and Cultural Services",Leisure and Parks,,C J Jordan & Son Ltd ,1233031,,,,20/02/2023,2200302446,"1,921.90",,Creditors Control : AP GRIR,,,,,,No
The Royal Borough of Kensington and Chelsea,RBKC,,"Cleaner, Greener and Cultural Services",Leisure and Parks,,C J Jordan & Son Ltd ,1233031,,,,21/03/2023,2200309286,"1,071.35",,Creditors Control : AP GRIR,,,,,,No
The Royal Borough of Kensington and Chelsea,RBKC,,"Cleaner, Greener and Cultural Services",Leisure and Parks,,C J Jordan & Son Ltd ,1233031,,,,22/03/2023,2200309538,"1,952.40",,Creditors Control : AP GRIR,,,,,,No
The Royal Borough of Kensington and Chelsea,RBKC,,"Cleaner, Greener and Cultural Services",Leisure and Parks,,C J Jordan & Son Ltd ,1233031,,,,22/03/2023,2200309540,"1,381.50",,Creditors Control : AP GRIR,,,,,,No
The Royal Borough of Kensington and Chelsea,RBKC,,"Cleaner, Greener and Cultural Services",Leisure and Parks,,C J Jordan & Son Ltd ,1233031,,,,23/03/2023,2200309862,"3,493.70",,Creditors Control : AP GRIR,,,,,,No
The Royal Borough of Kensington and Chelsea,RBKC,,"Cleaner, Greener and Cultural Services",Leisure and Parks,,C J Jordan & Son Ltd ,1233031,,,,24/03/2023,2200310273,761.2,,Creditors Control : AP GRIR,,,,,,No
The Royal Borough of Kensington and Chelsea,RBKC,,"Cleaner, Greener and Cultural Services",Leisure and Parks,,redact details,D000000023,,,,30/01/2023,3110516598,"4,132.50",,Income: General Fees and Charges,,,,,,No
The Royal Borough of Kensington and Chelsea,RBKC,,"Cleaner, Greener and Cultural Services",Leisure and Parks,,redact details,D000000023,,,,13/02/2023,3110520304,"1,563.00",,Income: General Fees and Charges,,,,,,No
The Royal Borough of Kensington and Chelsea,RBKC,,"Cleaner, Greener and Cultural Services",Leisure and Parks,,Redact Details,1234806,,,,23/02/2023,2200303432,"1,337.00",,Creditors Control : AP GRIR,,,,,,No
The Royal Borough of Kensington and Chelsea,RBKC,,"Cleaner, Greener and Cultural Services",Leisure and Parks,,T/A Idverde ,1231423,,,,06/01/2023,2200292756,"41,331.99",,Creditors Control : AP GRIR,,,,,,No
The Royal Borough of Kensington and Chelsea,RBKC,,"Cleaner, Greener and Cultural Services",Leisure and Parks,,T/A Idverde ,1231423,,,,30/01/2023,2200297595,"41,331.99",,Creditors Control : AP GRIR,,,,,,No
The Royal Borough of Kensington and Chelsea,RBKC,,"Cleaner, Greener and Cultural Services",Leisure and Parks,,T/A Idverde ,1231423,,,,14/02/2023,2200300968,"42,506.33",,Creditors Control : AP GRIR,,,,,,No
The Royal Borough of Kensington and Chelsea,RBKC,,"Cleaner, Greener and Cultural Services",Leisure and Parks,,T/A Idverde ,1231423,,,,28/02/2023,2200304349,"44,339.77",,Creditors Control : AP GRIR,,,,,,No
The Royal Borough of Kensington and Chelsea,RBKC,,"Cleaner, Greener and Cultural Services",Leisure and Parks,,Redact Details,1231428,,,,09/01/2023,2200293437,"1,747.50",,Creditors Control : AP GRIR,,,,,,No
The Royal Borough of Kensington and Chelsea,RBKC,,Communities,Community Safety,,City Of Westminster ,1231771,,,,28/02/2023,2200304368,"73,612.50",,Hired and Contracted Services,,,,,,No
The Royal Borough of Kensington and Chelsea,RBKC,,Communities,Community Safety,,City Of Westminster ,1231771,,,,22/03/2023,2200309582,"122,821.50",,Hired and Contracted Services,,,,,,No
The Royal Borough of Kensington and Chelsea,RBKC,,Statutory Year-End Adjustments,Statutory Year-End Adjustments,,24 Seven Companies Ltd,1260952,,,,14/02/2023,2200301073,"1,000.00",,Payments to main contractor,,,,,,No
The Royal Borough of Kensington and Chelsea,RBKC,,Statutory Year-End Adjustments,Statutory Year-End Adjustments,,24 Seven Companies Ltd,1260952,,,,14/02/2023,2200301077,"1,000.00",,Payments to main contractor,,,,,,No
The Royal Borough of Kensington and Chelsea,RBKC,,Statutory Year-End Adjustments,Statutory Year-End Adjustments,,24 Seven Companies Ltd,1260952,,,,15/03/2023,2200307950,"1,000.00",,Payments to main contractor,,,,,,No
The Royal Borough of Kensington and Chelsea,RBKC,,Statutory Year-End Adjustments,Statutory Year-End Adjustments,,24 Seven Companies Ltd,1260952,,,,15/03/2023,2200307951,"1,000.00",,Payments to main contractor,,,,,,No
The Royal Borough of Kensington and Chelsea,RBKC,,Statutory Year-End Adjustments,Statutory Year-End Adjustments,,24 Seven Companies Ltd,1260952,,,,15/03/2023,2200307952,"1,000.00",,Payments to main contractor,,,,,,No
The Royal Borough of Kensington and Chelsea,RBKC,,Statutory Year-End Adjustments,Statutory Year-End Adjustments,,24 Seven Companies Ltd,1260952,,,,15/03/2023,2200307953,"1,000.00",,Payments to main contractor,,,,,,No
The Royal Borough of Kensington and Chelsea,RBKC,,Statutory Year-End Adjustments,Statutory Year-End Adjustments,,3Bm Ltd,1232075,,,,06/01/2023,2200292901,"1,782.00",,Payments to main contractor,,,,,,No
The Royal Borough of Kensington and Chelsea,RBKC,,Statutory Year-End Adjustments,Statutory Year-End Adjustments,,3Bm Ltd,1232075,,,,06/01/2023,2200292902,"2,304.50",,Payments to main contractor,,,,,,No
The Royal Borough of Kensington and Chelsea,RBKC,,Statutory Year-End Adjustments,Statutory Year-End Adjustments,,3Bm Ltd,1232075,,,,06/01/2023,2200292903,"1,958.83",,Payments to main contractor,,,,,,No
The Royal Borough of Kensington and Chelsea,RBKC,,Statutory Year-End Adjustments,Statutory Year-End Adjustments,,3Bm Ltd,1232075,,,,06/01/2023,2200292907,"7,080.12",,Payments to main contractor,,,,,,No
The Royal Borough of Kensington and Chelsea,RBKC,,Statutory Year-End Adjustments,Statutory Year-End Adjustments,,3Bm Ltd,1232075,,,,06/01/2023,2200292910,"7,080.12",,Payments to main contractor,,,,,,No
The Royal Borough of Kensington and Chelsea,RBKC,,Statutory Year-End Adjustments,Statutory Year-End Adjustments,,3Bm Ltd,1232075,,,,06/01/2023,2200292911,"7,080.12",,Payments to main contractor,,,,,,No
The Royal Borough of Kensington and Chelsea,RBKC,,Statutory Year-End Adjustments,Statutory Year-End Adjustments,,3Bm Ltd,1232075,,,,06/01/2023,2200292912,"7,080.12",,Payments to main contractor,,,,,,No
The Royal Borough of Kensington and Chelsea,RBKC,,Statutory Year-End Adjustments,Statutory Year-End Adjustments,,3Bm Ltd,1232075,,,,06/01/2023,2200292913,"5,720.00",,Payments to main contractor,,,,,,No
The Royal Borough of Kensington and Chelsea,RBKC,,Statutory Year-End Adjustments,Statutory Year-End Adjustments,,3Bm Ltd,1232075,,,,06/01/2023,2200292917,"1,958.83",,Payments to main contractor,,,,,,No
The Royal Borough of Kensington and Chelsea,RBKC,,Statutory Year-End Adjustments,Statutory Year-End Adjustments,,3Bm Ltd,1232075,,,,09/01/2023,2200293523,"14,000.00",,Architects,,,,,,No
The Royal Borough of Kensington and Chelsea,RBKC,,Statutory Year-End Adjustments,Statutory Year-End Adjustments,,3Bm Ltd,1232075,,,,17/01/2023,2200295026,"2,250.00",,Payments to main contractor,,,,,,No
The Royal Borough of Kensington and Chelsea,RBKC,,Statutory Year-End Adjustments,Statutory Year-End Adjustments,,3Bm Ltd,1232075,,,,23/01/2023,2200296225,"6,545.00",,Payments to main contractor,,,,,,No
The Royal Borough of Kensington and Chelsea,RBKC,,Statutory Year-End Adjustments,Statutory Year-End Adjustments,,3Bm Ltd,1232075,,,,23/01/2023,2200296228,"3,994.85",,Payments to main contractor,,,,,,No
The Royal Borough of Kensington and Chelsea,RBKC,,Statutory Year-End Adjustments,Statutory Year-End Adjustments,,3Bm Ltd,1232075,,,,08/02/2023,2200300014,900,,Surveyors,,,,,,No
The Royal Borough of Kensington and Chelsea,RBKC,,Statutory Year-End Adjustments,Statutory Year-End Adjustments,,3Bm Ltd,1232075,,,,16/02/2023,2200301681,"2,250.00",,Payments to main contractor,,,,,,No
The Royal Borough of Kensington and Chelsea,RBKC,,Statutory Year-End Adjustments,Statutory Year-End Adjustments,,4i Solutions Ltd,1232084,,,,04/01/2023,2200292383,"9,456.09",,Payments to main contractor,,,,,,No
The Royal Borough of Kensington and Chelsea,RBKC,,Statutory Year-End Adjustments,Statutory Year-End Adjustments,,4i Solutions Ltd,1232084,,,,25/01/2023,2200296907,813.41,,Other Consultants,,,,,,No
The Royal Borough of Kensington and Chelsea,RBKC,,Statutory Year-End Adjustments,Statutory Year-End Adjustments,,4i Solutions Ltd,1232084,,,,27/01/2023,2200297306,"12,038.79",,Payments to main contractor,,,,,,No
The Royal Borough of Kensington and Chelsea,RBKC,,Statutory Year-End Adjustments,Statutory Year-End Adjustments,,4i Solutions Ltd,1232084,,,,24/02/2023,2200303826,"21,913.31",,Payments to main contractor,,,,,,No
The Royal Borough of Kensington and Chelsea,RBKC,,Statutory Year-End Adjustments,Statutory Year-End Adjustments,,4i Solutions Ltd,1232084,,,,20/03/2023,2200308792,"18,983.32",,Payments to main contractor,,,,,,No
The Royal Borough of Kensington and Chelsea,RBKC,,Statutory Year-End Adjustments,Statutory Year-End Adjustments,,4i Solutions Ltd,1232084,,,,24/03/2023,2200310126,"21,913.31",,Payments to main contractor,,,,,,No
The Royal Borough of Kensington and Chelsea,RBKC,,Statutory Year-End Adjustments,Statutory Year-End Adjustments,,A J Oakes And Partners,1232092,,,,28/03/2023,2200311029,"7,600.00",,Payments to main contractor,,,,,,No
The Royal Borough of Kensington and Chelsea,RBKC,,Statutory Year-End Adjustments,Statutory Year-End Adjustments,,A N Contract Service Ltd,1232095,,,,18/01/2023,2200295339,"71,250.00",,Planned Maintenance (CM),,,,,,No
The Royal Borough of Kensington and Chelsea,RBKC,,Statutory Year-End Adjustments,Statutory Year-End Adjustments,,A N Contract Service Ltd,1232095,,,,18/01/2023,2200295342,"1,975.00",,Planned Maintenance (CM),,,,,,No
The Royal Borough of Kensington and Chelsea,RBKC,,Statutory Year-End Adjustments,Statutory Year-End Adjustments,,A N Contract Service Ltd,1232095,,,,07/02/2023,2200299555,"25,082.00",,Creditors Control : AP GRIR,,,,,,No
The Royal Borough of Kensington and Chelsea,RBKC,,Statutory Year-End Adjustments,Statutory Year-End Adjustments,,A N Contract Service Ltd,1232095,,,,07/02/2023,2200299594,"16,007.14",,Creditors Control : AP GRIR,,,,,,No
The Royal Borough of Kensington and Chelsea,RBKC,,Statutory Year-End Adjustments,Statutory Year-End Adjustments,,A N Contract Service Ltd,1232095,,,,09/02/2023,2200300086,"44,715.28",,Creditors Control : AP GRIR,,,,,,No
The Royal Borough of Kensington and Chelsea,RBKC,,Statutory Year-End Adjustments,Statutory Year-End Adjustments,,A N Contract Service Ltd,1232095,,,,24/02/2023,2200303777,"1,607.00",,Planned Maintenance (CM),,,,,,No
The Royal Borough of Kensington and Chelsea,RBKC,,Statutory Year-End Adjustments,Statutory Year-End Adjustments,,A N Contract Service Ltd,1232095,,,,27/02/2023,2200303970,"6,469.00",,Major Roof Repairs : CM,,,,,,No
The Royal Borough of Kensington and Chelsea,RBKC,,Statutory Year-End Adjustments,Statutory Year-End Adjustments,,A N Contract Service Ltd,1232095,,,,07/03/2023,2200306077,"2,633.50",,Creditors Control : AP GRIR,,,,,,No
The Royal Borough of Kensington and Chelsea,RBKC,,Statutory Year-End Adjustments,Statutory Year-End Adjustments,,A N Contract Service Ltd,1232095,,,,16/03/2023,2200308209,"1,764.00",,Planned Maintenance (CM),,,,,,No
The Royal Borough of Kensington and Chelsea,RBKC,,Statutory Year-End Adjustments,Statutory Year-End Adjustments,,A N Contract Service Ltd,1232095,,,,23/03/2023,2200309782,"5,495.70",,Planned Maintenance (CM),,,,,,No
The Royal Borough of Kensington and Chelsea,RBKC,,Statutory Year-End Adjustments,Statutory Year-End Adjustments,,A N Contract Service Ltd,1232095,,,,27/03/2023,2200310614,662.24,,Creditors Control : AP GRIR,,,,,,No
The Royal Borough of Kensington and Chelsea,RBKC,,Statutory Year-End Adjustments,Statutory Year-End Adjustments,,A N Contract Service Ltd,1232095,,,,28/03/2023,2200311061,880,,Planned Maintenance (CM),,,,,,No
The Royal Borough of Kensington and Chelsea,RBKC,,Statutory Year-End Adjustments,Statutory Year-End Adjustments,,A N Contract Service Ltd,1232095,,,,30/03/2023,2200311781,"9,375.00",,Planned Maintenance (CM),,,,,,No
The Royal Borough of Kensington and Chelsea,RBKC,,Statutory Year-End Adjustments,Statutory Year-End Adjustments,,A1 Loo Hire ,1232098,,,,03/03/2023,2200305420,"4,020.00",,Professional Fees : Non Legal,,,,,,No
The Royal Borough of Kensington and Chelsea,RBKC,,Statutory Year-End Adjustments,Statutory Year-End Adjustments,,ACS PROFESSIONALS IN CONSTRUCTION LTD,1277658,,,,17/01/2023,2200294951,"466,092.19",,Payments to main contractor,,,,,,No
The Royal Borough of Kensington and Chelsea,RBKC,,Statutory Year-End Adjustments,Statutory Year-End Adjustments,,ACS PROFESSIONALS IN CONSTRUCTION LTD,1277658,,,,07/02/2023,2200299377,"424,237.83",,Payments to main contractor,,,,,,No
The Royal Borough of Kensington and Chelsea,RBKC,,Statutory Year-End Adjustments,Statutory Year-End Adjustments,,ACS PROFESSIONALS IN CONSTRUCTION LTD,1277658,,,,09/03/2023,2200306674,"513,967.17",,Payments to main contractor,,,,,,No
The Royal Borough of Kensington and Chelsea,RBKC,,Statutory Year-End Adjustments,Statutory Year-End Adjustments,,Akdesign Consultants Ltd,1263929,,,,27/02/2023,2200303918,570,,Professional Fees : Non Legal,,,,,,No
The Royal Borough of Kensington and Chelsea,RBKC,,Statutory Year-End Adjustments,Statutory Year-End Adjustments,,Akdesign Consultants Ltd,1263929,,,,10/03/2023,2200306840,"1,000.00",,Professional Fees : Non Legal,,,,,,No
The Royal Borough of Kensington and Chelsea,RBKC,,Statutory Year-End Adjustments,Statutory Year-End Adjustments,,Akdesign Consultants Ltd,1263929,,,,17/03/2023,2200308591,"1,285.00",,Professional Fees : Non Legal,,,,,,No
The Royal Borough of Kensington and Chelsea,RBKC,,Statutory Year-End Adjustments,Statutory Year-End Adjustments,,Ans Group Ltd,1265384,,,,24/01/2023,2200296557,"6,300.00",,Computer Equipment,,,,,,No
The Royal Borough of Kensington and Chelsea,RBKC,,Statutory Year-End Adjustments,Statutory Year-End Adjustments,,AO Business,1232416,,,,24/01/2023,2200296750,"1,995.85",,Special Maintenance,,,,,,No
The Royal Borough of Kensington and Chelsea,RBKC,,Statutory Year-End Adjustments,Statutory Year-End Adjustments,,AO Business,1232416,,,,02/02/2023,2200298679,"8,956.01",,Special Maintenance,,,,,,No
The Royal Borough of Kensington and Chelsea,RBKC,,Statutory Year-End Adjustments,Statutory Year-End Adjustments,,AO Business,1232416,,,,14/02/2023,2200301134,"1,255.65",,Special Maintenance,,,,,,No
The Royal Borough of Kensington and Chelsea,RBKC,,Statutory Year-End Adjustments,Statutory Year-End Adjustments,,AO Business,1232416,,,,18/03/2023,2200308681,"7,370.83",,Special Maintenance,,,,,,No
The Royal Borough of Kensington and Chelsea,RBKC,,Statutory Year-End Adjustments,Statutory Year-End Adjustments,,AO Business,1232416,,,,28/03/2023,2200311067,"2,495.83",,Special Maintenance,,,,,,No
The Royal Borough of Kensington and Chelsea,RBKC,,Statutory Year-End Adjustments,Statutory Year-End Adjustments,,AO Business,1232416,,,,28/03/2023,2200311130,615.83,,Special Maintenance,,,,,,No
The Royal Borough of Kensington and Chelsea,RBKC,,Statutory Year-End Adjustments,Statutory Year-End Adjustments,,AO Business,1232416,,,,28/03/2023,2200311131,"4,004.17",,Special Maintenance,,,,,,No
The Royal Borough of Kensington and Chelsea,RBKC,,Statutory Year-End Adjustments,Statutory Year-End Adjustments,,AVVIQ Consulting Limited,1285113,,,,09/01/2023,2200293476,850,,Professional Fees : Non Legal,,,,,,No
The Royal Borough of Kensington and Chelsea,RBKC,,Statutory Year-End Adjustments,Statutory Year-End Adjustments,,Abbey Builders Ltd ,1232102,,,,01/03/2023,2200304771,"10,025.68",,Payments to main contractor,,,,,,No
The Royal Borough of Kensington and Chelsea,RBKC,,Statutory Year-End Adjustments,Statutory Year-End Adjustments,,Abbey Builders Ltd ,1232102,,,,06/03/2023,2200305561,"8,354.33",,Payments to main contractor,,,,,,No
The Royal Borough of Kensington and Chelsea,RBKC,,Statutory Year-End Adjustments,Statutory Year-End Adjustments,,Abbey Builders Ltd ,1232102,,,,31/03/2023,2200311992,"11,193.22",,Payments to main contractor,,,,,,No
The Royal Borough of Kensington and Chelsea,RBKC,,Statutory Year-End Adjustments,Statutory Year-End Adjustments,,Academy Consulting Solutions Ltd ,1232117,,,,20/01/2023,2200295979,"7,500.00",,Site Works,,,,,,No
The Royal Borough of Kensington and Chelsea,RBKC,,Statutory Year-End Adjustments,Statutory Year-End Adjustments,,Academy Consulting Solutions Ltd ,1232117,,,,03/03/2023,2200305390,"10,000.00",,Site Works,,,,,,No
The Royal Borough of Kensington and Chelsea,RBKC,,Statutory Year-End Adjustments,Statutory Year-End Adjustments,,Adam Architecture Ltd ,1232322,,,,06/02/2023,2200299180,920,,Construction : enhancements,,,,,,No
The Royal Borough of Kensington and Chelsea,RBKC,,Statutory Year-End Adjustments,Statutory Year-End Adjustments,,Adam Architecture Ltd ,1232322,,,,03/03/2023,2200305227,968.8,,Construction : enhancements,,,,,,No
The Royal Borough of Kensington and Chelsea,RBKC,,Statutory Year-End Adjustments,Statutory Year-End Adjustments,,Adaptations MW Ltd,1272466,,,,14/02/2023,2200301084,"7,935.00",,Payments to main contractor,,,,,,No
The Royal Borough of Kensington and Chelsea,RBKC,,Statutory Year-End Adjustments,Statutory Year-End Adjustments,,Air Tightness Solutions Ltd,1297819,,,,08/02/2023,2200299851,"1,900.00",,Surveyors,,,,,,No
The Royal Borough of Kensington and Chelsea,RBKC,,Statutory Year-End Adjustments,Statutory Year-End Adjustments,,Allies & Morrison LLP ,1232371,,,,09/03/2023,2200306697,750,,Payments to sub contractor,,,,,,No
The Royal Borough of Kensington and Chelsea,RBKC,,Statutory Year-End Adjustments,Statutory Year-End Adjustments,,Amber Construction Services Ltd,1231168,,,,20/01/2023,2200296035,"106,626.15",,Payments to main contractor,,,,,,No
The Royal Borough of Kensington and Chelsea,RBKC,,Statutory Year-End Adjustments,Statutory Year-End Adjustments,,Amber Construction Services Ltd,1231168,,,,27/02/2023,2200304234,"302,582.96",,Payments to main contractor,,,,,,No
The Royal Borough of Kensington and Chelsea,RBKC,,Statutory Year-End Adjustments,Statutory Year-End Adjustments,,Amwell Construction Ltd ,1231169,,,,27/02/2023,2200303934,"6,465.00",,Payments to main contractor,,,,,,No
The Royal Borough of Kensington and Chelsea,RBKC,,Statutory Year-End Adjustments,Statutory Year-End Adjustments,,Amwell Construction Ltd ,1231169,,,,24/03/2023,2200310254,"11,662.30",,Payments to main contractor,,,,,,No
The Royal Borough of Kensington and Chelsea,RBKC,,Statutory Year-End Adjustments,Statutory Year-End Adjustments,,Ansador Ltd ,1232405,,,,19/01/2023,2200295749,"2,550.00",,Payments to main contractor,,,,,,No
The Royal Borough of Kensington and Chelsea,RBKC,,Statutory Year-End Adjustments,Statutory Year-End Adjustments,,Ansador Ltd ,1232405,,,,06/03/2023,2200305840,576,,Payments to main contractor,,,,,,No
The Royal Borough of Kensington and Chelsea,RBKC,,Statutory Year-End Adjustments,Statutory Year-End Adjustments,,Aquaneed Ltd,1260944,,,,25/01/2023,2200296840,"11,555.94",,Payments to main contractor,,,,,,No
The Royal Borough of Kensington and Chelsea,RBKC,,Statutory Year-End Adjustments,Statutory Year-End Adjustments,,Aquaneed Ltd,1260944,,,,25/01/2023,2200296842,"11,409.55",,Payments to main contractor,,,,,,No
The Royal Borough of Kensington and Chelsea,RBKC,,Statutory Year-End Adjustments,Statutory Year-End Adjustments,,Aquaneed Ltd,1260944,,,,02/03/2023,2200305112,"7,980.54",,Payments to main contractor,,,,,,No
The Royal Borough of Kensington and Chelsea,RBKC,,Statutory Year-End Adjustments,Statutory Year-End Adjustments,,Aquaneed Ltd,1260944,,,,10/03/2023,2200306891,"9,312.28",,Payments to main contractor,,,,,,No
The Royal Borough of Kensington and Chelsea,RBKC,,Statutory Year-End Adjustments,Statutory Year-End Adjustments,,Arcadis Llp ,1232430,,,,09/03/2023,2200306695,"8,500.00",,Other Consultants,,,,,,No
The Royal Borough of Kensington and Chelsea,RBKC,,Statutory Year-End Adjustments,Statutory Year-End Adjustments,,Arcadis Llp ,1232430,,,,21/03/2023,2200309125,"15,000.00",,Other Consultants,,,,,,No
The Royal Borough of Kensington and Chelsea,RBKC,,Statutory Year-End Adjustments,Statutory Year-End Adjustments,,Archway Sheet Metal Works Limited,1301025,,,,21/02/2023,2200302775,"3,660.00",,Special Maintenance,,,,,,No
The Royal Borough of Kensington and Chelsea,RBKC,,Statutory Year-End Adjustments,Statutory Year-End Adjustments,,Arcus Consulting Llp,1265536,,,,22/03/2023,2200309410,"5,000.00",,Site Works,,,,,,No
The Royal Borough of Kensington and Chelsea,RBKC,,Statutory Year-End Adjustments,Statutory Year-End Adjustments,,Arcus Consulting Llp,1265536,,,,22/03/2023,2200309415,"6,558.80",,Payments to main contractor,,,,,,No
The Royal Borough of Kensington and Chelsea,RBKC,,Statutory Year-End Adjustments,Statutory Year-End Adjustments,,Arcus Consulting Llp,1265536,,,,22/03/2023,2200309417,"1,618.30",,Site Works,,,,,,No
The Royal Borough of Kensington and Chelsea,RBKC,,Statutory Year-End Adjustments,Statutory Year-End Adjustments,,Ark Build Plc ,1231173,,,,08/02/2023,2200299767,"9,832.37",,Payments to main contractor,,,,,,No
The Royal Borough of Kensington and Chelsea,RBKC,,Statutory Year-End Adjustments,Statutory Year-End Adjustments,,Ark Build Plc ,1231173,,,,22/03/2023,2200309524,"9,356.90",,Other Consultants,,,,,,No
The Royal Borough of Kensington and Chelsea,RBKC,,Statutory Year-End Adjustments,Statutory Year-End Adjustments,,Ark Consultancy Limited,1275605,,,,03/01/2023,2200292112,"10,907.50",,Other Consultants,,,,,,No
The Royal Borough of Kensington and Chelsea,RBKC,,Statutory Year-End Adjustments,Statutory Year-End Adjustments,,Ark Consultancy Limited,1275605,,,,07/02/2023,2200299672,"11,497.50",,Other Consultants,,,,,,No
The Royal Borough of Kensington and Chelsea,RBKC,,Statutory Year-End Adjustments,Statutory Year-End Adjustments,,T/A Artelia UK,1232443,,,,16/03/2023,2200308321,680,,Site Works,,,,,,No
The Royal Borough of Kensington and Chelsea,RBKC,,Statutory Year-End Adjustments,Statutory Year-End Adjustments,,Artesian Air Limited,1299055,,,,17/03/2023,2200308536,599,,Special Maintenance,,,,,,No
The Royal Borough of Kensington and Chelsea,RBKC,,Statutory Year-End Adjustments,Statutory Year-End Adjustments,,Ascendit Lifts Limited,1305556,,,,20/03/2023,2200309024,"5,393.00",,Payments to main contractor,,,,,,No
The Royal Borough of Kensington and Chelsea,RBKC,,Statutory Year-End Adjustments,Statutory Year-End Adjustments,,Ascendit Lifts Limited,1305556,,,,20/03/2023,2200309025,"3,219.00",,Payments to main contractor,,,,,,No
The Royal Borough of Kensington and Chelsea,RBKC,,Statutory Year-End Adjustments,Statutory Year-End Adjustments,,Ashfords Llp ,1232627,,,,03/01/2023,2200292134,"1,365.00",,Professional Fees : Non Legal,,,,,,No
The Royal Borough of Kensington and Chelsea,RBKC,,Statutory Year-End Adjustments,Statutory Year-End Adjustments,,Ashfords Llp ,1232627,,,,04/01/2023,2200292222,513,,Legal Fees & expenses,,,,,,No
The Royal Borough of Kensington and Chelsea,RBKC,,Statutory Year-End Adjustments,Statutory Year-End Adjustments,,Ashfords Llp ,1232627,,,,04/01/2023,2200292301,648,,Legal Fees & expenses,,,,,,No
The Royal Borough of Kensington and Chelsea,RBKC,,Statutory Year-End Adjustments,Statutory Year-End Adjustments,,Ashfords Llp ,1232627,,,,05/01/2023,2200292560,"11,908.33",,Other Consultants,,,,,,No
The Royal Borough of Kensington and Chelsea,RBKC,,Statutory Year-End Adjustments,Statutory Year-End Adjustments,,Ashfords Llp ,1232627,,,,09/01/2023,2200293246,884,,Legal Fees & expenses,,,,,,No
The Royal Borough of Kensington and Chelsea,RBKC,,Statutory Year-End Adjustments,Statutory Year-End Adjustments,,Ashfords Llp ,1232627,,,,13/01/2023,2200294465,"1,426.00",,Other Consultants,,,,,,No
The Royal Borough of Kensington and Chelsea,RBKC,,Statutory Year-End Adjustments,Statutory Year-End Adjustments,,Ashfords Llp ,1232627,,,,13/01/2023,2200294552,"1,149.00",,Legal Fees & expenses,,,,,,No
The Royal Borough of Kensington and Chelsea,RBKC,,Statutory Year-End Adjustments,Statutory Year-End Adjustments,,Ashfords Llp ,1232627,,,,18/01/2023,2200295362,653,,Professional Fees : Non Legal,,,,,,No
The Royal Borough of Kensington and Chelsea,RBKC,,Statutory Year-End Adjustments,Statutory Year-End Adjustments,,Ashfords Llp ,1232627,,,,25/01/2023,2200296878,"23,520.00",,Other Consultants,,,,,,No
The Royal Borough of Kensington and Chelsea,RBKC,,Statutory Year-End Adjustments,Statutory Year-End Adjustments,,Ashfords Llp ,1232627,,,,02/02/2023,2200298397,679,,Professional Fees : Non Legal,,,,,,No
The Royal Borough of Kensington and Chelsea,RBKC,,Statutory Year-End Adjustments,Statutory Year-End Adjustments,,Ashfords Llp ,1232627,,,,07/02/2023,2200299650,575,,Other Consultants,,,,,,No
The Royal Borough of Kensington and Chelsea,RBKC,,Statutory Year-End Adjustments,Statutory Year-End Adjustments,,Ashfords Llp ,1232627,,,,10/02/2023,2200300520,"3,921.50",,Other Consultants,,,,,,No
The Royal Borough of Kensington and Chelsea,RBKC,,Statutory Year-End Adjustments,Statutory Year-End Adjustments,,Ashfords Llp ,1232627,,,,13/02/2023,2200300782,"1,078.00",,Other Consultants,,,,,,No
The Royal Borough of Kensington and Chelsea,RBKC,,Statutory Year-End Adjustments,Statutory Year-End Adjustments,,Ashfords Llp ,1232627,,,,17/02/2023,2200302080,"1,990.00",,Legal Fees & expenses,,,,,,No
The Royal Borough of Kensington and Chelsea,RBKC,,Statutory Year-End Adjustments,Statutory Year-End Adjustments,,Ashfords Llp ,1232627,,,,21/02/2023,2200302654,"2,340.00",,Other Consultants,,,,,,No
The Royal Borough of Kensington and Chelsea,RBKC,,Statutory Year-End Adjustments,Statutory Year-End Adjustments,,Ashfords Llp ,1232627,,,,28/02/2023,2200304442,600,,Legal Fees & expenses,,,,,,No
The Royal Borough of Kensington and Chelsea,RBKC,,Statutory Year-End Adjustments,Statutory Year-End Adjustments,,Ashfords Llp ,1232627,,,,01/03/2023,2200304786,"1,656.87",,Other Consultants,,,,,,No
The Royal Borough of Kensington and Chelsea,RBKC,,Statutory Year-End Adjustments,Statutory Year-End Adjustments,,Ashfords Llp ,1232627,,,,02/03/2023,2200304989,"2,015.00",,Other Consultants,,,,,,No
The Royal Borough of Kensington and Chelsea,RBKC,,Statutory Year-End Adjustments,Statutory Year-End Adjustments,,Ashfords Llp ,1232627,,,,02/03/2023,2200304993,"2,082.00",,Other Consultants,,,,,,No
The Royal Borough of Kensington and Chelsea,RBKC,,Statutory Year-End Adjustments,Statutory Year-End Adjustments,,Ashfords Llp ,1232627,,,,13/03/2023,2200307295,"1,435.00",,Professional Fees : Non Legal,,,,,,No
The Royal Borough of Kensington and Chelsea,RBKC,,Statutory Year-End Adjustments,Statutory Year-End Adjustments,,Ashfords Llp ,1232627,,,,31/03/2023,2200312273,"5,518.00",,Legal Fees & expenses,,,,,,No
The Royal Borough of Kensington and Chelsea,RBKC,,Statutory Year-End Adjustments,Statutory Year-End Adjustments,,Astor Bannerman (Medical) Ltd,1302458,,,,22/03/2023,2200309700,"13,250.31",,Payments to main contractor,,,,,,No
The Royal Borough of Kensington and Chelsea,RBKC,,Statutory Year-End Adjustments,Statutory Year-End Adjustments,,Atlas Maintenance Service Limited,1299798,,,,02/02/2023,2200298723,"13,972.75",,Payments to main contractor,,,,,,No
The Royal Borough of Kensington and Chelsea,RBKC,,Statutory Year-End Adjustments,Statutory Year-End Adjustments,,Axis Europe Plc,1232679,,,,04/01/2023,2200292229,"16,470.93",,Payments to main contractor,,,,,,No
The Royal Borough of Kensington and Chelsea,RBKC,,Statutory Year-End Adjustments,Statutory Year-End Adjustments,,Axis Europe Plc,1232679,,,,01/02/2023,2200298062,"7,086.84",,Payments to main contractor,,,,,,No
The Royal Borough of Kensington and Chelsea,RBKC,,Statutory Year-End Adjustments,Statutory Year-End Adjustments,,Axis Europe Plc,1232679,,,,10/03/2023,2200306986,"140,898.53",,Payments to main contractor,,,,,,No
The Royal Borough of Kensington and Chelsea,RBKC,,Statutory Year-End Adjustments,Statutory Year-End Adjustments,,BT Global Services ,1233001,,,,03/01/2023,2200292110,"2,160.11",,Other Consultants,,,,,,No
The Royal Borough of Kensington and Chelsea,RBKC,,Statutory Year-End Adjustments,Statutory Year-End Adjustments,,BT Global Services ,1233001,,,,18/01/2023,2200295543,"31,801.50",,Creditors Control : AP GRIR,,,,,,No
The Royal Borough of Kensington and Chelsea,RBKC,,Statutory Year-End Adjustments,Statutory Year-End Adjustments,,BT Global Services ,1233001,,,,18/01/2023,2200295543,"7,131.00",,Creditors Control : AP GRIR,,,,,,No
The Royal Borough of Kensington and Chelsea,RBKC,,Statutory Year-End Adjustments,Statutory Year-End Adjustments,,BT Global Services ,1233001,,,,18/01/2023,2200295543,"2,547.00",,Creditors Control : AP GRIR,,,,,,No
The Royal Borough of Kensington and Chelsea,RBKC,,Statutory Year-End Adjustments,Statutory Year-End Adjustments,,BT Global Services ,1233001,,,,18/01/2023,2200295543,751,,Creditors Control : AP GRIR,,,,,,No
The Royal Borough of Kensington and Chelsea,RBKC,,Statutory Year-End Adjustments,Statutory Year-End Adjustments,,BT Global Services ,1233001,,,,18/01/2023,2200295543,607.5,,Creditors Control : AP GRIR,,,,,,No
The Royal Borough of Kensington and Chelsea,RBKC,,Statutory Year-End Adjustments,Statutory Year-End Adjustments,,BT Global Services ,1233001,,,,23/02/2023,2200303286,"1,663.36",,Creditors Control : AP GRIR,,,,,,No
The Royal Borough of Kensington and Chelsea,RBKC,,Statutory Year-End Adjustments,Statutory Year-End Adjustments,,Baily Garner LLP ,1232685,,,,02/02/2023,2200298492,"6,200.00",,Payments to main contractor,,,,,,No
The Royal Borough of Kensington and Chelsea,RBKC,,Statutory Year-End Adjustments,Statutory Year-End Adjustments,,Baily Garner LLP ,1232685,,,,02/02/2023,2200298496,"2,275.00",,Payments to main contractor,,,,,,No
The Royal Borough of Kensington and Chelsea,RBKC,,Statutory Year-End Adjustments,Statutory Year-End Adjustments,,Baily Garner LLP ,1232685,,,,24/02/2023,2200303733,"18,525.00",,Capitalised salaries,,,,,,No
The Royal Borough of Kensington and Chelsea,RBKC,,Statutory Year-End Adjustments,Statutory Year-End Adjustments,,Baily Garner LLP ,1232685,,,,02/03/2023,2200305088,"6,175.00",,Capitalised salaries,,,,,,No
The Royal Borough of Kensington and Chelsea,RBKC,,Statutory Year-End Adjustments,Statutory Year-End Adjustments,,Basis Ltd ,1232709,,,,14/02/2023,2200300998,"4,800.00",,Other Consultants,,,,,,No
The Royal Borough of Kensington and Chelsea,RBKC,,Statutory Year-End Adjustments,Statutory Year-End Adjustments,,Bay Media Ltd,1299689,,,,10/02/2023,2200300619,"9,610.00",,Design Consultant,,,,,,No
The Royal Borough of Kensington and Chelsea,RBKC,,Statutory Year-End Adjustments,Statutory Year-End Adjustments,,Bell Decorating & Building Ltd ,1232723,,,,10/01/2023,2200293626,"2,160.00",,Construction : enhancements,,,,,,No
The Royal Borough of Kensington and Chelsea,RBKC,,Statutory Year-End Adjustments,Statutory Year-End Adjustments,,Bell Decorating & Building Ltd ,1232723,,,,10/01/2023,2200293627,"9,000.00",,Construction : enhancements,,,,,,No
The Royal Borough of Kensington and Chelsea,RBKC,,Statutory Year-End Adjustments,Statutory Year-End Adjustments,,Bell Decorating & Building Ltd ,1232723,,,,10/01/2023,2200293672,925,,Payments to main contractor,,,,,,No
The Royal Borough of Kensington and Chelsea,RBKC,,Statutory Year-End Adjustments,Statutory Year-End Adjustments,,Bell Decorating & Building Ltd ,1232723,,,,11/01/2023,2200293988,990,,Creditors Control : AP GRIR,,,,,,No
The Royal Borough of Kensington and Chelsea,RBKC,,Statutory Year-End Adjustments,Statutory Year-End Adjustments,,Bell Decorating & Building Ltd ,1232723,,,,12/01/2023,2200294379,"1,295.00",,Site Works,,,,,,No
The Royal Borough of Kensington and Chelsea,RBKC,,Statutory Year-End Adjustments,Statutory Year-End Adjustments,,Bell Decorating & Building Ltd ,1232723,,,,23/01/2023,2200296338,"40,000.00",,Construction : enhancements,,,,,,No
The Royal Borough of Kensington and Chelsea,RBKC,,Statutory Year-End Adjustments,Statutory Year-End Adjustments,,Bell Decorating & Building Ltd ,1232723,,,,21/02/2023,2200302705,"5,728.38",,Construction : enhancements,,,,,,No
The Royal Borough of Kensington and Chelsea,RBKC,,Statutory Year-End Adjustments,Statutory Year-End Adjustments,,Bell Decorating & Building Ltd ,1232723,,,,06/03/2023,2200305632,925,,Payments to main contractor,,,,,,No
The Royal Borough of Kensington and Chelsea,RBKC,,Statutory Year-End Adjustments,Statutory Year-End Adjustments,,Bell Decorating & Building Ltd ,1232723,,,,08/03/2023,2200306456,"2,977.00",,Construction : enhancements,,,,,,No
The Royal Borough of Kensington and Chelsea,RBKC,,Statutory Year-End Adjustments,Statutory Year-End Adjustments,,Bell Decorating & Building Ltd ,1232723,,,,22/03/2023,2200309651,"20,000.00",,Construction : enhancements,,,,,,No
The Royal Borough of Kensington and Chelsea,RBKC,,Statutory Year-End Adjustments,Statutory Year-End Adjustments,,Bell Decorating & Building Ltd ,1232723,,,,29/03/2023,2200311362,"55,000.00",,Construction : enhancements,,,,,,No
The Royal Borough of Kensington and Chelsea,RBKC,,Statutory Year-End Adjustments,Statutory Year-End Adjustments,,Bellrock Property & Facilities Man ,1255450,,,,03/01/2023,2200292124,"24,777.00",,Planned Maintenance (CM),,,,,,No
The Royal Borough of Kensington and Chelsea,RBKC,,Statutory Year-End Adjustments,Statutory Year-End Adjustments,,Benchmark Site Engineering Services,1303284,,,,31/01/2023,2200297742,950,,Construction : enhancements,,,,,,No
The Royal Borough of Kensington and Chelsea,RBKC,,Statutory Year-End Adjustments,Statutory Year-End Adjustments,,Benchmarx Kitchens and Joinery Ltd,1270136,,,,24/01/2023,2200296746,"2,467.26",,Special Maintenance,,,,,,No
The Royal Borough of Kensington and Chelsea,RBKC,,Statutory Year-End Adjustments,Statutory Year-End Adjustments,,Bevan Brittan Llp ,1232737,,,,10/02/2023,2200300588,"2,660.00",,Legal Fees & expenses,,,,,,No
The Royal Borough of Kensington and Chelsea,RBKC,,Statutory Year-End Adjustments,Statutory Year-End Adjustments,,Bevan Brittan Llp ,1232737,,,,24/03/2023,2200310282,"10,800.00",,Legal Fees & expenses,,,,,,No
The Royal Borough of Kensington and Chelsea,RBKC,,Statutory Year-End Adjustments,Statutory Year-End Adjustments,,Bevan Brittan Llp ,1232737,,,,27/03/2023,2200310719,513,,Legal Fees & expenses,,,,,,No
The Royal Borough of Kensington and Chelsea,RBKC,,Statutory Year-End Adjustments,Statutory Year-End Adjustments,,Bikeworks CIC ,1232746,,,,07/02/2023,2200299479,"25,000.00",,Other Consultants,,,,,,No
The Royal Borough of Kensington and Chelsea,RBKC,,Statutory Year-End Adjustments,Statutory Year-End Adjustments,,Bishop Creighton House Care & Repair Clients Account,1232751,,,,04/01/2023,2200292428,"8,158.00",,Payments to main contractor,,,,,,No
The Royal Borough of Kensington and Chelsea,RBKC,,Statutory Year-End Adjustments,Statutory Year-End Adjustments,,Bishop Creighton House Care & Repair Clients Account,1232751,,,,07/03/2023,2200306163,987.45,,Payments to main contractor,,,,,,No
The Royal Borough of Kensington and Chelsea,RBKC,,Statutory Year-End Adjustments,Statutory Year-End Adjustments,,Bishop Creighton House Care & Repair Clients Account,1232751,,,,07/03/2023,2200306164,"5,983.00",,Payments to main contractor,,,,,,No
The Royal Borough of Kensington and Chelsea,RBKC,,Statutory Year-End Adjustments,Statutory Year-End Adjustments,,Bishop Creighton House Care & Repair Clients Account,1232751,,,,07/03/2023,2200306251,"11,785.00",,Payments to main contractor,,,,,,No
The Royal Borough of Kensington and Chelsea,RBKC,,Statutory Year-End Adjustments,Statutory Year-End Adjustments,,Bishop Creighton House Care & Repair Clients Account,1232751,,,,07/03/2023,2200306252,"1,767.75",,Payments to main contractor,,,,,,No
The Royal Borough of Kensington and Chelsea,RBKC,,Statutory Year-End Adjustments,Statutory Year-End Adjustments,,Bishop Creighton House Care & Repair Clients Account,1232751,,,,08/03/2023,2200306377,537,,Payments to main contractor,,,,,,No
The Royal Borough of Kensington and Chelsea,RBKC,,Statutory Year-End Adjustments,Statutory Year-End Adjustments,,Bishop Creighton House Care & Repair Clients Account,1232751,,,,14/03/2023,2200307757,"7,770.00",,Payments to main contractor,,,,,,No
The Royal Borough of Kensington and Chelsea,RBKC,,Statutory Year-End Adjustments,Statutory Year-End Adjustments,,Bishop Creighton House Care & Repair Clients Account,1232751,,,,14/03/2023,2200307758,"1,165.50",,Payments to main contractor,,,,,,No
The Royal Borough of Kensington and Chelsea,RBKC,,Statutory Year-End Adjustments,Statutory Year-End Adjustments,,Bishop Creighton House Care & Repair Clients Account,1232751,,,,15/03/2023,2200307850,"14,005.00",,Payments to main contractor,,,,,,No
The Royal Borough of Kensington and Chelsea,RBKC,,Statutory Year-End Adjustments,Statutory Year-End Adjustments,,Bishop Creighton House Care & Repair Clients Account,1232751,,,,15/03/2023,2200307865,"1,626.75",,Payments to main contractor,,,,,,No
The Royal Borough of Kensington and Chelsea,RBKC,,Statutory Year-End Adjustments,Statutory Year-End Adjustments,,Bishop Creighton House Care & Repair Clients Account,1232751,,,,15/03/2023,2200307866,"2,780.00",,Payments to main contractor,,,,,,No
The Royal Borough of Kensington and Chelsea,RBKC,,Statutory Year-End Adjustments,Statutory Year-End Adjustments,,Bishop Creighton House Care & Repair Clients Account,1232751,,,,15/03/2023,2200307867,"2,100.75",,Payments to main contractor,,,,,,No
The Royal Borough of Kensington and Chelsea,RBKC,,Statutory Year-End Adjustments,Statutory Year-End Adjustments,,Bishop Creighton House Care & Repair Clients Account,1232751,,,,15/03/2023,2200307921,"1,923.00",,Payments to main contractor,,,,,,No
The Royal Borough of Kensington and Chelsea,RBKC,,Statutory Year-End Adjustments,Statutory Year-End Adjustments,,Bishop Creighton House Care & Repair Clients Account,1232751,,,,15/03/2023,2200307922,"12,820.00",,Payments to main contractor,,,,,,No
The Royal Borough of Kensington and Chelsea,RBKC,,Statutory Year-End Adjustments,Statutory Year-End Adjustments,,Bishop Creighton House Care & Repair Clients Account,1232751,,,,15/03/2023,2200307971,"3,580.00",,Payments to main contractor,,,,,,No
The Royal Borough of Kensington and Chelsea,RBKC,,Statutory Year-End Adjustments,Statutory Year-End Adjustments,,Bishop Creighton House Care & Repair Clients Account,1232751,,,,16/03/2023,2200308340,"1,186.20",,Payments to main contractor,,,,,,No
The Royal Borough of Kensington and Chelsea,RBKC,,Statutory Year-End Adjustments,Statutory Year-End Adjustments,,Bishop Creighton House Care & Repair Clients Account,1232751,,,,16/03/2023,2200308341,"7,908.00",,Payments to main contractor,,,,,,No
The Royal Borough of Kensington and Chelsea,RBKC,,Statutory Year-End Adjustments,Statutory Year-End Adjustments,,Bishop Creighton House Care & Repair Clients Account,1232751,,,,23/03/2023,2200309896,"2,021.70",,Payments to main contractor,,,,,,No
The Royal Borough of Kensington and Chelsea,RBKC,,Statutory Year-End Adjustments,Statutory Year-End Adjustments,,Bishop Creighton House Care & Repair Clients Account,1232751,,,,23/03/2023,2200309971,"13,478.00",,Payments to main contractor,,,,,,No
The Royal Borough of Kensington and Chelsea,RBKC,,Statutory Year-End Adjustments,Statutory Year-End Adjustments,,Bishop Creighton House Care & Repair Clients Account,1232751,,,,29/03/2023,2200311369,"1,081.50",,Payments to main contractor,,,,,,No
The Royal Borough of Kensington and Chelsea,RBKC,,Statutory Year-End Adjustments,Statutory Year-End Adjustments,,Boon Brown Limited,1298306,,,,03/01/2023,2200292101,"6,565.00",,Payments to main contractor,,,,,,No
The Royal Borough of Kensington and Chelsea,RBKC,,Statutory Year-End Adjustments,Statutory Year-End Adjustments,,Boon Brown Limited,1298306,,,,06/02/2023,2200299235,"1,100.00",,Payments to main contractor,,,,,,No
The Royal Borough of Kensington and Chelsea,RBKC,,Statutory Year-End Adjustments,Statutory Year-End Adjustments,,Bousfield Primary School ,1236067,,,,27/02/2023,2200304223,"16,791.00",,Site Works,,,,,,No
The Royal Borough of Kensington and Chelsea,RBKC,,Statutory Year-End Adjustments,Statutory Year-End Adjustments,,Redact Details,1260368,,,,17/03/2023,2200308635,"9,745.00",,Planned Maintenance (CM),,,,,,No
The Royal Borough of Kensington and Chelsea,RBKC,,Statutory Year-End Adjustments,Statutory Year-End Adjustments,,Build Test Solutions Ltd,1271506,,,,13/02/2023,2200300789,750,,Other Consultants,,,,,,No
The Royal Borough of Kensington and Chelsea,RBKC,,Statutory Year-End Adjustments,Statutory Year-End Adjustments,,Buro Happold Limited,1288909,,,,06/03/2023,2200305546,"18,625.50",,Professional Fees : Non Legal,,,,,,No
The Royal Borough of Kensington and Chelsea,RBKC,,Statutory Year-End Adjustments,Statutory Year-End Adjustments,,Butler & Young Services Ltd,1272888,,,,05/01/2023,2200292550,"7,850.00",,Professional Fees : Non Legal,,,,,,No
The Royal Borough of Kensington and Chelsea,RBKC,,Statutory Year-End Adjustments,Statutory Year-End Adjustments,,Butler & Young Services Ltd,1272888,,,,05/01/2023,2200292567,"7,760.00",,Professional Fees : Non Legal,,,,,,No
The Royal Borough of Kensington and Chelsea,RBKC,,Statutory Year-End Adjustments,Statutory Year-End Adjustments,,Butler & Young Services Ltd,1272888,,,,27/01/2023,2200297286,"3,040.00",,Professional Fees : Non Legal,,,,,,No
The Royal Borough of Kensington and Chelsea,RBKC,,Statutory Year-End Adjustments,Statutory Year-End Adjustments,,Butler & Young Services Ltd,1272888,,,,27/01/2023,2200297287,"7,850.00",,Professional Fees : Non Legal,,,,,,No
The Royal Borough of Kensington and Chelsea,RBKC,,Statutory Year-End Adjustments,Statutory Year-End Adjustments,,Butler & Young Services Ltd,1272888,,,,27/02/2023,2200304212,"7,850.00",,Professional Fees : Non Legal,,,,,,No
The Royal Borough of Kensington and Chelsea,RBKC,,Statutory Year-End Adjustments,Statutory Year-End Adjustments,,Butler & Young Services Ltd,1272888,,,,27/03/2023,2200310622,"7,850.00",,Professional Fees : Non Legal,,,,,,No
The Royal Borough of Kensington and Chelsea,RBKC,,Statutory Year-End Adjustments,Statutory Year-End Adjustments,,Buxton Building Contractors Ltd,1288846,,,,04/01/2023,2200292396,"142,500.00",,Payments to main contractor,,,,,,No
The Royal Borough of Kensington and Chelsea,RBKC,,Statutory Year-End Adjustments,Statutory Year-End Adjustments,,Buxton Building Contractors Ltd,1288846,,,,27/01/2023,2200297305,"76,000.00",,Payments to main contractor,,,,,,No
The Royal Borough of Kensington and Chelsea,RBKC,,Statutory Year-End Adjustments,Statutory Year-End Adjustments,,Buxton Building Contractors Ltd,1288846,,,,15/03/2023,2200307880,"90,250.00",,Payments to main contractor,,,,,,No
The Royal Borough of Kensington and Chelsea,RBKC,,Statutory Year-End Adjustments,Statutory Year-End Adjustments,,C Kew Installations Ltd,1288701,,,,23/03/2023,2200310043,920,,Construction : enhancements,,,,,,No
The Royal Borough of Kensington and Chelsea,RBKC,,Statutory Year-End Adjustments,Statutory Year-End Adjustments,,CBRE Ltd(CBRE Client Account - EA,1233315,,,,12/01/2023,2200294383,"3,000.00",,Legal Fees & expenses,,,,,,No
The Royal Borough of Kensington and Chelsea,RBKC,,Statutory Year-End Adjustments,Statutory Year-End Adjustments,,CIS Street Furniture Ltd ,1256606,,,,07/03/2023,2200306066,"86,393.00",,Other Consultants,,,,,,No
The Royal Borough of Kensington and Chelsea,RBKC,,Statutory Year-End Adjustments,Statutory Year-End Adjustments,,CVC Direct Ltd,1293985,,,,14/02/2023,2200301071,"7,750.86",,Special Maintenance,,,,,,No
The Royal Borough of Kensington and Chelsea,RBKC,,Statutory Year-End Adjustments,Statutory Year-End Adjustments,,CWG Group Ltd,1281268,,,,23/01/2023,2200296196,"175,960.28",,Payments to main contractor,,,,,,No
The Royal Borough of Kensington and Chelsea,RBKC,,Statutory Year-End Adjustments,Statutory Year-End Adjustments,,CWG Group Ltd,1281268,,,,30/01/2023,2200297510,"258,071.01",,Payments to main contractor,,,,,,No
The Royal Borough of Kensington and Chelsea,RBKC,,Statutory Year-End Adjustments,Statutory Year-End Adjustments,,CWG Group Ltd,1281268,,,,06/02/2023,2200299236,"268,610.19",,Payments to main contractor,,,,,,No
The Royal Borough of Kensington and Chelsea,RBKC,,Statutory Year-End Adjustments,Statutory Year-End Adjustments,,CWG Group Ltd,1281268,,,,01/03/2023,2200304719,"197,024.69",,Payments to main contractor,,,,,,No
The Royal Borough of Kensington and Chelsea,RBKC,,Statutory Year-End Adjustments,Statutory Year-End Adjustments,,CWG Group Ltd,1281268,,,,29/03/2023,2200311350,"17,331.21",,Payments to main contractor,,,,,,No
The Royal Borough of Kensington and Chelsea,RBKC,,Statutory Year-End Adjustments,Statutory Year-End Adjustments,,CWG Group Ltd,1281268,,,,31/03/2023,2200312355,"93,628.47",,Payments to main contractor,,,,,,No
The Royal Borough of Kensington and Chelsea,RBKC,,Statutory Year-End Adjustments,Statutory Year-End Adjustments,,Cablesheer (Asbestos) Limited,1273893,,,,13/01/2023,2200294557,"1,950.00",,Payments to main contractor,,,,,,No
The Royal Borough of Kensington and Chelsea,RBKC,,Statutory Year-End Adjustments,Statutory Year-End Adjustments,,Calford Seadon (Health & Safety) Ltd,1233044,,,,05/01/2023,2200292584,"3,076.36",,Professional Fees : Non Legal,,,,,,No
The Royal Borough of Kensington and Chelsea,RBKC,,Statutory Year-End Adjustments,Statutory Year-End Adjustments,,Calford Seadon (Health & Safety) Ltd,1233044,,,,30/01/2023,2200297441,"5,950.00",,Professional Fees : Non Legal,,,,,,No
The Royal Borough of Kensington and Chelsea,RBKC,,Statutory Year-End Adjustments,Statutory Year-End Adjustments,,Calford Seadon (Health & Safety) Ltd,1233044,,,,07/02/2023,2200299434,"3,076.36",,Professional Fees : Non Legal,,,,,,No
The Royal Borough of Kensington and Chelsea,RBKC,,Statutory Year-End Adjustments,Statutory Year-End Adjustments,,Calford Seadon (Health & Safety) Ltd,1233044,,,,07/02/2023,2200299435,"9,814.08",,Professional Fees : Non Legal,,,,,,No
The Royal Borough of Kensington and Chelsea,RBKC,,Statutory Year-End Adjustments,Statutory Year-End Adjustments,,Calford Seadon (Health & Safety) Ltd,1233044,,,,07/02/2023,2200299651,"17,030.00",,Design Consultant,,,,,,No
The Royal Borough of Kensington and Chelsea,RBKC,,Statutory Year-End Adjustments,Statutory Year-End Adjustments,,Calford Seadon (Health & Safety) Ltd,1233044,,,,07/03/2023,2200306094,"14,887.50",,Professional Fees : Non Legal,,,,,,No
The Royal Borough of Kensington and Chelsea,RBKC,,Statutory Year-End Adjustments,Statutory Year-End Adjustments,,Calford Seadon (Health & Safety) Ltd,1233044,,,,07/03/2023,2200306168,"8,622.72",,Professional Fees : Non Legal,,,,,,No
The Royal Borough of Kensington and Chelsea,RBKC,,Statutory Year-End Adjustments,Statutory Year-End Adjustments,,Calford Seadon (Health & Safety) Ltd,1233044,,,,07/03/2023,2200306170,"11,267.24",,Professional Fees : Non Legal,,,,,,No
The Royal Borough of Kensington and Chelsea,RBKC,,Statutory Year-End Adjustments,Statutory Year-End Adjustments,,Calford Seadon (Health & Safety) Ltd,1233044,,,,28/03/2023,2200311097,"4,120.00",,Professional Fees : Non Legal,,,,,,No
The Royal Borough of Kensington and Chelsea,RBKC,,Statutory Year-End Adjustments,Statutory Year-End Adjustments,,Capital Property & Construction ,1256857,,,,05/01/2023,2200292580,"8,550.00",,Professional Fees : Non Legal,,,,,,No
The Royal Borough of Kensington and Chelsea,RBKC,,Statutory Year-End Adjustments,Statutory Year-End Adjustments,,Capital Property & Construction ,1256857,,,,05/01/2023,2200292582,"3,585.83",,Professional Fees : Non Legal,,,,,,No
The Royal Borough of Kensington and Chelsea,RBKC,,Statutory Year-End Adjustments,Statutory Year-End Adjustments,,Capital Property & Construction ,1256857,,,,13/01/2023,2200294550,"103,715.76",,Professional Fees : Non Legal,,,,,,No
The Royal Borough of Kensington and Chelsea,RBKC,,Statutory Year-End Adjustments,Statutory Year-End Adjustments,,Capital Property & Construction ,1256857,,,,20/01/2023,2200296059,"28,000.00",,Professional Fees : Non Legal,,,,,,No
The Royal Borough of Kensington and Chelsea,RBKC,,Statutory Year-End Adjustments,Statutory Year-End Adjustments,,Capital Property & Construction ,1256857,,,,26/01/2023,2200296997,"3,000.00",,Professional Fees : Non Legal,,,,,,No
The Royal Borough of Kensington and Chelsea,RBKC,,Statutory Year-End Adjustments,Statutory Year-End Adjustments,,Capital Property & Construction ,1256857,,,,27/01/2023,2200297295,"5,458.72",,Professional Fees : Non Legal,,,,,,No
The Royal Borough of Kensington and Chelsea,RBKC,,Statutory Year-End Adjustments,Statutory Year-End Adjustments,,Capital Property & Construction ,1256857,,,,27/01/2023,2200297301,"3,040.50",,Professional Fees : Non Legal,,,,,,No
The Royal Borough of Kensington and Chelsea,RBKC,,Statutory Year-End Adjustments,Statutory Year-End Adjustments,,Capital Property & Construction ,1256857,,,,01/02/2023,2200298064,"2,880.20",,Professional Fees : Non Legal,,,,,,No
The Royal Borough of Kensington and Chelsea,RBKC,,Statutory Year-End Adjustments,Statutory Year-End Adjustments,,Capital Property & Construction ,1256857,,,,02/02/2023,2200298588,"2,873.85",,Professional Fees : Non Legal,,,,,,No
The Royal Borough of Kensington and Chelsea,RBKC,,Statutory Year-End Adjustments,Statutory Year-End Adjustments,,Capital Property & Construction ,1256857,,,,03/02/2023,2200298943,"20,115.41",,Professional Fees : Non Legal,,,,,,No
The Royal Borough of Kensington and Chelsea,RBKC,,Statutory Year-End Adjustments,Statutory Year-End Adjustments,,Capital Property & Construction ,1256857,,,,07/02/2023,2200299636,"16,654.16",,Professional Fees : Non Legal,,,,,,No
The Royal Borough of Kensington and Chelsea,RBKC,,Statutory Year-End Adjustments,Statutory Year-End Adjustments,,Capital Property & Construction ,1256857,,,,08/02/2023,2200299872,"1,085.80",,Quantity Surveyors,,,,,,No
The Royal Borough of Kensington and Chelsea,RBKC,,Statutory Year-End Adjustments,Statutory Year-End Adjustments,,Capital Property & Construction ,1256857,,,,09/02/2023,2200300443,"12,635.00",,Professional Fees : Non Legal,,,,,,No
The Royal Borough of Kensington and Chelsea,RBKC,,Statutory Year-End Adjustments,Statutory Year-End Adjustments,,Capital Property & Construction ,1256857,,,,20/02/2023,2200302314,720,,Other Consultants,,,,,,No
The Royal Borough of Kensington and Chelsea,RBKC,,Statutory Year-End Adjustments,Statutory Year-End Adjustments,,Capital Property & Construction ,1256857,,,,27/02/2023,2200304222,"2,389.50",,Professional Fees : Non Legal,,,,,,No
The Royal Borough of Kensington and Chelsea,RBKC,,Statutory Year-End Adjustments,Statutory Year-End Adjustments,,Capital Property & Construction ,1256857,,,,27/02/2023,2200304231,"8,392.56",,Professional Fees : Non Legal,,,,,,No
The Royal Borough of Kensington and Chelsea,RBKC,,Statutory Year-End Adjustments,Statutory Year-End Adjustments,,Capital Property & Construction ,1256857,,,,27/02/2023,2200304233,"2,469.22",,Professional Fees : Non Legal,,,,,,No
The Royal Borough of Kensington and Chelsea,RBKC,,Statutory Year-End Adjustments,Statutory Year-End Adjustments,,Capital Property & Construction ,1256857,,,,28/02/2023,2200304372,"2,201.98",,Professional Fees : Non Legal,,,,,,No
The Royal Borough of Kensington and Chelsea,RBKC,,Statutory Year-End Adjustments,Statutory Year-End Adjustments,,Capital Property & Construction ,1256857,,,,28/02/2023,2200304403,"1,709.22",,Professional Fees : Non Legal,,,,,,No
The Royal Borough of Kensington and Chelsea,RBKC,,Statutory Year-End Adjustments,Statutory Year-End Adjustments,,Capital Property & Construction ,1256857,,,,28/02/2023,2200304409,"33,947.51",,Professional Fees : Non Legal,,,,,,No
The Royal Borough of Kensington and Chelsea,RBKC,,Statutory Year-End Adjustments,Statutory Year-End Adjustments,,Capital Property & Construction ,1256857,,,,28/02/2023,2200304411,"7,535.05",,Professional Fees : Non Legal,,,,,,No
The Royal Borough of Kensington and Chelsea,RBKC,,Statutory Year-End Adjustments,Statutory Year-End Adjustments,,Capital Property & Construction ,1256857,,,,28/02/2023,2200304413,"2,476.80",,Professional Fees : Non Legal,,,,,,No
The Royal Borough of Kensington and Chelsea,RBKC,,Statutory Year-End Adjustments,Statutory Year-End Adjustments,,Capital Property & Construction ,1256857,,,,03/03/2023,2200305230,"18,235.00",,Professional Fees : Non Legal,,,,,,No
The Royal Borough of Kensington and Chelsea,RBKC,,Statutory Year-End Adjustments,Statutory Year-End Adjustments,,Capital Property & Construction ,1256857,,,,07/03/2023,2200306138,760,,Professional Fees : Non Legal,,,,,,No
The Royal Borough of Kensington and Chelsea,RBKC,,Statutory Year-End Adjustments,Statutory Year-End Adjustments,,Capital Property & Construction ,1256857,,,,07/03/2023,2200306145,"16,517.80",,Professional Fees : Non Legal,,,,,,No
The Royal Borough of Kensington and Chelsea,RBKC,,Statutory Year-End Adjustments,Statutory Year-End Adjustments,,Capital Property & Construction ,1256857,,,,20/03/2023,2200308707,"7,500.00",,Professional Fees : Non Legal,,,,,,No
The Royal Borough of Kensington and Chelsea,RBKC,,Statutory Year-End Adjustments,Statutory Year-End Adjustments,,Capital Property & Construction ,1256857,,,,22/03/2023,2200309516,"17,044.16",,Professional Fees : Non Legal,,,,,,No
The Royal Borough of Kensington and Chelsea,RBKC,,Statutory Year-End Adjustments,Statutory Year-End Adjustments,,Capital Property & Construction ,1256857,,,,28/03/2023,2200311012,"1,800.00",,Other Consultants,,,,,,No
The Royal Borough of Kensington and Chelsea,RBKC,,Statutory Year-End Adjustments,Statutory Year-End Adjustments,,Capital Property & Construction ,1256857,,,,29/03/2023,2200311513,"16,517.80",,Professional Fees : Non Legal,,,,,,No
The Royal Borough of Kensington and Chelsea,RBKC,,Statutory Year-End Adjustments,Statutory Year-End Adjustments,,Capital Property & Construction ,1256857,,,,30/03/2023,2200311805,"18,235.00",,Professional Fees : Non Legal,,,,,,No
The Royal Borough of Kensington and Chelsea,RBKC,,Statutory Year-End Adjustments,Statutory Year-End Adjustments,,Capital Property & Construction ,1256857,,,,31/03/2023,2200312173,"28,192.50",,Other Consultants,,,,,,No
The Royal Borough of Kensington and Chelsea,RBKC,,Statutory Year-End Adjustments,Statutory Year-End Adjustments,,Cappagh Contractors Construction (London) Ltd,1233084,,,,27/03/2023,2200310646,750,,Payments to main contractor,,,,,,No
The Royal Borough of Kensington and Chelsea,RBKC,,Statutory Year-End Adjustments,Statutory Year-End Adjustments,,Carefirst Recruitment Ltd ,1233286,,,,28/03/2023,2200311064,"4,298.56",,Capitalised salaries,,,,,,No
The Royal Borough of Kensington and Chelsea,RBKC,,Statutory Year-End Adjustments,Statutory Year-End Adjustments,,Carter Jonas Llp ,1233297,,,,07/02/2023,2200299669,"1,400.00",,Acquisition of Land & Buildings,,,,,,No
The Royal Borough of Kensington and Chelsea,RBKC,,Statutory Year-End Adjustments,Statutory Year-End Adjustments,,Carter Jonas Llp ,1233297,,,,15/02/2023,2200301516,700,,Acquisition of Land & Buildings,,,,,,No
The Royal Borough of Kensington and Chelsea,RBKC,,Statutory Year-End Adjustments,Statutory Year-End Adjustments,,Cavendish Construction LTD,1267193,,,,04/01/2023,2200292415,"41,528.88",,Special Maintenance,,,,,,No
The Royal Borough of Kensington and Chelsea,RBKC,,Statutory Year-End Adjustments,Statutory Year-End Adjustments,,Cavendish Construction LTD,1267193,,,,04/01/2023,2200292419,"34,749.66",,Special Maintenance,,,,,,No
The Royal Borough of Kensington and Chelsea,RBKC,,Statutory Year-End Adjustments,Statutory Year-End Adjustments,,Cavendish Construction LTD,1267193,,,,04/01/2023,2200292422,"26,938.22",,Special Maintenance,,,,,,No
The Royal Borough of Kensington and Chelsea,RBKC,,Statutory Year-End Adjustments,Statutory Year-End Adjustments,,Cavendish Construction LTD,1267193,,,,04/01/2023,2200292425,"39,997.61",,Special Maintenance,,,,,,No
The Royal Borough of Kensington and Chelsea,RBKC,,Statutory Year-End Adjustments,Statutory Year-End Adjustments,,Cavendish Construction LTD,1267193,,,,11/01/2023,2200294134,"37,967.00",,Construction : enhancements,,,,,,No
The Royal Borough of Kensington and Chelsea,RBKC,,Statutory Year-End Adjustments,Statutory Year-End Adjustments,,Cavendish Construction LTD,1267193,,,,13/01/2023,2200294463,"1,984.72",,Construction : enhancements,,,,,,No
The Royal Borough of Kensington and Chelsea,RBKC,,Statutory Year-End Adjustments,Statutory Year-End Adjustments,,Cavendish Construction LTD,1267193,,,,13/01/2023,2200294560,"16,067.40",,Special Maintenance,,,,,,No
The Royal Borough of Kensington and Chelsea,RBKC,,Statutory Year-End Adjustments,Statutory Year-End Adjustments,,Cavendish Construction LTD,1267193,,,,19/01/2023,2200295821,"40,373.18",,Special Maintenance,,,,,,No
The Royal Borough of Kensington and Chelsea,RBKC,,Statutory Year-End Adjustments,Statutory Year-End Adjustments,,Cavendish Construction LTD,1267193,,,,19/01/2023,2200295822,"10,093.16",,Special Maintenance,,,,,,No
The Royal Borough of Kensington and Chelsea,RBKC,,Statutory Year-End Adjustments,Statutory Year-End Adjustments,,Cavendish Construction LTD,1267193,,,,19/01/2023,2200295849,"32,695.44",,Special Maintenance,,,,,,No
The Royal Borough of Kensington and Chelsea,RBKC,,Statutory Year-End Adjustments,Statutory Year-End Adjustments,,Cavendish Construction LTD,1267193,,,,19/01/2023,2200295850,"39,302.63",,Special Maintenance,,,,,,No
The Royal Borough of Kensington and Chelsea,RBKC,,Statutory Year-End Adjustments,Statutory Year-End Adjustments,,Cavendish Construction LTD,1267193,,,,19/01/2023,2200295861,"16,215.00",,Special Maintenance,,,,,,No
The Royal Borough of Kensington and Chelsea,RBKC,,Statutory Year-End Adjustments,Statutory Year-End Adjustments,,Cavendish Construction LTD,1267193,,,,30/01/2023,2200297456,"39,515.01",,Special Maintenance,,,,,,No
The Royal Borough of Kensington and Chelsea,RBKC,,Statutory Year-End Adjustments,Statutory Year-End Adjustments,,Cavendish Construction LTD,1267193,,,,02/02/2023,2200298696,"22,675.23",,Special Maintenance,,,,,,No
The Royal Borough of Kensington and Chelsea,RBKC,,Statutory Year-End Adjustments,Statutory Year-End Adjustments,,Cavendish Construction LTD,1267193,,,,02/02/2023,2200298700,"21,858.20",,Special Maintenance,,,,,,No
The Royal Borough of Kensington and Chelsea,RBKC,,Statutory Year-End Adjustments,Statutory Year-End Adjustments,,Cavendish Construction LTD,1267193,,,,02/02/2023,2200298702,"22,073.63",,Special Maintenance,,,,,,No
The Royal Borough of Kensington and Chelsea,RBKC,,Statutory Year-End Adjustments,Statutory Year-End Adjustments,,Cavendish Construction LTD,1267193,,,,02/02/2023,2200298718,"38,537.25",,Special Maintenance,,,,,,No
The Royal Borough of Kensington and Chelsea,RBKC,,Statutory Year-End Adjustments,Statutory Year-End Adjustments,,Cavendish Construction LTD,1267193,,,,02/02/2023,2200298719,"36,319.99",,Special Maintenance,,,,,,No
The Royal Borough of Kensington and Chelsea,RBKC,,Statutory Year-End Adjustments,Statutory Year-End Adjustments,,Cavendish Construction LTD,1267193,,,,07/02/2023,2200299558,"16,675.00",,Special Maintenance,,,,,,No
The Royal Borough of Kensington and Chelsea,RBKC,,Statutory Year-End Adjustments,Statutory Year-End Adjustments,,Cavendish Construction LTD,1267193,,,,21/02/2023,2200302853,"13,069.18",,Special Maintenance,,,,,,No
The Royal Borough of Kensington and Chelsea,RBKC,,Statutory Year-End Adjustments,Statutory Year-End Adjustments,,Cavendish Construction LTD,1267193,,,,23/02/2023,2200303551,"11,314.82",,Special Maintenance,,,,,,No
The Royal Borough of Kensington and Chelsea,RBKC,,Statutory Year-End Adjustments,Statutory Year-End Adjustments,,Cavendish Construction LTD,1267193,,,,23/02/2023,2200303563,"24,794.86",,Special Maintenance,,,,,,No
The Royal Borough of Kensington and Chelsea,RBKC,,Statutory Year-End Adjustments,Statutory Year-End Adjustments,,Cavendish Construction LTD,1267193,,,,23/02/2023,2200303564,"27,523.75",,Special Maintenance,,,,,,No
The Royal Borough of Kensington and Chelsea,RBKC,,Statutory Year-End Adjustments,Statutory Year-End Adjustments,,Cavendish Construction LTD,1267193,,,,01/03/2023,2200304674,"16,100.00",,Special Maintenance,,,,,,No
The Royal Borough of Kensington and Chelsea,RBKC,,Statutory Year-End Adjustments,Statutory Year-End Adjustments,,Cavendish Construction LTD,1267193,,,,03/03/2023,2200305363,"42,827.31",,Special Maintenance,,,,,,No
The Royal Borough of Kensington and Chelsea,RBKC,,Statutory Year-End Adjustments,Statutory Year-End Adjustments,,Cavendish Construction LTD,1267193,,,,03/03/2023,2200305369,"12,650.00",,Special Maintenance,,,,,,No
The Royal Borough of Kensington and Chelsea,RBKC,,Statutory Year-End Adjustments,Statutory Year-End Adjustments,,Cavendish Construction LTD,1267193,,,,15/03/2023,2200308018,"35,152.34",,Special Maintenance,,,,,,No
The Royal Borough of Kensington and Chelsea,RBKC,,Statutory Year-End Adjustments,Statutory Year-End Adjustments,,Cavendish Construction LTD,1267193,,,,28/03/2023,2200311068,"27,766.12",,Special Maintenance,,,,,,No
The Royal Borough of Kensington and Chelsea,RBKC,,Statutory Year-End Adjustments,Statutory Year-End Adjustments,,Cavendish Construction LTD,1267193,,,,28/03/2023,2200311069,"40,704.36",,Special Maintenance,,,,,,No
The Royal Borough of Kensington and Chelsea,RBKC,,Statutory Year-End Adjustments,Statutory Year-End Adjustments,,Cavendish Construction LTD,1267193,,,,28/03/2023,2200311070,"12,603.50",,Special Maintenance,,,,,,No
The Royal Borough of Kensington and Chelsea,RBKC,,Statutory Year-End Adjustments,Statutory Year-End Adjustments,,Cavendish Construction LTD,1267193,,,,28/03/2023,2200311072,"32,508.42",,Special Maintenance,,,,,,No
The Royal Borough of Kensington and Chelsea,RBKC,,Statutory Year-End Adjustments,Statutory Year-End Adjustments,,Cavendish Construction LTD,1267193,,,,28/03/2023,2200311074,"11,454.50",,Special Maintenance,,,,,,No
The Royal Borough of Kensington and Chelsea,RBKC,,Statutory Year-End Adjustments,Statutory Year-End Adjustments,,Cavendish Construction LTD,1267193,,,,28/03/2023,2200311075,"11,454.50",,Special Maintenance,,,,,,No
The Royal Borough of Kensington and Chelsea,RBKC,,Statutory Year-End Adjustments,Statutory Year-End Adjustments,,Cavendish Construction LTD,1267193,,,,28/03/2023,2200311118,"11,454.50",,Special Maintenance,,,,,,No
The Royal Borough of Kensington and Chelsea,RBKC,,Statutory Year-End Adjustments,Statutory Year-End Adjustments,,Cavendish Construction LTD,1267193,,,,30/03/2023,2200311879,"12,075.00",,Special Maintenance,,,,,,No
The Royal Borough of Kensington and Chelsea,RBKC,,Statutory Year-End Adjustments,Statutory Year-End Adjustments,,Cavendish Construction LTD,1267193,,,,30/03/2023,2200311887,"22,500.00",,Special Maintenance,,,,,,No
The Royal Borough of Kensington and Chelsea,RBKC,,Statutory Year-End Adjustments,Statutory Year-End Adjustments,,Cenergist Ltd,1258887,,,,26/01/2023,2200297092,"23,579.04",,Payments to main contractor,,,,,,No
The Royal Borough of Kensington and Chelsea,RBKC,,Statutory Year-End Adjustments,Statutory Year-End Adjustments,,Cenergist Ltd,1258887,,,,23/02/2023,2200303487,"179,372.91",,Payments to main contractor,,,,,,No
The Royal Borough of Kensington and Chelsea,RBKC,,Statutory Year-End Adjustments,Statutory Year-End Adjustments,,Central Moves Uk Limited ,1233324,,,,07/02/2023,2200299550,977.5,,Payments to main contractor,,,,,,No
The Royal Borough of Kensington and Chelsea,RBKC,,Statutory Year-End Adjustments,Statutory Year-End Adjustments,,Central Moves Uk Limited ,1233324,,,,07/02/2023,2200299551,722.5,,Payments to main contractor,,,,,,No
The Royal Borough of Kensington and Chelsea,RBKC,,Statutory Year-End Adjustments,Statutory Year-End Adjustments,,Central Moves Uk Limited ,1233324,,,,07/02/2023,2200299552,658.75,,Payments to main contractor,,,,,,No
The Royal Borough of Kensington and Chelsea,RBKC,,Statutory Year-End Adjustments,Statutory Year-End Adjustments,,Central Moves Uk Limited ,1233324,,,,07/02/2023,2200299554,595,,Payments to main contractor,,,,,,No
The Royal Borough of Kensington and Chelsea,RBKC,,Statutory Year-End Adjustments,Statutory Year-End Adjustments,,Central Moves Uk Limited ,1233324,,,,14/02/2023,2200301202,"1,960.00",,Payments to main contractor,,,,,,No
The Royal Borough of Kensington and Chelsea,RBKC,,Statutory Year-End Adjustments,Statutory Year-End Adjustments,,Central Moves Uk Limited ,1233324,,,,14/02/2023,2200301217,720,,Payments to main contractor,,,,,,No
The Royal Borough of Kensington and Chelsea,RBKC,,Statutory Year-End Adjustments,Statutory Year-End Adjustments,,Central Moves Uk Limited ,1233324,,,,14/02/2023,2200301223,637.5,,Payments to main contractor,,,,,,No
The Royal Borough of Kensington and Chelsea,RBKC,,Statutory Year-End Adjustments,Statutory Year-End Adjustments,,Central Moves Uk Limited ,1233324,,,,14/02/2023,2200301235,"2,672.50",,Payments to main contractor,,,,,,No
The Royal Borough of Kensington and Chelsea,RBKC,,Statutory Year-End Adjustments,Statutory Year-End Adjustments,,Central Moves Uk Limited ,1233324,,,,21/02/2023,2200302860,"1,793.75",,Payments to main contractor,,,,,,No
The Royal Borough of Kensington and Chelsea,RBKC,,Statutory Year-End Adjustments,Statutory Year-End Adjustments,,Central Moves Uk Limited ,1233324,,,,15/03/2023,2200307959,807.5,,Payments to main contractor,,,,,,No
The Royal Borough of Kensington and Chelsea,RBKC,,Statutory Year-End Adjustments,Statutory Year-End Adjustments,,Central Moves Uk Limited ,1233324,,,,15/03/2023,2200307961,865,,Payments to main contractor,,,,,,No
The Royal Borough of Kensington and Chelsea,RBKC,,Statutory Year-End Adjustments,Statutory Year-End Adjustments,,Central Moves Uk Limited ,1233324,,,,15/03/2023,2200308047,635,,Payments to main contractor,,,,,,No
The Royal Borough of Kensington and Chelsea,RBKC,,Statutory Year-End Adjustments,Statutory Year-End Adjustments,,Central Moves Uk Limited ,1233324,,,,28/03/2023,2200311121,780,,Payments to main contractor,,,,,,No
The Royal Borough of Kensington and Chelsea,RBKC,,Statutory Year-End Adjustments,Statutory Year-End Adjustments,,Central Moves Uk Limited ,1233324,,,,28/03/2023,2200311122,"1,230.00",,Payments to main contractor,,,,,,No
The Royal Borough of Kensington and Chelsea,RBKC,,Statutory Year-End Adjustments,Statutory Year-End Adjustments,,Central Moves Uk Limited ,1233324,,,,28/03/2023,2200311123,"1,200.00",,Payments to main contractor,,,,,,No
The Royal Borough of Kensington and Chelsea,RBKC,,Statutory Year-End Adjustments,Statutory Year-End Adjustments,,Chapmanbdsp Limited,1270766,,,,22/03/2023,2200309430,500,,Payments to main contractor,,,,,,No
The Royal Borough of Kensington and Chelsea,RBKC,,Statutory Year-End Adjustments,Statutory Year-End Adjustments,,Checkmate Fire Solutions Ltd ,1231187,,,,18/01/2023,2200295535,"6,424.34",,Creditors Control : AP GRIR,,,,,,No
The Royal Borough of Kensington and Chelsea,RBKC,,Statutory Year-End Adjustments,Statutory Year-End Adjustments,,Checkmate Fire Solutions Ltd ,1231187,,,,19/01/2023,2200295650,"51,763.54",,Planned Maintenance (CM),,,,,,No
The Royal Borough of Kensington and Chelsea,RBKC,,Statutory Year-End Adjustments,Statutory Year-End Adjustments,,Checkmate Fire Solutions Ltd ,1231187,,,,02/02/2023,2200298603,"9,752.00",,Planned Maintenance (CM),,,,,,No
The Royal Borough of Kensington and Chelsea,RBKC,,Statutory Year-End Adjustments,Statutory Year-End Adjustments,,Checkmate Fire Solutions Ltd ,1231187,,,,20/03/2023,2200308984,"5,778.20",,Creditors Control : AP GRIR,,,,,,No
The Royal Borough of Kensington and Chelsea,RBKC,,Statutory Year-End Adjustments,Statutory Year-End Adjustments,,Chp Surveyors Limited,1233367,,,,26/01/2023,2200297042,"1,680.00",,Site Works,,,,,,No
The Royal Borough of Kensington and Chelsea,RBKC,,Statutory Year-End Adjustments,Statutory Year-End Adjustments,,Chris Edge Tree Care Ltd ,1233369,,,,10/02/2023,2200300566,"1,520.00",,Payments to main contractor,,,,,,No
The Royal Borough of Kensington and Chelsea,RBKC,,Statutory Year-End Adjustments,Statutory Year-End Adjustments,,City Electrical Factors,1263373,,,,10/01/2023,2200293723,"6,681.70",,Special Maintenance,,,,,,No
The Royal Borough of Kensington and Chelsea,RBKC,,Statutory Year-End Adjustments,Statutory Year-End Adjustments,,City Electrical Factors,1263373,,,,07/02/2023,2200299538,699.45,,Special Maintenance,,,,,,No
The Royal Borough of Kensington and Chelsea,RBKC,,Statutory Year-End Adjustments,Statutory Year-End Adjustments,,City Electrical Factors,1263373,,,,07/02/2023,2200299540,"5,897.05",,Special Maintenance,,,,,,No
The Royal Borough of Kensington and Chelsea,RBKC,,Statutory Year-End Adjustments,Statutory Year-End Adjustments,,City Electrical Factors,1263373,,,,07/02/2023,2200299547,934.75,,Special Maintenance,,,,,,No
The Royal Borough of Kensington and Chelsea,RBKC,,Statutory Year-End Adjustments,Statutory Year-End Adjustments,,City Electrical Factors,1263373,,,,30/03/2023,2200311881,583.8,,Special Maintenance,,,,,,No
The Royal Borough of Kensington and Chelsea,RBKC,,Statutory Year-End Adjustments,Statutory Year-End Adjustments,,City Electrical Factors,1263373,,,,30/03/2023,2200311883,"2,101.80",,Special Maintenance,,,,,,No
The Royal Borough of Kensington and Chelsea,RBKC,,Statutory Year-End Adjustments,Statutory Year-End Adjustments,,City Electrical Factors,1263373,,,,30/03/2023,2200311884,"1,852.70",,Special Maintenance,,,,,,No
The Royal Borough of Kensington and Chelsea,RBKC,,Statutory Year-End Adjustments,Statutory Year-End Adjustments,,City Of Westminster General Fund ,1231773,,,,03/03/2023,2200305417,"113,466.00",,Other Consultants,,,,,,No
The Royal Borough of Kensington and Chelsea,RBKC,,Statutory Year-End Adjustments,Statutory Year-End Adjustments,,Clean and Serene Ltd ,1233399,,,,03/03/2023,2200305345,"4,360.00",,Payments to main contractor,,,,,,No
The Royal Borough of Kensington and Chelsea,RBKC,,Statutory Year-End Adjustments,Statutory Year-End Adjustments,,Clockwork Removals ,1233410,,,,06/01/2023,2200292755,512,,Creditors Control : AP GRIR,,,,,,No
The Royal Borough of Kensington and Chelsea,RBKC,,Statutory Year-End Adjustments,Statutory Year-End Adjustments,,Clockwork Removals ,1233410,,,,13/01/2023,2200294451,"1,325.58",,Creditors Control : AP GRIR,,,,,,No
The Royal Borough of Kensington and Chelsea,RBKC,,Statutory Year-End Adjustments,Statutory Year-End Adjustments,,Clockwork Removals ,1233410,,,,18/01/2023,2200295469,879.31,,Planned Maintenance (CM),,,,,,No
The Royal Borough of Kensington and Chelsea,RBKC,,Statutory Year-End Adjustments,Statutory Year-End Adjustments,,Clockwork Removals ,1233410,,,,23/01/2023,2200296223,"1,479.22",,Creditors Control : AP GRIR,,,,,,No
The Royal Borough of Kensington and Chelsea,RBKC,,Statutory Year-End Adjustments,Statutory Year-End Adjustments,,Clockwork Removals ,1233410,,,,06/03/2023,2200305533,866.5,,Creditors Control : AP GRIR,,,,,,No
The Royal Borough of Kensington and Chelsea,RBKC,,Statutory Year-End Adjustments,Statutory Year-End Adjustments,,Clockwork Removals ,1233410,,,,06/03/2023,2200305604,"1,626.25",,Creditors Control : AP GRIR,,,,,,No
The Royal Borough of Kensington and Chelsea,RBKC,,Statutory Year-End Adjustments,Statutory Year-End Adjustments,,Clockwork Removals ,1233410,,,,13/03/2023,2200307144,"1,002.96",,Creditors Control : AP GRIR,,,,,,No
The Royal Borough of Kensington and Chelsea,RBKC,,Statutory Year-End Adjustments,Statutory Year-End Adjustments,,Clockwork Removals ,1233410,,,,13/03/2023,2200307144,"8,023.66",,Creditors Control : AP GRIR,,,,,,No
The Royal Borough of Kensington and Chelsea,RBKC,,Statutory Year-End Adjustments,Statutory Year-End Adjustments,,Cloud Booking Ltd ,1233413,,,,17/01/2023,2200294980,"3,367.32",,Computer Software,,,,,,No
The Royal Borough of Kensington and Chelsea,RBKC,,Statutory Year-End Adjustments,Statutory Year-End Adjustments,,Commercial Services Uk Ltd,1269853,,,,10/01/2023,3110511949,"49,826.83",,Payments to main contractor,,,,,,No
The Royal Borough of Kensington and Chelsea,RBKC,,Statutory Year-End Adjustments,Statutory Year-End Adjustments,,Commercial Services Uk Ltd,1269853,,,,17/01/2023,3110514164,"60,355.54",,Payments to main contractor,,,,,,No
The Royal Borough of Kensington and Chelsea,RBKC,,Statutory Year-End Adjustments,Statutory Year-End Adjustments,,Connected Response Limite,1265273,,,,16/03/2023,2200308290,"1,627.50",,Professional Fees : Non Legal,,,,,,No
The Royal Borough of Kensington and Chelsea,RBKC,,Statutory Year-End Adjustments,Statutory Year-End Adjustments,,Constellia Public Limited,1279396,,,,01/03/2023,2200304730,"71,701.13",,Architects,,,,,,No
The Royal Borough of Kensington and Chelsea,RBKC,,Statutory Year-End Adjustments,Statutory Year-End Adjustments,,Cromwell Engineering Ltd,1283342,,,,06/01/2023,2200292762,"12,479.64",,Planned Maintenance (CM),,,,,,No
The Royal Borough of Kensington and Chelsea,RBKC,,Statutory Year-End Adjustments,Statutory Year-End Adjustments,,Cromwell Engineering Ltd,1283342,,,,18/01/2023,2200295363,"12,129.00",,Payments to main contractor,,,,,,No
The Royal Borough of Kensington and Chelsea,RBKC,,Statutory Year-End Adjustments,Statutory Year-End Adjustments,,Cromwell Engineering Ltd,1283342,,,,27/01/2023,2200297336,"4,159.33",,Planned Maintenance (CM),,,,,,No
The Royal Borough of Kensington and Chelsea,RBKC,,Statutory Year-End Adjustments,Statutory Year-End Adjustments,,Cromwell Engineering Ltd,1283342,,,,27/02/2023,2200304224,"4,159.33",,Planned Maintenance (CM),,,,,,No
The Royal Borough of Kensington and Chelsea,RBKC,,Statutory Year-End Adjustments,Statutory Year-End Adjustments,,Croydon Council ,1231774,,,,17/01/2023,2200295108,"2,344.50",,Professional Fees : Non Legal,,,,,,No
The Royal Borough of Kensington and Chelsea,RBKC,,Statutory Year-End Adjustments,Statutory Year-End Adjustments,,Currie & Brown UK Ltd ,1233738,,,,30/01/2023,2200297496,800,,Other Consultants,,,,,,No
The Royal Borough of Kensington and Chelsea,RBKC,,Statutory Year-End Adjustments,Statutory Year-End Adjustments,,Currie & Brown UK Ltd ,1233738,,,,28/02/2023,2200304361,800,,Other Consultants,,,,,,No
The Royal Borough of Kensington and Chelsea,RBKC,,Statutory Year-End Adjustments,Statutory Year-End Adjustments,,Currie & Brown UK Ltd ,1233738,,,,27/03/2023,2200310721,800,,Other Consultants,,,,,,No
The Royal Borough of Kensington and Chelsea,RBKC,,Statutory Year-End Adjustments,Statutory Year-End Adjustments,,Cyclehoop Ltd ,1233744,,,,13/01/2023,2200294502,"12,624.00",,Payments to main contractor,,,,,,No
The Royal Borough of Kensington and Chelsea,RBKC,,Statutory Year-End Adjustments,Statutory Year-End Adjustments,,Cyclehoop Ltd ,1233744,,,,13/01/2023,2200294512,"1,865.00",,Payments to main contractor,,,,,,No
The Royal Borough of Kensington and Chelsea,RBKC,,Statutory Year-End Adjustments,Statutory Year-End Adjustments,,Cyclehoop Ltd ,1233744,,,,06/03/2023,2200305625,"71,536.00",,Payments to main contractor,,,,,,No
The Royal Borough of Kensington and Chelsea,RBKC,,Statutory Year-End Adjustments,Statutory Year-End Adjustments,,DAVID MILES & PARTNERS LIMITED,1290517,,,,28/03/2023,2200310865,"8,500.00",,Professional Fees : Non Legal,,,,,,No
The Royal Borough of Kensington and Chelsea,RBKC,,Statutory Year-End Adjustments,Statutory Year-End Adjustments,,Decontaminate UK Limited,1280985,,,,08/01/2023,2200293008,"11,775.00",,Site Works,,,,,,No
The Royal Borough of Kensington and Chelsea,RBKC,,Statutory Year-End Adjustments,Statutory Year-End Adjustments,,Decontaminate UK Limited,1280985,,,,10/01/2023,2200293769,"5,033.07",,Payments to main contractor,,,,,,No
The Royal Borough of Kensington and Chelsea,RBKC,,Statutory Year-End Adjustments,Statutory Year-End Adjustments,,Decontaminate UK Limited,1280985,,,,19/01/2023,2200295820,"1,225.22",,Payments to main contractor,,,,,,No
The Royal Borough of Kensington and Chelsea,RBKC,,Statutory Year-End Adjustments,Statutory Year-End Adjustments,,Decontaminate UK Limited,1280985,,,,24/02/2023,2200303765,"1,061.42",,Payments to main contractor,,,,,,No
The Royal Borough of Kensington and Chelsea,RBKC,,Statutory Year-End Adjustments,Statutory Year-End Adjustments,,Decontaminate UK Limited,1280985,,,,24/02/2023,2200303768,"3,992.03",,Special Maintenance,,,,,,No
The Royal Borough of Kensington and Chelsea,RBKC,,Statutory Year-End Adjustments,Statutory Year-End Adjustments,,Decontaminate UK Limited,1280985,,,,24/02/2023,2200303769,911.27,,Payments to main contractor,,,,,,No
The Royal Borough of Kensington and Chelsea,RBKC,,Statutory Year-End Adjustments,Statutory Year-End Adjustments,,Decontaminate UK Limited,1280985,,,,14/03/2023,2200307779,524.16,,Special Maintenance,,,,,,No
The Royal Borough of Kensington and Chelsea,RBKC,,Statutory Year-End Adjustments,Statutory Year-End Adjustments,,Decontaminate UK Limited,1280985,,,,14/03/2023,2200307781,"2,903.63",,Special Maintenance,,,,,,No
The Royal Borough of Kensington and Chelsea,RBKC,,Statutory Year-End Adjustments,Statutory Year-End Adjustments,,Decontaminate UK Limited,1280985,,,,14/03/2023,2200307782,"1,061.42",,Payments to main contractor,,,,,,No
The Royal Borough of Kensington and Chelsea,RBKC,,Statutory Year-End Adjustments,Statutory Year-End Adjustments,,Decontaminate UK Limited,1280985,,,,15/03/2023,2200307940,"1,904.45",,Special Maintenance,,,,,,No
The Royal Borough of Kensington and Chelsea,RBKC,,Statutory Year-End Adjustments,Statutory Year-End Adjustments,,Decontaminate UK Limited,1280985,,,,15/03/2023,2200307944,764.4,,Payments to main contractor,,,,,,No
The Royal Borough of Kensington and Chelsea,RBKC,,Statutory Year-End Adjustments,Statutory Year-End Adjustments,,Decontaminate UK Limited,1280985,,,,15/03/2023,2200307946,791.7,,Payments to main contractor,,,,,,No
The Royal Borough of Kensington and Chelsea,RBKC,,Statutory Year-End Adjustments,Statutory Year-End Adjustments,,Decontaminate UK Limited,1280985,,,,20/03/2023,2200308739,900,,Professional Fees : Non Legal,,,,,,No
The Royal Borough of Kensington and Chelsea,RBKC,,Statutory Year-End Adjustments,Statutory Year-End Adjustments,,Decontaminate UK Limited,1280985,,,,30/03/2023,2200311893,665.2,,Payments to main contractor,,,,,,No
The Royal Borough of Kensington and Chelsea,RBKC,,Statutory Year-End Adjustments,Statutory Year-End Adjustments,,Delva Patman Redler LLP,1271465,,,,21/02/2023,2200302778,"1,849.00",,Other Consultants,,,,,,No
The Royal Borough of Kensington and Chelsea,RBKC,,Statutory Year-End Adjustments,Statutory Year-End Adjustments,,Delva Patman Redler LLP,1271465,,,,21/03/2023,2200309132,"12,562.10",,Other Consultants,,,,,,No
The Royal Borough of Kensington and Chelsea,RBKC,,Statutory Year-End Adjustments,Statutory Year-End Adjustments,,Delva Patman Redler LLP,1271465,,,,21/03/2023,2200309133,"1,558.75",,Other Consultants,,,,,,No
The Royal Borough of Kensington and Chelsea,RBKC,,Statutory Year-End Adjustments,Statutory Year-End Adjustments,,Derisk (UK) Limited ,1233980,,,,06/01/2023,2200292850,"3,796.29",,Professional Fees : Non Legal,,,,,,No
The Royal Borough of Kensington and Chelsea,RBKC,,Statutory Year-End Adjustments,Statutory Year-End Adjustments,,Derisk (UK) Limited ,1233980,,,,09/01/2023,2200293085,"1,344.00",,Site Supervision,,,,,,No
The Royal Borough of Kensington and Chelsea,RBKC,,Statutory Year-End Adjustments,Statutory Year-End Adjustments,,Derisk (UK) Limited ,1233980,,,,09/01/2023,2200293086,"1,040.40",,Site Supervision,,,,,,No
The Royal Borough of Kensington and Chelsea,RBKC,,Statutory Year-End Adjustments,Statutory Year-End Adjustments,,Derisk (UK) Limited ,1233980,,,,09/01/2023,2200293087,"1,008.00",,Site Supervision,,,,,,No
The Royal Borough of Kensington and Chelsea,RBKC,,Statutory Year-End Adjustments,Statutory Year-End Adjustments,,Derisk (UK) Limited ,1233980,,,,09/01/2023,2200293088,"1,387.20",,Site Supervision,,,,,,No
The Royal Borough of Kensington and Chelsea,RBKC,,Statutory Year-End Adjustments,Statutory Year-End Adjustments,,Derisk (UK) Limited ,1233980,,,,09/01/2023,2200293134,"2,640.00",,Professional Fees : Non Legal,,,,,,No
The Royal Borough of Kensington and Chelsea,RBKC,,Statutory Year-End Adjustments,Statutory Year-End Adjustments,,Derisk (UK) Limited ,1233980,,,,11/01/2023,2200293968,"2,640.00",,Professional Fees : Non Legal,,,,,,No
The Royal Borough of Kensington and Chelsea,RBKC,,Statutory Year-End Adjustments,Statutory Year-End Adjustments,,Derisk (UK) Limited ,1233980,,,,11/01/2023,2200294159,990,,Professional Fees : Non Legal,,,,,,No
The Royal Borough of Kensington and Chelsea,RBKC,,Statutory Year-End Adjustments,Statutory Year-End Adjustments,,Derisk (UK) Limited ,1233980,,,,11/01/2023,2200294160,947.8,,Professional Fees : Non Legal,,,,,,No
The Royal Borough of Kensington and Chelsea,RBKC,,Statutory Year-End Adjustments,Statutory Year-End Adjustments,,Derisk (UK) Limited ,1233980,,,,25/01/2023,2200296832,695,,Other Consultants,,,,,,No
The Royal Borough of Kensington and Chelsea,RBKC,,Statutory Year-End Adjustments,Statutory Year-End Adjustments,,Derisk (UK) Limited ,1233980,,,,25/01/2023,2200296834,695,,Other Consultants,,,,,,No
The Royal Borough of Kensington and Chelsea,RBKC,,Statutory Year-End Adjustments,Statutory Year-End Adjustments,,Derisk (UK) Limited ,1233980,,,,25/01/2023,2200296835,695,,Other Consultants,,,,,,No
The Royal Borough of Kensington and Chelsea,RBKC,,Statutory Year-End Adjustments,Statutory Year-End Adjustments,,Derisk (UK) Limited ,1233980,,,,31/01/2023,2200297817,995,,Other Consultants,,,,,,No
The Royal Borough of Kensington and Chelsea,RBKC,,Statutory Year-End Adjustments,Statutory Year-End Adjustments,,Derisk (UK) Limited ,1233980,,,,02/02/2023,2200298601,"1,822.52",,Professional Fees : Non Legal,,,,,,No
The Royal Borough of Kensington and Chelsea,RBKC,,Statutory Year-End Adjustments,Statutory Year-End Adjustments,,Derisk (UK) Limited ,1233980,,,,02/02/2023,2200298620,"8,580.00",,Professional Fees : Non Legal,,,,,,No
The Royal Borough of Kensington and Chelsea,RBKC,,Statutory Year-End Adjustments,Statutory Year-End Adjustments,,Derisk (UK) Limited ,1233980,,,,02/02/2023,2200298634,907.2,,Professional Fees : Non Legal,,,,,,No
The Royal Borough of Kensington and Chelsea,RBKC,,Statutory Year-End Adjustments,Statutory Year-End Adjustments,,Derisk (UK) Limited ,1233980,,,,07/02/2023,2200299432,766.67,,Payments to main contractor,,,,,,No
The Royal Borough of Kensington and Chelsea,RBKC,,Statutory Year-End Adjustments,Statutory Year-End Adjustments,,Derisk (UK) Limited ,1233980,,,,07/02/2023,2200299433,766.67,,Payments to main contractor,,,,,,No
The Royal Borough of Kensington and Chelsea,RBKC,,Statutory Year-End Adjustments,Statutory Year-End Adjustments,,Derisk (UK) Limited ,1233980,,,,07/02/2023,2200299495,672,,Site Supervision,,,,,,No
The Royal Borough of Kensington and Chelsea,RBKC,,Statutory Year-End Adjustments,Statutory Year-End Adjustments,,Derisk (UK) Limited ,1233980,,,,08/02/2023,2200299821,"2,310.31",,Design Consultant,,,,,,No
The Royal Borough of Kensington and Chelsea,RBKC,,Statutory Year-End Adjustments,Statutory Year-End Adjustments,,Derisk (UK) Limited ,1233980,,,,08/02/2023,2200299887,595,,Professional Fees : Non Legal,,,,,,No
The Royal Borough of Kensington and Chelsea,RBKC,,Statutory Year-End Adjustments,Statutory Year-End Adjustments,,Derisk (UK) Limited ,1233980,,,,16/02/2023,2200301648,766.67,,Payments to main contractor,,,,,,No
The Royal Borough of Kensington and Chelsea,RBKC,,Statutory Year-End Adjustments,Statutory Year-End Adjustments,,Derisk (UK) Limited ,1233980,,,,16/02/2023,2200301661,766.67,,Payments to main contractor,,,,,,No
The Royal Borough of Kensington and Chelsea,RBKC,,Statutory Year-End Adjustments,Statutory Year-End Adjustments,,Derisk (UK) Limited ,1233980,,,,16/02/2023,2200301766,595,,Professional Fees : Non Legal,,,,,,No
The Royal Borough of Kensington and Chelsea,RBKC,,Statutory Year-End Adjustments,Statutory Year-End Adjustments,,Derisk (UK) Limited ,1233980,,,,27/02/2023,2200304214,"2,271.80",,Professional Fees : Non Legal,,,,,,No
The Royal Borough of Kensington and Chelsea,RBKC,,Statutory Year-End Adjustments,Statutory Year-End Adjustments,,Derisk (UK) Limited ,1233980,,,,27/02/2023,2200304215,"1,496.80",,Professional Fees : Non Legal,,,,,,No
The Royal Borough of Kensington and Chelsea,RBKC,,Statutory Year-End Adjustments,Statutory Year-End Adjustments,,Derisk (UK) Limited ,1233980,,,,27/02/2023,2200304218,"2,651.20",,Professional Fees : Non Legal,,,,,,No
The Royal Borough of Kensington and Chelsea,RBKC,,Statutory Year-End Adjustments,Statutory Year-End Adjustments,,Derisk (UK) Limited ,1233980,,,,27/02/2023,2200304225,"1,239.42",,Professional Fees : Non Legal,,,,,,No
The Royal Borough of Kensington and Chelsea,RBKC,,Statutory Year-End Adjustments,Statutory Year-End Adjustments,,Derisk (UK) Limited ,1233980,,,,28/02/2023,2200304294,"3,920.00",,Professional Fees : Non Legal,,,,,,No
The Royal Borough of Kensington and Chelsea,RBKC,,Statutory Year-End Adjustments,Statutory Year-End Adjustments,,Derisk (UK) Limited ,1233980,,,,28/02/2023,2200304299,550,,Professional Fees : Non Legal,,,,,,No
The Royal Borough of Kensington and Chelsea,RBKC,,Statutory Year-End Adjustments,Statutory Year-End Adjustments,,Derisk (UK) Limited ,1233980,,,,28/02/2023,2200304410,"1,067.77",,Professional Fees : Non Legal,,,,,,No
The Royal Borough of Kensington and Chelsea,RBKC,,Statutory Year-End Adjustments,Statutory Year-End Adjustments,,Derisk (UK) Limited ,1233980,,,,07/03/2023,2200306104,695,,Other Consultants,,,,,,No
The Royal Borough of Kensington and Chelsea,RBKC,,Statutory Year-End Adjustments,Statutory Year-End Adjustments,,Derisk (UK) Limited ,1233980,,,,11/03/2023,2200307098,"1,193.12",,Professional Fees : Non Legal,,,,,,No
The Royal Borough of Kensington and Chelsea,RBKC,,Statutory Year-End Adjustments,Statutory Year-End Adjustments,,Derisk (UK) Limited ,1233980,,,,22/03/2023,2200309405,766.67,,Payments to main contractor,,,,,,No
The Royal Borough of Kensington and Chelsea,RBKC,,Statutory Year-End Adjustments,Statutory Year-End Adjustments,,Derisk (UK) Limited ,1233980,,,,29/03/2023,2200311311,766.67,,Payments to main contractor,,,,,,No
The Royal Borough of Kensington and Chelsea,RBKC,,Statutory Year-End Adjustments,Statutory Year-End Adjustments,,Dma Signs Ltd ,1234013,,,,16/03/2023,2200308146,538.7,,Payments to main contractor,,,,,,No
The Royal Borough of Kensington and Chelsea,RBKC,,Statutory Year-End Adjustments,Statutory Year-End Adjustments,,Dolphin Mobility Ltd,1280897,,,,22/02/2023,2200303158,"4,495.00",,Payments to main contractor,,,,,,No
The Royal Borough of Kensington and Chelsea,RBKC,,Statutory Year-End Adjustments,Statutory Year-End Adjustments,,Door Plus Ltd,1265703,,,,17/03/2023,2200308488,"2,410.75",,Payments to main contractor,,,,,,No
The Royal Borough of Kensington and Chelsea,RBKC,,Statutory Year-End Adjustments,Statutory Year-End Adjustments,,Doorway Maintenance Co ,1231196,,,,09/02/2023,2200300394,"4,694.00",,Site Works,,,,,,No
The Royal Borough of Kensington and Chelsea,RBKC,,Statutory Year-End Adjustments,Statutory Year-End Adjustments,,Doorway Maintenance Co ,1231196,,,,01/03/2023,2200304649,"12,995.00",,Payments to main contractor,,,,,,No
The Royal Borough of Kensington and Chelsea,RBKC,,Statutory Year-End Adjustments,Statutory Year-End Adjustments,,Doorway Maintenance Co ,1231196,,,,07/03/2023,2200306034,"4,995.00",,Payments to main contractor,,,,,,No
The Royal Borough of Kensington and Chelsea,RBKC,,Statutory Year-End Adjustments,Statutory Year-End Adjustments,,Doorway Maintenance Co ,1231196,,,,07/03/2023,2200306160,"2,895.00",,Payments to main contractor,,,,,,No
The Royal Borough of Kensington and Chelsea,RBKC,,Statutory Year-End Adjustments,Statutory Year-End Adjustments,,Doorway Maintenance Co ,1231196,,,,13/03/2023,2200307193,"7,295.00",,Payments to main contractor,,,,,,No
The Royal Borough of Kensington and Chelsea,RBKC,,Statutory Year-End Adjustments,Statutory Year-End Adjustments,,Dovista UK Limited,1284734,,,,16/03/2023,2200308248,"1,022.84",,Construction : enhancements,,,,,,No
The Royal Borough of Kensington and Chelsea,RBKC,,Statutory Year-End Adjustments,Statutory Year-End Adjustments,,Dovista UK Limited,1284734,,,,16/03/2023,2200308249,652,,Construction : enhancements,,,,,,No
The Royal Borough of Kensington and Chelsea,RBKC,,Statutory Year-End Adjustments,Statutory Year-End Adjustments,,Dovista UK Limited,1284734,,,,31/03/2023,2200312154,"4,016.16",,Construction : enhancements,,,,,,No
The Royal Borough of Kensington and Chelsea,RBKC,,Statutory Year-End Adjustments,Statutory Year-End Adjustments,,ECD Architects Ltd,1234067,,,,20/01/2023,2200296122,"2,467.50",,Payments to main contractor,,,,,,No
The Royal Borough of Kensington and Chelsea,RBKC,,Statutory Year-End Adjustments,Statutory Year-End Adjustments,,ECD Architects Ltd,1234067,,,,20/01/2023,2200296123,"1,260.00",,Payments to main contractor,,,,,,No
The Royal Borough of Kensington and Chelsea,RBKC,,Statutory Year-End Adjustments,Statutory Year-End Adjustments,,ECD Architects Ltd,1234067,,,,26/01/2023,2200296975,"1,260.00",,Payments to main contractor,,,,,,No
The Royal Borough of Kensington and Chelsea,RBKC,,Statutory Year-End Adjustments,Statutory Year-End Adjustments,,ECD Architects Ltd,1234067,,,,31/01/2023,2200297841,"2,467.50",,Payments to main contractor,,,,,,No
The Royal Borough of Kensington and Chelsea,RBKC,,Statutory Year-End Adjustments,Statutory Year-End Adjustments,,ECD Architects Ltd,1234067,,,,15/02/2023,2200301410,"2,000.00",,Payments to main contractor,,,,,,No
The Royal Borough of Kensington and Chelsea,RBKC,,Statutory Year-End Adjustments,Statutory Year-End Adjustments,,ECD Architects Ltd,1234067,,,,15/02/2023,2200301411,"1,500.00",,Payments to main contractor,,,,,,No
The Royal Borough of Kensington and Chelsea,RBKC,,Statutory Year-End Adjustments,Statutory Year-End Adjustments,,ECD Architects Ltd,1234067,,,,06/03/2023,2200305592,"1,000.00",,Payments to main contractor,,,,,,No
The Royal Borough of Kensington and Chelsea,RBKC,,Statutory Year-End Adjustments,Statutory Year-End Adjustments,,ECD Architects Ltd,1234067,,,,22/03/2023,2200309518,"3,000.00",,Professional Fees : Non Legal,,,,,,No
The Royal Borough of Kensington and Chelsea,RBKC,,Statutory Year-End Adjustments,Statutory Year-End Adjustments,,ECD Architects Ltd,1234067,,,,27/03/2023,2200310629,"65,000.00",,Payments to main contractor,,,,,,No
The Royal Borough of Kensington and Chelsea,RBKC,,Statutory Year-End Adjustments,Statutory Year-End Adjustments,,ET Training Limited,1302354,,,,07/02/2023,2200299645,"10,450.00",,Other Consultants,,,,,,No
The Royal Borough of Kensington and Chelsea,RBKC,,Statutory Year-End Adjustments,Statutory Year-End Adjustments,,ETEC Contract Services Ltd,1298114,,,,14/02/2023,2200300982,"77,944.80",,Site Works,,,,,,No
The Royal Borough of Kensington and Chelsea,RBKC,,Statutory Year-End Adjustments,Statutory Year-End Adjustments,,ETEC Contract Services Ltd,1298114,,,,20/02/2023,2200302484,"76,511.91",,Site Works,,,,,,No
The Royal Borough of Kensington and Chelsea,RBKC,,Statutory Year-End Adjustments,Statutory Year-End Adjustments,,ETEC Contract Services Ltd,1298114,,,,31/03/2023,2200312151,"100,890.70",,Site Works,,,,,,No
The Royal Borough of Kensington and Chelsea,RBKC,,Statutory Year-End Adjustments,Statutory Year-End Adjustments,,Earl Kendrick (London) Limited,1288229,,,,03/03/2023,2200305415,550,,Other Consultants,,,,,,No
The Royal Borough of Kensington and Chelsea,RBKC,,Statutory Year-End Adjustments,Statutory Year-End Adjustments,,Earl Kendrick (London) Limited,1288229,,,,03/03/2023,2200305416,550,,Other Consultants,,,,,,No
The Royal Borough of Kensington and Chelsea,RBKC,,Statutory Year-End Adjustments,Statutory Year-End Adjustments,,Earl Kendrick (London) Limited,1288229,,,,17/03/2023,2200308570,"2,160.00",,Site Works,,,,,,No
The Royal Borough of Kensington and Chelsea,RBKC,,Statutory Year-End Adjustments,Statutory Year-End Adjustments,,Earl Kendrick (London) Limited,1288229,,,,22/03/2023,2200309569,550,,Other Consultants,,,,,,No
The Royal Borough of Kensington and Chelsea,RBKC,,Statutory Year-End Adjustments,Statutory Year-End Adjustments,,Earl Kendrick (London) Limited,1288229,,,,22/03/2023,2200309570,550,,Other Consultants,,,,,,No
The Royal Borough of Kensington and Chelsea,RBKC,,Statutory Year-End Adjustments,Statutory Year-End Adjustments,,Emisphere Ltd ,1231200,,,,27/02/2023,2200303972,"13,540.00",,Payments to main contractor,,,,,,No
The Royal Borough of Kensington and Chelsea,RBKC,,Statutory Year-End Adjustments,Statutory Year-End Adjustments,,Emisphere Ltd ,1231200,,,,27/02/2023,2200304191,"7,090.00",,Payments to main contractor,,,,,,No
The Royal Borough of Kensington and Chelsea,RBKC,,Statutory Year-End Adjustments,Statutory Year-End Adjustments,,Emisphere Ltd ,1231200,,,,17/03/2023,2200308487,"6,870.00",,Payments to main contractor,,,,,,No
The Royal Borough of Kensington and Chelsea,RBKC,,Statutory Year-End Adjustments,Statutory Year-End Adjustments,,Emisphere Ltd ,1231200,,,,31/03/2023,2200311990,"7,650.00",,Payments to main contractor,,,,,,No
The Royal Borough of Kensington and Chelsea,RBKC,,Statutory Year-End Adjustments,Statutory Year-End Adjustments,,Energy Gardens Limited,1290556,,,,08/02/2023,2200299996,"60,000.00",,Creditors Control : AP GRIR,,,,,,No
The Royal Borough of Kensington and Chelsea,RBKC,,Statutory Year-End Adjustments,Statutory Year-End Adjustments,,Envirotech Building Services Ltd,1298812,,,,09/01/2023,2200293509,"23,587.20",,Site Works,,,,,,No
The Royal Borough of Kensington and Chelsea,RBKC,,Statutory Year-End Adjustments,Statutory Year-End Adjustments,,Envirotech Building Services Ltd,1298812,,,,21/03/2023,2200309138,"54,000.36",,Site Works,,,,,,No
The Royal Borough of Kensington and Chelsea,RBKC,,Statutory Year-End Adjustments,Statutory Year-End Adjustments,,Etude Consulting Limited,1269026,,,,09/03/2023,2200306693,"1,780.00",,Site Works,,,,,,No
The Royal Borough of Kensington and Chelsea,RBKC,,Statutory Year-End Adjustments,Statutory Year-End Adjustments,,EXCLUSIVE LEISURE LTD,1278378,,,,07/03/2023,2200306038,"2,240.00",,Construction : enhancements,,,,,,No
The Royal Borough of Kensington and Chelsea,RBKC,,Statutory Year-End Adjustments,Statutory Year-End Adjustments,,F.M Conway Ltd ,1231208,,,,04/01/2023,2200292378,"60,000.00",,Payments to main contractor,,,,,,No
The Royal Borough of Kensington and Chelsea,RBKC,,Statutory Year-End Adjustments,Statutory Year-End Adjustments,,F.M Conway Ltd ,1231208,,,,05/01/2023,2200292572,"1,021.50",,Payments to main contractor,,,,,,No
The Royal Borough of Kensington and Chelsea,RBKC,,Statutory Year-End Adjustments,Statutory Year-End Adjustments,,F.M Conway Ltd ,1231208,,,,05/01/2023,2200292575,"6,378.91",,Construction : enhancements,,,,,,No
The Royal Borough of Kensington and Chelsea,RBKC,,Statutory Year-End Adjustments,Statutory Year-End Adjustments,,F.M Conway Ltd ,1231208,,,,05/01/2023,2200292579,"4,295.04",,Construction : enhancements,,,,,,No
The Royal Borough of Kensington and Chelsea,RBKC,,Statutory Year-End Adjustments,Statutory Year-End Adjustments,,F.M Conway Ltd ,1231208,,,,06/01/2023,2200292770,"2,328.30",,Payments to main contractor,,,,,,No
The Royal Borough of Kensington and Chelsea,RBKC,,Statutory Year-End Adjustments,Statutory Year-End Adjustments,,F.M Conway Ltd ,1231208,,,,16/01/2023,2200294766,"2,286.78",,Construction : enhancements,,,,,,No
The Royal Borough of Kensington and Chelsea,RBKC,,Statutory Year-End Adjustments,Statutory Year-End Adjustments,,F.M Conway Ltd ,1231208,,,,16/01/2023,2200294767,"1,246.36",,Construction : enhancements,,,,,,No
The Royal Borough of Kensington and Chelsea,RBKC,,Statutory Year-End Adjustments,Statutory Year-End Adjustments,,F.M Conway Ltd ,1231208,,,,18/01/2023,2200295513,"23,533.89",,Other capital equipment,,,,,,No
The Royal Borough of Kensington and Chelsea,RBKC,,Statutory Year-End Adjustments,Statutory Year-End Adjustments,,F.M Conway Ltd ,1231208,,,,20/01/2023,2200296054,"2,157.36",,Payments to main contractor,,,,,,No
The Royal Borough of Kensington and Chelsea,RBKC,,Statutory Year-End Adjustments,Statutory Year-End Adjustments,,F.M Conway Ltd ,1231208,,,,20/01/2023,2200296101,"18,826.56",,Payments to main contractor,,,,,,No
The Royal Borough of Kensington and Chelsea,RBKC,,Statutory Year-End Adjustments,Statutory Year-End Adjustments,,F.M Conway Ltd ,1231208,,,,20/01/2023,2200296105,"103,032.65",,Payments to main contractor,,,,,,No
The Royal Borough of Kensington and Chelsea,RBKC,,Statutory Year-End Adjustments,Statutory Year-End Adjustments,,F.M Conway Ltd ,1231208,,,,24/01/2023,2200296712,"33,704.33",,Construction : enhancements,,,,,,No
The Royal Borough of Kensington and Chelsea,RBKC,,Statutory Year-End Adjustments,Statutory Year-End Adjustments,,F.M Conway Ltd ,1231208,,,,31/01/2023,2200297915,620.92,,Payments to main contractor,,,,,,No
The Royal Borough of Kensington and Chelsea,RBKC,,Statutory Year-End Adjustments,Statutory Year-End Adjustments,,F.M Conway Ltd ,1231208,,,,03/02/2023,2200299007,"21,910.80",,Payments to main contractor,,,,,,No
The Royal Borough of Kensington and Chelsea,RBKC,,Statutory Year-End Adjustments,Statutory Year-End Adjustments,,F.M Conway Ltd ,1231208,,,,13/02/2023,2200300830,"1,645.72",,Payments to main contractor,,,,,,No
The Royal Borough of Kensington and Chelsea,RBKC,,Statutory Year-End Adjustments,Statutory Year-End Adjustments,,F.M Conway Ltd ,1231208,,,,20/02/2023,2200302545,"210,000.00",,Payments to main contractor,,,,,,No
The Royal Borough of Kensington and Chelsea,RBKC,,Statutory Year-End Adjustments,Statutory Year-End Adjustments,,F.M Conway Ltd ,1231208,,,,22/02/2023,2200302912,"3,855.82",,Site Works,,,,,,No
The Royal Borough of Kensington and Chelsea,RBKC,,Statutory Year-End Adjustments,Statutory Year-End Adjustments,,F.M Conway Ltd ,1231208,,,,22/02/2023,2200303091,"34,000.00",,Construction : enhancements,,,,,,No
The Royal Borough of Kensington and Chelsea,RBKC,,Statutory Year-End Adjustments,Statutory Year-End Adjustments,,F.M Conway Ltd ,1231208,,,,22/02/2023,2200303105,"29,364.56",,Payments to main contractor,,,,,,No
The Royal Borough of Kensington and Chelsea,RBKC,,Statutory Year-End Adjustments,Statutory Year-End Adjustments,,F.M Conway Ltd ,1231208,,,,22/02/2023,2200303107,"92,798.49",,Payments to main contractor,,,,,,No
The Royal Borough of Kensington and Chelsea,RBKC,,Statutory Year-End Adjustments,Statutory Year-End Adjustments,,F.M Conway Ltd ,1231208,,,,23/02/2023,2200303439,"11,481.96",,Payments to main contractor,,,,,,No
The Royal Borough of Kensington and Chelsea,RBKC,,Statutory Year-End Adjustments,Statutory Year-End Adjustments,,F.M Conway Ltd ,1231208,,,,24/02/2023,2200303633,"11,034.95",,Construction : enhancements,,,,,,No
The Royal Borough of Kensington and Chelsea,RBKC,,Statutory Year-End Adjustments,Statutory Year-End Adjustments,,F.M Conway Ltd ,1231208,,,,27/02/2023,2200304244,"108,664.96",,Payments to main contractor,,,,,,No
The Royal Borough of Kensington and Chelsea,RBKC,,Statutory Year-End Adjustments,Statutory Year-End Adjustments,,F.M Conway Ltd ,1231208,,,,27/02/2023,2200304245,"110,000.00",,Payments to main contractor,,,,,,No
The Royal Borough of Kensington and Chelsea,RBKC,,Statutory Year-End Adjustments,Statutory Year-End Adjustments,,F.M Conway Ltd ,1231208,,,,27/02/2023,2200304246,"24,600.00",,Payments to main contractor,,,,,,No
The Royal Borough of Kensington and Chelsea,RBKC,,Statutory Year-End Adjustments,Statutory Year-End Adjustments,,F.M Conway Ltd ,1231208,,,,01/03/2023,2200304819,"15,281.15",,Payments to main contractor,,,,,,No
The Royal Borough of Kensington and Chelsea,RBKC,,Statutory Year-End Adjustments,Statutory Year-End Adjustments,,F.M Conway Ltd ,1231208,,,,01/03/2023,2200304850,755.2,,Payments to main contractor,,,,,,No
The Royal Borough of Kensington and Chelsea,RBKC,,Statutory Year-End Adjustments,Statutory Year-End Adjustments,,F.M Conway Ltd ,1231208,,,,08/03/2023,2200306437,827.54,,Payments to main contractor,,,,,,No
The Royal Borough of Kensington and Chelsea,RBKC,,Statutory Year-End Adjustments,Statutory Year-End Adjustments,,F.M Conway Ltd ,1231208,,,,14/03/2023,2200307640,"200,856.21",,Construction : enhancements,,,,,,No
The Royal Borough of Kensington and Chelsea,RBKC,,Statutory Year-End Adjustments,Statutory Year-End Adjustments,,F.M Conway Ltd ,1231208,,,,21/03/2023,2200309323,"42,364.44",,Payments to main contractor,,,,,,No
The Royal Borough of Kensington and Chelsea,RBKC,,Statutory Year-End Adjustments,Statutory Year-End Adjustments,,F.M Conway Ltd ,1231208,,,,23/03/2023,2200309777,"1,210.65",,Payments to main contractor,,,,,,No
The Royal Borough of Kensington and Chelsea,RBKC,,Statutory Year-End Adjustments,Statutory Year-End Adjustments,,F.M Conway Ltd ,1231208,,,,31/03/2023,2200312221,"24,034.57",,Payments to main contractor,,,,,,No
The Royal Borough of Kensington and Chelsea,RBKC,,Statutory Year-End Adjustments,Statutory Year-End Adjustments,,Focus Furnishing ,1234438,,,,24/01/2023,2200296658,"1,658.00",,Special Maintenance,,,,,,No
The Royal Borough of Kensington and Chelsea,RBKC,,Statutory Year-End Adjustments,Statutory Year-End Adjustments,,Focus Furnishing ,1234438,,,,26/01/2023,2200297004,575.8,,Professional Fees : Non Legal,,,,,,No
The Royal Borough of Kensington and Chelsea,RBKC,,Statutory Year-End Adjustments,Statutory Year-End Adjustments,,Focus Furnishing ,1234438,,,,27/01/2023,2200297302,879.4,,Professional Fees : Non Legal,,,,,,No
The Royal Borough of Kensington and Chelsea,RBKC,,Statutory Year-End Adjustments,Statutory Year-End Adjustments,,Freeway Lift Services Ltd ,1231213,,,,20/03/2023,2200309023,"2,901.00",,Payments to main contractor,,,,,,No
The Royal Borough of Kensington and Chelsea,RBKC,,Statutory Year-End Adjustments,Statutory Year-End Adjustments,,Freeway Lift Services Ltd ,1231213,,,,30/03/2023,2200311680,"21,325.00",,Payments to main contractor,,,,,,No
The Royal Borough of Kensington and Chelsea,RBKC,,Statutory Year-End Adjustments,Statutory Year-End Adjustments,,Freeway Lift Services Ltd ,1231213,,,,31/03/2023,2200311985,"16,511.00",,Payments to main contractor,,,,,,No
The Royal Borough of Kensington and Chelsea,RBKC,,Statutory Year-End Adjustments,Statutory Year-End Adjustments,,Fusion Project Management Ltd,1268369,,,,10/01/2023,2200293593,"5,000.00",,Other Consultants,,,,,,No
The Royal Borough of Kensington and Chelsea,RBKC,,Statutory Year-End Adjustments,Statutory Year-End Adjustments,,Fusion Project Management Ltd,1268369,,,,17/01/2023,2200294956,"3,500.00",,Other Consultants,,,,,,No
The Royal Borough of Kensington and Chelsea,RBKC,,Statutory Year-End Adjustments,Statutory Year-End Adjustments,,Fusion Project Management Ltd,1268369,,,,17/01/2023,2200294958,"1,314.50",,Other Consultants,,,,,,No
The Royal Borough of Kensington and Chelsea,RBKC,,Statutory Year-End Adjustments,Statutory Year-End Adjustments,,Fusion Project Management Ltd,1268369,,,,17/01/2023,2200294959,"1,314.50",,Other Consultants,,,,,,No
The Royal Borough of Kensington and Chelsea,RBKC,,Statutory Year-End Adjustments,Statutory Year-End Adjustments,,Fusion Project Management Ltd,1268369,,,,17/01/2023,2200294964,"1,350.00",,Other Consultants,,,,,,No
The Royal Borough of Kensington and Chelsea,RBKC,,Statutory Year-End Adjustments,Statutory Year-End Adjustments,,Fusion Project Management Ltd,1268369,,,,17/01/2023,2200294965,"1,750.00",,Other Consultants,,,,,,No
The Royal Borough of Kensington and Chelsea,RBKC,,Statutory Year-End Adjustments,Statutory Year-End Adjustments,,Fusion Project Management Ltd,1268369,,,,17/01/2023,2200294966,"5,000.00",,Other Consultants,,,,,,No
The Royal Borough of Kensington and Chelsea,RBKC,,Statutory Year-End Adjustments,Statutory Year-End Adjustments,,Fusion Project Management Ltd,1268369,,,,17/01/2023,2200295027,"4,100.00",,Payments to main contractor,,,,,,No
The Royal Borough of Kensington and Chelsea,RBKC,,Statutory Year-End Adjustments,Statutory Year-End Adjustments,,Fusion Project Management Ltd,1268369,,,,31/01/2023,2200297879,"1,500.00",,Payments to main contractor,,,,,,No
The Royal Borough of Kensington and Chelsea,RBKC,,Statutory Year-End Adjustments,Statutory Year-End Adjustments,,Fusion Project Management Ltd,1268369,,,,31/01/2023,2200297880,"20,232.00",,Payments to main contractor,,,,,,No
The Royal Borough of Kensington and Chelsea,RBKC,,Statutory Year-End Adjustments,Statutory Year-End Adjustments,,Fusion Project Management Ltd,1268369,,,,31/01/2023,2200297881,"3,777.19",,Payments to main contractor,,,,,,No
The Royal Borough of Kensington and Chelsea,RBKC,,Statutory Year-End Adjustments,Statutory Year-End Adjustments,,Fusion Project Management Ltd,1268369,,,,31/01/2023,2200297883,"12,315.00",,Payments to main contractor,,,,,,No
The Royal Borough of Kensington and Chelsea,RBKC,,Statutory Year-End Adjustments,Statutory Year-End Adjustments,,Fusion Project Management Ltd,1268369,,,,31/01/2023,2200297884,"7,361.00",,Payments to main contractor,,,,,,No
The Royal Borough of Kensington and Chelsea,RBKC,,Statutory Year-End Adjustments,Statutory Year-End Adjustments,,Fusion Project Management Ltd,1268369,,,,07/02/2023,2200299577,"22,310.00",,Payments to main contractor,,,,,,No
The Royal Borough of Kensington and Chelsea,RBKC,,Statutory Year-End Adjustments,Statutory Year-End Adjustments,,Fusion Project Management Ltd,1268369,,,,15/02/2023,2200301333,"44,304.00",,Architects,,,,,,No
The Royal Borough of Kensington and Chelsea,RBKC,,Statutory Year-End Adjustments,Statutory Year-End Adjustments,,Fusion Project Management Ltd,1268369,,,,16/02/2023,2200301610,"1,750.00",,Other Consultants,,,,,,No
The Royal Borough of Kensington and Chelsea,RBKC,,Statutory Year-End Adjustments,Statutory Year-End Adjustments,,Fusion Project Management Ltd,1268369,,,,16/02/2023,2200301682,500,,Payments to main contractor,,,,,,No
The Royal Borough of Kensington and Chelsea,RBKC,,Statutory Year-End Adjustments,Statutory Year-End Adjustments,,Fusion Project Management Ltd,1268369,,,,16/02/2023,2200301685,"2,000.00",,Payments to main contractor,,,,,,No
The Royal Borough of Kensington and Chelsea,RBKC,,Statutory Year-End Adjustments,Statutory Year-End Adjustments,,Fusion Project Management Ltd,1268369,,,,16/02/2023,2200301686,"2,250.00",,Payments to main contractor,,,,,,No
The Royal Borough of Kensington and Chelsea,RBKC,,Statutory Year-End Adjustments,Statutory Year-End Adjustments,,Fusion Project Management Ltd,1268369,,,,21/02/2023,2200302841,"7,080.12",,Payments to main contractor,,,,,,No
The Royal Borough of Kensington and Chelsea,RBKC,,Statutory Year-End Adjustments,Statutory Year-End Adjustments,,Fusion Project Management Ltd,1268369,,,,21/02/2023,2200302842,"1,065.90",,Payments to main contractor,,,,,,No
The Royal Borough of Kensington and Chelsea,RBKC,,Statutory Year-End Adjustments,Statutory Year-End Adjustments,,Fusion Project Management Ltd,1268369,,,,21/02/2023,2200302843,"7,273.75",,Payments to main contractor,,,,,,No
The Royal Borough of Kensington and Chelsea,RBKC,,Statutory Year-End Adjustments,Statutory Year-End Adjustments,,Fusion Project Management Ltd,1268369,,,,21/02/2023,2200302844,"1,870.00",,Payments to main contractor,,,,,,No
The Royal Borough of Kensington and Chelsea,RBKC,,Statutory Year-End Adjustments,Statutory Year-End Adjustments,,Fusion Project Management Ltd,1268369,,,,27/02/2023,2200303896,"12,391.00",,Architects,,,,,,No
The Royal Borough of Kensington and Chelsea,RBKC,,Statutory Year-End Adjustments,Statutory Year-End Adjustments,,Fusion Project Management Ltd,1268369,,,,09/03/2023,2200306772,"7,408.68",,Architects,,,,,,No
The Royal Borough of Kensington and Chelsea,RBKC,,Statutory Year-End Adjustments,Statutory Year-End Adjustments,,Fusion Project Management Ltd,1268369,,,,10/03/2023,2200307010,"1,796.00",,Other Consultants,,,,,,No
The Royal Borough of Kensington and Chelsea,RBKC,,Statutory Year-End Adjustments,Statutory Year-End Adjustments,,Fusion Project Management Ltd,1268369,,,,22/03/2023,2200309685,"1,287.00",,Payments to main contractor,,,,,,No
The Royal Borough of Kensington and Chelsea,RBKC,,Statutory Year-End Adjustments,Statutory Year-End Adjustments,,Fusion Project Management Ltd,1268369,,,,22/03/2023,2200309686,"3,777.19",,Payments to main contractor,,,,,,No
The Royal Borough of Kensington and Chelsea,RBKC,,Statutory Year-End Adjustments,Statutory Year-End Adjustments,,Fusion Project Management Ltd,1268369,,,,22/03/2023,2200309690,750,,Payments to main contractor,,,,,,No
The Royal Borough of Kensington and Chelsea,RBKC,,Statutory Year-End Adjustments,Statutory Year-End Adjustments,,Fusion Project Management Ltd,1268369,,,,22/03/2023,2200309691,"2,124.00",,Payments to main contractor,,,,,,No
The Royal Borough of Kensington and Chelsea,RBKC,,Statutory Year-End Adjustments,Statutory Year-End Adjustments,,Fusion Project Management Ltd,1268369,,,,22/03/2023,2200309699,"5,082.00",,Payments to main contractor,,,,,,No
The Royal Borough of Kensington and Chelsea,RBKC,,Statutory Year-End Adjustments,Statutory Year-End Adjustments,,G & S  Waste Management Ltd,1292086,,,,07/03/2023,2200306243,623,,Payments to main contractor,,,,,,No
The Royal Borough of Kensington and Chelsea,RBKC,,Statutory Year-End Adjustments,Statutory Year-End Adjustments,,G & S Hutchinson Ltd,1281748,,,,25/01/2023,2200296839,"3,352.23",,Planned Maintenance (CM),,,,,,No
The Royal Borough of Kensington and Chelsea,RBKC,,Statutory Year-End Adjustments,Statutory Year-End Adjustments,,G & S Hutchinson Ltd,1281748,,,,27/02/2023,2200303957,"1,451.41",,Planned Maintenance (CM),,,,,,No
The Royal Borough of Kensington and Chelsea,RBKC,,Statutory Year-End Adjustments,Statutory Year-End Adjustments,,GB Geotechnics Limited,1291990,,,,10/03/2023,2200307069,"15,225.00",,Other Consultants,,,,,,No
The Royal Borough of Kensington and Chelsea,RBKC,,Statutory Year-End Adjustments,Statutory Year-End Adjustments,,Holden Smith Law Ltd C/A,D000000023,,,,09/01/2023,3110511445,"413,929.82",,Acquisition of Land & Buildings,,,,,,No
The Royal Borough of Kensington and Chelsea,RBKC,,Statutory Year-End Adjustments,Statutory Year-End Adjustments,,Medifloor,D000000023,,,,24/01/2023,3110516077,904.54,,Site Works,,,,,,No
The Royal Borough of Kensington and Chelsea,RBKC,,Statutory Year-End Adjustments,Statutory Year-End Adjustments,,3PB Management Services Limited,D000000023,,,,03/02/2023,3110519250,"19,600.00",,Other Consultants,,,,,,No
The Royal Borough of Kensington and Chelsea,RBKC,,Statutory Year-End Adjustments,Statutory Year-End Adjustments,,toilets+,D000000023,,,,06/02/2023,3110519343,"2,759.20",,Site Works,,,,,,No
The Royal Borough of Kensington and Chelsea,RBKC,,Statutory Year-End Adjustments,Statutory Year-End Adjustments,,Brethertons LLP,D000000023,,,,09/02/2023,3110520099,"1,212.00",,Acquisition of Land & Buildings,,,,,,No
The Royal Borough of Kensington and Chelsea,RBKC,,Statutory Year-End Adjustments,Statutory Year-End Adjustments,,Legal @ London Law Limited,D000000023,,,,14/02/2023,3110522102,"479,499.70",,Acquisition of Land & Buildings,,,,,,No
The Royal Borough of Kensington and Chelsea,RBKC,,Statutory Year-End Adjustments,Statutory Year-End Adjustments,,Eversheds Sutherland LLP (Internati,D000000023,,,,20/02/2023,3110523202,"1,275.00",,Acquisition of Land & Buildings,,,,,,No
The Royal Borough of Kensington and Chelsea,RBKC,,Statutory Year-End Adjustments,Statutory Year-End Adjustments,,PCS Legal Client Account,D000000023,,,,22/02/2023,3110524085,"186,232.95",,Acquisition of Land & Buildings,,,,,,No
The Royal Borough of Kensington and Chelsea,RBKC,,Statutory Year-End Adjustments,Statutory Year-End Adjustments,,Oliver Fisher Solicitors,D000000023,,,,06/03/2023,3110527034,"522,602.46",,Acquisition of Land & Buildings,,,,,,No
The Royal Borough of Kensington and Chelsea,RBKC,,Statutory Year-End Adjustments,Statutory Year-End Adjustments,,Oliver Fisher Solicitors,D000000023,,,,06/03/2023,3110527035,"562,072.46",,Acquisition of Land & Buildings,,,,,,No
The Royal Borough of Kensington and Chelsea,RBKC,,Statutory Year-End Adjustments,Statutory Year-End Adjustments,,Oliver Fisher Solicitors,D000000023,,,,06/03/2023,3110527036,"464,997.46",,Acquisition of Land & Buildings,,,,,,No
The Royal Borough of Kensington and Chelsea,RBKC,,Statutory Year-End Adjustments,Statutory Year-End Adjustments,,UK Power Networks Limited,D000000023,,,,08/03/2023,3110527691,"360,000.00",,Site Works,,,,,,No
The Royal Borough of Kensington and Chelsea,RBKC,,Statutory Year-End Adjustments,Statutory Year-End Adjustments,,Toilets+,D000000023,,,,08/03/2023,3110527697,598.63,,Construction : enhancements,,,,,,No
The Royal Borough of Kensington and Chelsea,RBKC,,Statutory Year-End Adjustments,Statutory Year-End Adjustments,,redact details,D000000023,,,,10/03/2023,3110527922,"605,593.88",,Acquisition of Land & Buildings,,,,,,No
The Royal Borough of Kensington and Chelsea,RBKC,,Statutory Year-End Adjustments,Statutory Year-End Adjustments,,Meesons Solicitors Ltd,D000000023,,,,14/03/2023,3110528421,"575,068.16",,Acquisition of Land & Buildings,,,,,,No
The Royal Borough of Kensington and Chelsea,RBKC,,Statutory Year-End Adjustments,Statutory Year-End Adjustments,,Williams Beales & Co,D000000023,,,,15/03/2023,3110529902,"395,000.00",,Acquisition of Land & Buildings,,,,,,No
The Royal Borough of Kensington and Chelsea,RBKC,,Statutory Year-End Adjustments,Statutory Year-End Adjustments,,Greenheat UK Limited,D000000023,,,,16/03/2023,3110530536,"1,073.25",,Site Works,,,,,,No
The Royal Borough of Kensington and Chelsea,RBKC,,Statutory Year-End Adjustments,Statutory Year-End Adjustments,,PCS Legal C/A,D000000023,,,,20/03/2023,3110530717,862.77,,Acquisition of Land & Buildings,,,,,,No
The Royal Borough of Kensington and Chelsea,RBKC,,Statutory Year-End Adjustments,Statutory Year-End Adjustments,,Santers Legal,D000000023,,,,21/03/2023,3110531556,"534,356.42",,Acquisition of Land & Buildings,,,,,,No
The Royal Borough of Kensington and Chelsea,RBKC,,Statutory Year-End Adjustments,Statutory Year-End Adjustments,,Frettens LLP,D000000023,,,,21/03/2023,3110531560,583,,Acquisition of Land & Buildings,,,,,,No
The Royal Borough of Kensington and Chelsea,RBKC,,Statutory Year-End Adjustments,Statutory Year-End Adjustments,,Oliver Fisher Solicitors,D000000023,,,,28/03/2023,3110532972,"522,638.02",,Acquisition of Land & Buildings,,,,,,No
The Royal Borough of Kensington and Chelsea,RBKC,,Statutory Year-End Adjustments,Statutory Year-End Adjustments,,Oliver Fisher Solicitors,D000000023,,,,28/03/2023,3110532974,"562,108.02",,Acquisition of Land & Buildings,,,,,,No
The Royal Borough of Kensington and Chelsea,RBKC,,Statutory Year-End Adjustments,Statutory Year-End Adjustments,,Oliver Fisher Solicitors,D000000023,,,,28/03/2023,3110532976,"465,033.02",,Acquisition of Land & Buildings,,,,,,No
The Royal Borough of Kensington and Chelsea,RBKC,,Statutory Year-End Adjustments,Statutory Year-End Adjustments,,Cadogan Estates Limited,D000000023,,,,29/03/2023,3110534534,"56,858.01",,Construction : enhancements,,,,,,No
The Royal Borough of Kensington and Chelsea,RBKC,,Statutory Year-End Adjustments,Statutory Year-End Adjustments,,GIA ,1234645,,,,11/01/2023,2200294123,"1,848.00",,Other Consultants,,,,,,No
The Royal Borough of Kensington and Chelsea,RBKC,,Statutory Year-End Adjustments,Statutory Year-End Adjustments,,GLAZE & FRAME LTD ,1256071,,,,14/02/2023,2200301226,780,,Special Maintenance,,,,,,No
The Royal Borough of Kensington and Chelsea,RBKC,,Statutory Year-End Adjustments,Statutory Year-End Adjustments,,Gardiner & Theobald LLP ,1234613,,,,31/01/2023,2200297862,"8,860.00",,Other Consultants,,,,,,No
The Royal Borough of Kensington and Chelsea,RBKC,,Statutory Year-End Adjustments,Statutory Year-End Adjustments,,Gardiner & Theobald LLP ,1234613,,,,02/03/2023,2200304964,"8,860.00",,Other Consultants,,,,,,No
The Royal Borough of Kensington and Chelsea,RBKC,,Statutory Year-End Adjustments,Statutory Year-End Adjustments,,Gardiner & Theobald LLP ,1234613,,,,27/03/2023,2200310720,"8,860.00",,Other Consultants,,,,,,No
The Royal Borough of Kensington and Chelsea,RBKC,,Statutory Year-End Adjustments,Statutory Year-End Adjustments,,Garvey Bros Builders Ltd,1288238,,,,09/01/2023,2200293410,"7,135.00",,Payments to main contractor,,,,,,No
The Royal Borough of Kensington and Chelsea,RBKC,,Statutory Year-End Adjustments,Statutory Year-End Adjustments,,Garvey Bros Builders Ltd,1288238,,,,27/01/2023,2200297318,"7,720.00",,Payments to main contractor,,,,,,No
The Royal Borough of Kensington and Chelsea,RBKC,,Statutory Year-End Adjustments,Statutory Year-End Adjustments,,Garvey Bros Builders Ltd,1288238,,,,27/01/2023,2200297319,"6,798.00",,Payments to main contractor,,,,,,No
The Royal Borough of Kensington and Chelsea,RBKC,,Statutory Year-End Adjustments,Statutory Year-End Adjustments,,Garvey Bros Builders Ltd,1288238,,,,27/01/2023,2200297320,"12,455.00",,Payments to main contractor,,,,,,No
The Royal Borough of Kensington and Chelsea,RBKC,,Statutory Year-End Adjustments,Statutory Year-End Adjustments,,Garvey Bros Builders Ltd,1288238,,,,02/02/2023,2200298727,"8,285.00",,Payments to main contractor,,,,,,No
The Royal Borough of Kensington and Chelsea,RBKC,,Statutory Year-End Adjustments,Statutory Year-End Adjustments,,Garvey Bros Builders Ltd,1288238,,,,03/02/2023,2200298942,"8,115.00",,Payments to main contractor,,,,,,No
The Royal Borough of Kensington and Chelsea,RBKC,,Statutory Year-End Adjustments,Statutory Year-End Adjustments,,Garvey Bros Builders Ltd,1288238,,,,17/03/2023,2200308460,"8,610.00",,Payments to main contractor,,,,,,No
The Royal Borough of Kensington and Chelsea,RBKC,,Statutory Year-End Adjustments,Statutory Year-End Adjustments,,Garvey Bros Builders Ltd,1288238,,,,31/03/2023,2200311982,"14,605.00",,Payments to main contractor,,,,,,No
The Royal Borough of Kensington and Chelsea,RBKC,,Statutory Year-End Adjustments,Statutory Year-End Adjustments,,Garvey Bros Builders Ltd,1288238,,,,31/03/2023,2200311991,"14,235.00",,Payments to main contractor,,,,,,No
The Royal Borough of Kensington and Chelsea,RBKC,,Statutory Year-End Adjustments,Statutory Year-End Adjustments,,Geotechnical and Environmental Asso,1277387,,,,01/03/2023,2200304725,"1,947.64",,Other Consultants,,,,,,No
The Royal Borough of Kensington and Chelsea,RBKC,,Statutory Year-End Adjustments,Statutory Year-End Adjustments,,Geotechnical and Environmental Asso,1277387,,,,13/03/2023,2200307393,"1,795.00",,Other Consultants,,,,,,No
The Royal Borough of Kensington and Chelsea,RBKC,,Statutory Year-End Adjustments,Statutory Year-End Adjustments,,Gerda Security Products Ltd ,1234642,,,,04/01/2023,2200292228,"5,600.00",,Payments to main contractor,,,,,,No
The Royal Borough of Kensington and Chelsea,RBKC,,Statutory Year-End Adjustments,Statutory Year-End Adjustments,,Gerda Security Products Ltd ,1234642,,,,05/01/2023,2200292535,"150,469.56",,Site Works,,,,,,No
The Royal Borough of Kensington and Chelsea,RBKC,,Statutory Year-End Adjustments,Statutory Year-End Adjustments,,Gerda Security Products Ltd ,1234642,,,,10/01/2023,2200293621,800,,Payments to main contractor,,,,,,No
The Royal Borough of Kensington and Chelsea,RBKC,,Statutory Year-End Adjustments,Statutory Year-End Adjustments,,Gerda Security Products Ltd ,1234642,,,,16/01/2023,2200294637,"1,400.00",,Payments to main contractor,,,,,,No
The Royal Borough of Kensington and Chelsea,RBKC,,Statutory Year-End Adjustments,Statutory Year-End Adjustments,,Gerda Security Products Ltd ,1234642,,,,16/01/2023,2200294720,"4,900.00",,Site Works,,,,,,No
The Royal Borough of Kensington and Chelsea,RBKC,,Statutory Year-End Adjustments,Statutory Year-End Adjustments,,Gerda Security Products Ltd ,1234642,,,,20/01/2023,2200296056,"17,786.16",,Payments to main contractor,,,,,,No
The Royal Borough of Kensington and Chelsea,RBKC,,Statutory Year-End Adjustments,Statutory Year-End Adjustments,,Gerda Security Products Ltd ,1234642,,,,08/02/2023,2200299873,"1,959.54",,Payments to main contractor,,,,,,No
The Royal Borough of Kensington and Chelsea,RBKC,,Statutory Year-End Adjustments,Statutory Year-End Adjustments,,Gerda Security Products Ltd ,1234642,,,,09/03/2023,2200306705,"2,162.85",,Payments to main contractor,,,,,,No
The Royal Borough of Kensington and Chelsea,RBKC,,Statutory Year-End Adjustments,Statutory Year-End Adjustments,,Gerda Security Products Ltd ,1234642,,,,10/03/2023,2200306933,"3,504.09",,Payments to main contractor,,,,,,No
The Royal Borough of Kensington and Chelsea,RBKC,,Statutory Year-End Adjustments,Statutory Year-End Adjustments,,Gerda Security Products Ltd ,1234642,,,,14/03/2023,2200307547,"1,050.00",,Payments to main contractor,,,,,,No
The Royal Borough of Kensington and Chelsea,RBKC,,Statutory Year-End Adjustments,Statutory Year-End Adjustments,,Gerda Security Products Ltd ,1234642,,,,14/03/2023,2200307560,"156,610.89",,Site Works,,,,,,No
The Royal Borough of Kensington and Chelsea,RBKC,,Statutory Year-End Adjustments,Statutory Year-End Adjustments,,Gerda Security Products Ltd ,1234642,,,,23/03/2023,2200309892,"275,427.83",,Site Works,,,,,,No
The Royal Borough of Kensington and Chelsea,RBKC,,Statutory Year-End Adjustments,Statutory Year-End Adjustments,,Gerda Security Products Ltd ,1234642,,,,28/03/2023,2200311055,"2,247.80",,Payments to main contractor,,,,,,No
The Royal Borough of Kensington and Chelsea,RBKC,,Statutory Year-End Adjustments,Statutory Year-End Adjustments,,Gerda Security Products Ltd ,1234642,,,,29/03/2023,2200311363,"1,674.75",,Planned Maintenance (CM),,,,,,No
The Royal Borough of Kensington and Chelsea,RBKC,,Statutory Year-End Adjustments,Statutory Year-End Adjustments,,Glass Partitioning UK,1286247,,,,01/03/2023,2200304668,"2,800.67",,Construction : enhancements,,,,,,No
The Royal Borough of Kensington and Chelsea,RBKC,,Statutory Year-End Adjustments,Statutory Year-End Adjustments,,Go2Telecom Limited,1302173,,,,02/03/2023,2200304953,"5,334.62",,Computer Equipment,,,,,,No
The Royal Borough of Kensington and Chelsea,RBKC,,Statutory Year-End Adjustments,Statutory Year-End Adjustments,,Government Events,1255790,,,,21/02/2023,2200302782,790,,Other Consultants,,,,,,No
The Royal Borough of Kensington and Chelsea,RBKC,,Statutory Year-End Adjustments,Statutory Year-End Adjustments,,Greyline Builders Ltd,1287371,,,,13/01/2023,2200294581,"11,125.80",,Professional Fees : Non Legal,,,,,,No
The Royal Borough of Kensington and Chelsea,RBKC,,Statutory Year-End Adjustments,Statutory Year-End Adjustments,,Greyline Builders Ltd,1287371,,,,08/02/2023,2200299960,"12,177.84",,Professional Fees : Non Legal,,,,,,No
The Royal Borough of Kensington and Chelsea,RBKC,,Statutory Year-End Adjustments,Statutory Year-End Adjustments,,Greyline Builders Ltd,1287371,,,,13/03/2023,2200307293,"3,128.53",,Professional Fees : Non Legal,,,,,,No
The Royal Borough of Kensington and Chelsea,RBKC,,Statutory Year-End Adjustments,Statutory Year-End Adjustments,,Groundwork London ,1231218,,,,28/03/2023,2200311104,"16,215.00",,Planned Maintenance (CM),,,,,,No
The Royal Borough of Kensington and Chelsea,RBKC,,Statutory Year-End Adjustments,Statutory Year-End Adjustments,,Guideline Lift Services Ltd ,1231219,,,,10/01/2023,2200293666,"31,085.49",,Payments to main contractor,,,,,,No
The Royal Borough of Kensington and Chelsea,RBKC,,Statutory Year-End Adjustments,Statutory Year-End Adjustments,,Guideline Lift Services Ltd ,1231219,,,,01/02/2023,2200298200,"21,343.30",,Payments to main contractor,,,,,,No
The Royal Borough of Kensington and Chelsea,RBKC,,Statutory Year-End Adjustments,Statutory Year-End Adjustments,,Guideline Lift Services Ltd ,1231219,,,,01/02/2023,2200298201,"3,951.05",,Payments to main contractor,,,,,,No
The Royal Borough of Kensington and Chelsea,RBKC,,Statutory Year-End Adjustments,Statutory Year-End Adjustments,,Guideline Lift Services Ltd ,1231219,,,,01/02/2023,2200298202,"19,326.43",,Payments to main contractor,,,,,,No
The Royal Borough of Kensington and Chelsea,RBKC,,Statutory Year-End Adjustments,Statutory Year-End Adjustments,,Guideline Lift Services Ltd ,1231219,,,,01/02/2023,2200298203,"21,343.30",,Payments to main contractor,,,,,,No
The Royal Borough of Kensington and Chelsea,RBKC,,Statutory Year-End Adjustments,Statutory Year-End Adjustments,,Guideline Lift Services Ltd ,1231219,,,,01/02/2023,2200298204,"10,907.95",,Payments to main contractor,,,,,,No
The Royal Borough of Kensington and Chelsea,RBKC,,Statutory Year-End Adjustments,Statutory Year-End Adjustments,,Guideline Lift Services Ltd ,1231219,,,,01/02/2023,2200298205,"15,847.99",,Payments to main contractor,,,,,,No
The Royal Borough of Kensington and Chelsea,RBKC,,Statutory Year-End Adjustments,Statutory Year-End Adjustments,,Guideline Lift Services Ltd ,1231219,,,,01/02/2023,2200298206,"27,442.81",,Payments to main contractor,,,,,,No
The Royal Borough of Kensington and Chelsea,RBKC,,Statutory Year-End Adjustments,Statutory Year-End Adjustments,,Guideline Lift Services Ltd ,1231219,,,,07/03/2023,2200306162,"2,000.00",,Payments to main contractor,,,,,,No
The Royal Borough of Kensington and Chelsea,RBKC,,Statutory Year-End Adjustments,Statutory Year-End Adjustments,,Guideline Lift Services Ltd ,1231219,,,,13/03/2023,2200307355,"78,192.65",,Payments to main contractor,,,,,,No
The Royal Borough of Kensington and Chelsea,RBKC,,Statutory Year-End Adjustments,Statutory Year-End Adjustments,,Guideline Lift Services Ltd ,1231219,,,,13/03/2023,2200307356,"66,597.82",,Payments to main contractor,,,,,,No
The Royal Borough of Kensington and Chelsea,RBKC,,Statutory Year-End Adjustments,Statutory Year-End Adjustments,,Guideline Lift Services Ltd ,1231219,,,,13/03/2023,2200307357,"58,481.43",,Payments to main contractor,,,,,,No
The Royal Borough of Kensington and Chelsea,RBKC,,Statutory Year-End Adjustments,Statutory Year-End Adjustments,,Guideline Lift Services Ltd ,1231219,,,,14/03/2023,2200307734,"38,118.74",,Payments to main contractor,,,,,,No
The Royal Borough of Kensington and Chelsea,RBKC,,Statutory Year-End Adjustments,Statutory Year-End Adjustments,,Guideline Lift Services Ltd ,1231219,,,,16/03/2023,2200308289,"17,095.77",,Payments to main contractor,,,,,,No
The Royal Borough of Kensington and Chelsea,RBKC,,Statutory Year-End Adjustments,Statutory Year-End Adjustments,,Guideline Lift Services Ltd ,1231219,,,,28/03/2023,2200311096,"2,517.92",,Payments to main contractor,,,,,,No
The Royal Borough of Kensington and Chelsea,RBKC,,Statutory Year-End Adjustments,Statutory Year-End Adjustments,,Guideline Lift Services Ltd ,1231219,,,,28/03/2023,2200311098,"13,489.27",,Payments to main contractor,,,,,,No
The Royal Borough of Kensington and Chelsea,RBKC,,Statutory Year-End Adjustments,Statutory Year-End Adjustments,,Guideline Lift Services Ltd ,1231219,,,,28/03/2023,2200311103,"21,276.96",,Payments to main contractor,,,,,,No
The Royal Borough of Kensington and Chelsea,RBKC,,Statutory Year-End Adjustments,Statutory Year-End Adjustments,,Guideline Lift Services Ltd ,1231219,,,,29/03/2023,2200311613,"3,267.17",,Payments to main contractor,,,,,,No
The Royal Borough of Kensington and Chelsea,RBKC,,Statutory Year-End Adjustments,Statutory Year-End Adjustments,,Guideline Lift Services Ltd ,1231219,,,,29/03/2023,2200311614,"3,267.17",,Payments to main contractor,,,,,,No
The Royal Borough of Kensington and Chelsea,RBKC,,Statutory Year-End Adjustments,Statutory Year-End Adjustments,,Guideline Lift Services Ltd ,1231219,,,,29/03/2023,2200311615,"3,267.17",,Payments to main contractor,,,,,,No
The Royal Borough of Kensington and Chelsea,RBKC,,Statutory Year-End Adjustments,Statutory Year-End Adjustments,,Guideline Lift Services Ltd ,1231219,,,,31/03/2023,2200312044,"17,059.83",,Payments to main contractor,,,,,,No
The Royal Borough of Kensington and Chelsea,RBKC,,Statutory Year-End Adjustments,Statutory Year-End Adjustments,,Guideline Lift Services Ltd ,1231219,,,,31/03/2023,2200312047,"36,771.04",,Payments to main contractor,,,,,,No
The Royal Borough of Kensington and Chelsea,RBKC,,Statutory Year-End Adjustments,Statutory Year-End Adjustments,,Guideline Lift Services Ltd ,1231219,,,,31/03/2023,2200312050,"41,225.89",,Payments to main contractor,,,,,,No
The Royal Borough of Kensington and Chelsea,RBKC,,Statutory Year-End Adjustments,Statutory Year-End Adjustments,,HM Revenue & Customs (Stamp duty),1230805,,,,18/01/2023,3110514412,"24,300.00",,Acquisition of Land & Buildings,,,,,,No
The Royal Borough of Kensington and Chelsea,RBKC,,Statutory Year-End Adjustments,Statutory Year-End Adjustments,,HM Revenue & Customs (Stamp duty),1230805,,,,24/02/2023,3110524229,"25,900.00",,Acquisition of Land & Buildings,,,,,,No
The Royal Borough of Kensington and Chelsea,RBKC,,Statutory Year-End Adjustments,Statutory Year-End Adjustments,,HM Revenue & Customs (Stamp duty),1230805,,,,21/03/2023,3110531476,"35,980.00",,Acquisition of Land & Buildings,,,,,,No
The Royal Borough of Kensington and Chelsea,RBKC,,Statutory Year-End Adjustments,Statutory Year-End Adjustments,,HM Revenue & Customs (Stamp duty),1230805,,,,24/03/2023,3110531932,"5,580.00",,Acquisition of Land & Buildings,,,,,,No
The Royal Borough of Kensington and Chelsea,RBKC,,Statutory Year-End Adjustments,Statutory Year-End Adjustments,,HM Revenue & Customs (Stamp duty),1230805,,,,30/03/2023,3110534641,"32,060.00",,Acquisition of Land & Buildings,,,,,,No
The Royal Borough of Kensington and Chelsea,RBKC,,Statutory Year-End Adjustments,Statutory Year-End Adjustments,,HM Revenue & Customs (Stamp duty),1230805,,,,30/03/2023,3110534643,"19,100.00",,Acquisition of Land & Buildings,,,,,,No
The Royal Borough of Kensington and Chelsea,RBKC,,Statutory Year-End Adjustments,Statutory Year-End Adjustments,,HM Revenue & Customs (Stamp duty),1230805,,,,31/03/2023,3110534801,"33,500.00",,Acquisition of Land & Buildings,,,,,,No
The Royal Borough of Kensington and Chelsea,RBKC,,Statutory Year-End Adjustments,Statutory Year-End Adjustments,,Hags - Smp Limited ,1231221,,,,01/02/2023,2200298063,"65,030.95",,Site Works,,,,,,No
The Royal Borough of Kensington and Chelsea,RBKC,,Statutory Year-End Adjustments,Statutory Year-End Adjustments,,Hags - Smp Limited ,1231221,,,,20/02/2023,2200302485,"2,000.00",,Site Works,,,,,,No
The Royal Borough of Kensington and Chelsea,RBKC,,Statutory Year-End Adjustments,Statutory Year-End Adjustments,,Hags - Smp Limited ,1231221,,,,20/02/2023,2200302486,"6,203.00",,Site Works,,,,,,No
The Royal Borough of Kensington and Chelsea,RBKC,,Statutory Year-End Adjustments,Statutory Year-End Adjustments,,Hags - Smp Limited ,1231221,,,,20/02/2023,2200302487,"1,555.00",,Site Works,,,,,,No
The Royal Borough of Kensington and Chelsea,RBKC,,Statutory Year-End Adjustments,Statutory Year-End Adjustments,,Hags - Smp Limited ,1231221,,,,22/02/2023,2200303063,698,,Construction : enhancements,,,,,,No
The Royal Borough of Kensington and Chelsea,RBKC,,Statutory Year-End Adjustments,Statutory Year-End Adjustments,,Hags - Smp Limited ,1231221,,,,22/02/2023,2200303071,"3,676.00",,Construction : enhancements,,,,,,No
The Royal Borough of Kensington and Chelsea,RBKC,,Statutory Year-End Adjustments,Statutory Year-End Adjustments,,Hags - Smp Limited ,1231221,,,,27/02/2023,2200303971,650.4,,Construction : enhancements,,,,,,No
The Royal Borough of Kensington and Chelsea,RBKC,,Statutory Year-End Adjustments,Statutory Year-End Adjustments,,Hags - Smp Limited ,1231221,,,,31/03/2023,2200312148,"18,875.00",,Site Works,,,,,,No
The Royal Borough of Kensington and Chelsea,RBKC,,Statutory Year-End Adjustments,Statutory Year-End Adjustments,,Hags - Smp Limited ,1231221,,,,31/03/2023,2200312150,"79,527.25",,Site Works,,,,,,No
The Royal Borough of Kensington and Chelsea,RBKC,,Statutory Year-End Adjustments,Statutory Year-End Adjustments,,Hampson and Luck ,1257327,,,,20/03/2023,2200308906,"8,980.00",,Payments to main contractor,,,,,,No
The Royal Borough of Kensington and Chelsea,RBKC,,Statutory Year-End Adjustments,Statutory Year-End Adjustments,,Hamson Barron Smith,1304194,,,,01/03/2023,2200304789,"2,500.00",,Other Consultants,,,,,,No
The Royal Borough of Kensington and Chelsea,RBKC,,Statutory Year-End Adjustments,Statutory Year-End Adjustments,,Harmony Fire Ltd,1282704,,,,06/03/2023,2200305568,"82,363.71",,Site Works,,,,,,No
The Royal Borough of Kensington and Chelsea,RBKC,,Statutory Year-End Adjustments,Statutory Year-End Adjustments,,Helix Construct Limited,1270811,,,,03/01/2023,2200292073,"22,327.10",,Payments to main contractor,,,,,,No
The Royal Borough of Kensington and Chelsea,RBKC,,Statutory Year-End Adjustments,Statutory Year-End Adjustments,,Helix Construct Limited,1270811,,,,06/02/2023,2200299265,"29,446.73",,Payments to main contractor,,,,,,No
The Royal Borough of Kensington and Chelsea,RBKC,,Statutory Year-End Adjustments,Statutory Year-End Adjustments,,Helix Construct Limited,1270811,,,,08/03/2023,2200306417,758.47,,Payments to main contractor,,,,,,No
The Royal Borough of Kensington and Chelsea,RBKC,,Statutory Year-End Adjustments,Statutory Year-End Adjustments,,Henry Riley LLP ,1230402,,,,03/01/2023,2200292111,"6,200.00",,Other Consultants,,,,,,No
The Royal Borough of Kensington and Chelsea,RBKC,,Statutory Year-End Adjustments,Statutory Year-End Adjustments,,Henry Riley LLP ,1230402,,,,07/02/2023,2200299673,"6,200.00",,Other Consultants,,,,,,No
The Royal Borough of Kensington and Chelsea,RBKC,,Statutory Year-End Adjustments,Statutory Year-End Adjustments,,Henry Riley LLP ,1230402,,,,03/03/2023,2200305435,"6,200.00",,Other Consultants,,,,,,No
The Royal Borough of Kensington and Chelsea,RBKC,,Statutory Year-End Adjustments,Statutory Year-End Adjustments,,Hickton Consultants Ltd,1279547,,,,07/01/2023,2200292964,736,,Professional Fees : Non Legal,,,,,,No
The Royal Borough of Kensington and Chelsea,RBKC,,Statutory Year-End Adjustments,Statutory Year-End Adjustments,,Hickton Consultants Ltd,1279547,,,,07/01/2023,2200292965,"2,576.00",,Professional Fees : Non Legal,,,,,,No
The Royal Borough of Kensington and Chelsea,RBKC,,Statutory Year-End Adjustments,Statutory Year-End Adjustments,,Hickton Consultants Ltd,1279547,,,,07/01/2023,2200292966,"1,104.00",,Professional Fees : Non Legal,,,,,,No
The Royal Borough of Kensington and Chelsea,RBKC,,Statutory Year-End Adjustments,Statutory Year-End Adjustments,,Hickton Consultants Ltd,1279547,,,,07/01/2023,2200292967,"2,576.00",,Professional Fees : Non Legal,,,,,,No
The Royal Borough of Kensington and Chelsea,RBKC,,Statutory Year-End Adjustments,Statutory Year-End Adjustments,,Hickton Consultants Ltd,1279547,,,,09/01/2023,2200293033,"1,288.00",,Professional Fees : Non Legal,,,,,,No
The Royal Borough of Kensington and Chelsea,RBKC,,Statutory Year-End Adjustments,Statutory Year-End Adjustments,,Hickton Consultants Ltd,1279547,,,,09/01/2023,2200293463,736,,Professional Fees : Non Legal,,,,,,No
The Royal Borough of Kensington and Chelsea,RBKC,,Statutory Year-End Adjustments,Statutory Year-End Adjustments,,Hickton Consultants Ltd,1279547,,,,10/01/2023,2200293715,"1,472.00",,Professional Fees : Non Legal,,,,,,No
The Royal Borough of Kensington and Chelsea,RBKC,,Statutory Year-End Adjustments,Statutory Year-End Adjustments,,Hickton Consultants Ltd,1279547,,,,10/01/2023,2200293718,"3,312.00",,Professional Fees : Non Legal,,,,,,No
The Royal Borough of Kensington and Chelsea,RBKC,,Statutory Year-End Adjustments,Statutory Year-End Adjustments,,Hickton Consultants Ltd,1279547,,,,10/01/2023,2200293847,"1,656.00",,Professional Fees : Non Legal,,,,,,No
The Royal Borough of Kensington and Chelsea,RBKC,,Statutory Year-End Adjustments,Statutory Year-End Adjustments,,Hickton Consultants Ltd,1279547,,,,12/01/2023,2200294252,"3,312.00",,Professional Fees : Non Legal,,,,,,No
The Royal Borough of Kensington and Chelsea,RBKC,,Statutory Year-End Adjustments,Statutory Year-End Adjustments,,Hickton Consultants Ltd,1279547,,,,12/01/2023,2200294253,"2,208.00",,Professional Fees : Non Legal,,,,,,No
The Royal Borough of Kensington and Chelsea,RBKC,,Statutory Year-End Adjustments,Statutory Year-End Adjustments,,Hickton Consultants Ltd,1279547,,,,12/01/2023,2200294326,"1,472.00",,Design Consultant,,,,,,No
The Royal Borough of Kensington and Chelsea,RBKC,,Statutory Year-End Adjustments,Statutory Year-End Adjustments,,Hickton Consultants Ltd,1279547,,,,06/02/2023,2200299200,920,,Professional Fees : Non Legal,,,,,,No
The Royal Borough of Kensington and Chelsea,RBKC,,Statutory Year-End Adjustments,Statutory Year-End Adjustments,,Hickton Consultants Ltd,1279547,,,,06/02/2023,2200299252,"2,208.00",,Professional Fees : Non Legal,,,,,,No
The Royal Borough of Kensington and Chelsea,RBKC,,Statutory Year-End Adjustments,Statutory Year-End Adjustments,,Hickton Consultants Ltd,1279547,,,,06/02/2023,2200299262,736,,Professional Fees : Non Legal,,,,,,No
The Royal Borough of Kensington and Chelsea,RBKC,,Statutory Year-End Adjustments,Statutory Year-End Adjustments,,Hickton Consultants Ltd,1279547,,,,06/02/2023,2200299263,"4,416.00",,Professional Fees : Non Legal,,,,,,No
The Royal Borough of Kensington and Chelsea,RBKC,,Statutory Year-End Adjustments,Statutory Year-End Adjustments,,Hickton Consultants Ltd,1279547,,,,07/02/2023,2200299654,"1,104.00",,Professional Fees : Non Legal,,,,,,No
The Royal Borough of Kensington and Chelsea,RBKC,,Statutory Year-End Adjustments,Statutory Year-End Adjustments,,Hickton Consultants Ltd,1279547,,,,10/02/2023,2200300606,"1,472.00",,Design Consultant,,,,,,No
The Royal Borough of Kensington and Chelsea,RBKC,,Statutory Year-End Adjustments,Statutory Year-End Adjustments,,Hickton Consultants Ltd,1279547,,,,28/02/2023,2200304296,736,,Professional Fees : Non Legal,,,,,,No
The Royal Borough of Kensington and Chelsea,RBKC,,Statutory Year-End Adjustments,Statutory Year-End Adjustments,,Hickton Consultants Ltd,1279547,,,,06/03/2023,2200305557,736,,Professional Fees : Non Legal,,,,,,No
The Royal Borough of Kensington and Chelsea,RBKC,,Statutory Year-End Adjustments,Statutory Year-End Adjustments,,Hickton Consultants Ltd,1279547,,,,06/03/2023,2200305938,"1,840.00",,Professional Fees : Non Legal,,,,,,No
The Royal Borough of Kensington and Chelsea,RBKC,,Statutory Year-End Adjustments,Statutory Year-End Adjustments,,Hickton Consultants Ltd,1279547,,,,10/03/2023,2200306870,"1,472.00",,Professional Fees : Non Legal,,,,,,No
The Royal Borough of Kensington and Chelsea,RBKC,,Statutory Year-End Adjustments,Statutory Year-End Adjustments,,Hickton Consultants Ltd,1279547,,,,14/03/2023,2200307549,"2,944.00",,Professional Fees : Non Legal,,,,,,No
The Royal Borough of Kensington and Chelsea,RBKC,,Statutory Year-End Adjustments,Statutory Year-End Adjustments,,Hickton Consultants Ltd,1279547,,,,14/03/2023,2200307550,"2,944.00",,Professional Fees : Non Legal,,,,,,No
The Royal Borough of Kensington and Chelsea,RBKC,,Statutory Year-End Adjustments,Statutory Year-End Adjustments,,Higham Flat Roofing Ltd ,1252605,,,,20/03/2023,2200308744,"1,374.00",,Planned Maintenance (CM),,,,,,No
The Royal Borough of Kensington and Chelsea,RBKC,,Statutory Year-End Adjustments,Statutory Year-End Adjustments,,Hill Partnerships Limited,1298811,,,,17/02/2023,2200302079,"88,045.00",,Site Works,,,,,,No
The Royal Borough of Kensington and Chelsea,RBKC,,Statutory Year-End Adjustments,Statutory Year-End Adjustments,,Hill Partnerships Limited,1298811,,,,22/03/2023,2200309418,"141,710.00",,Site Works,,,,,,No
The Royal Borough of Kensington and Chelsea,RBKC,,Statutory Year-End Adjustments,Statutory Year-End Adjustments,,Houseline Building Services Ltd ,1231377,,,,26/01/2023,2200297065,"74,688.64",,Professional Fees : Non Legal,,,,,,No
The Royal Borough of Kensington and Chelsea,RBKC,,Statutory Year-End Adjustments,Statutory Year-End Adjustments,,Howard Kennedy LLP,1234753,,,,22/02/2023,2200302899,"2,740.00",,Other Consultants,,,,,,No
The Royal Borough of Kensington and Chelsea,RBKC,,Statutory Year-End Adjustments,Statutory Year-End Adjustments,,Hugh Harris Ltd,1291982,,,,03/01/2023,2200292068,"6,099.20",,Construction : enhancements,,,,,,No
The Royal Borough of Kensington and Chelsea,RBKC,,Statutory Year-End Adjustments,Statutory Year-End Adjustments,,Idealcombi Uk Limited,1270224,,,,08/03/2023,2200306352,"4,210.08",,Construction : enhancements,,,,,,No
The Royal Borough of Kensington and Chelsea,RBKC,,Statutory Year-End Adjustments,Statutory Year-End Adjustments,,Idox Software Ltd ,1230453,,,,31/03/2023,2200312383,"2,250.00",,Computer Software,,,,,,No
The Royal Borough of Kensington and Chelsea,RBKC,,Statutory Year-End Adjustments,Statutory Year-End Adjustments,,Idverde Ltd ,1231380,,,,17/03/2023,2200308428,811.25,,Creditors Control : AP GRIR,,,,,,No
The Royal Borough of Kensington and Chelsea,RBKC,,Statutory Year-End Adjustments,Statutory Year-End Adjustments,,Infinity Fire Prevention Ltd,1289350,,,,07/02/2023,2200299639,"8,310.61",,Site Works,,,,,,No
The Royal Borough of Kensington and Chelsea,RBKC,,Statutory Year-End Adjustments,Statutory Year-End Adjustments,,Insight Facades Limited,1284260,,,,17/01/2023,2200295254,"1,500.00",,Payments to main contractor,,,,,,No
The Royal Borough of Kensington and Chelsea,RBKC,,Statutory Year-End Adjustments,Statutory Year-End Adjustments,,Insight Facades Limited,1284260,,,,17/01/2023,2200295256,"2,250.00",,Payments to main contractor,,,,,,No
The Royal Borough of Kensington and Chelsea,RBKC,,Statutory Year-End Adjustments,Statutory Year-End Adjustments,,Insight Facades Limited,1284260,,,,10/02/2023,2200300616,500,,Other Consultants,,,,,,No
The Royal Borough of Kensington and Chelsea,RBKC,,Statutory Year-End Adjustments,Statutory Year-End Adjustments,,Insight Facades Limited,1284260,,,,10/02/2023,2200300617,500,,Other Consultants,,,,,,No
The Royal Borough of Kensington and Chelsea,RBKC,,Statutory Year-End Adjustments,Statutory Year-End Adjustments,,Insight Facades Limited,1284260,,,,10/02/2023,2200300618,500,,Other Consultants,,,,,,No
The Royal Borough of Kensington and Chelsea,RBKC,,Statutory Year-End Adjustments,Statutory Year-End Adjustments,,Intelligent Instruments Ltd,1281115,,,,22/02/2023,2200302884,"27,081.00",,Creditors Control : AP GRIR,,,,,,No
The Royal Borough of Kensington and Chelsea,RBKC,,Statutory Year-End Adjustments,Statutory Year-End Adjustments,,International Fire Consultants Limi,1296602,,,,04/01/2023,2200292430,"6,458.00",,Payments to main contractor,,,,,,No
The Royal Borough of Kensington and Chelsea,RBKC,,Statutory Year-End Adjustments,Statutory Year-End Adjustments,,JH Crawford Security Ltd ,1234817,,,,16/02/2023,2200301612,"2,325.00",,Creditors Control : AP GRIR,,,,,,No
The Royal Borough of Kensington and Chelsea,RBKC,,Statutory Year-End Adjustments,Statutory Year-End Adjustments,,JMS Janitorial supplies Limited,1282976,,,,22/02/2023,2200303042,"43,500.00",,Purchase of Vehicles,,,,,,No
The Royal Borough of Kensington and Chelsea,RBKC,,Statutory Year-End Adjustments,Statutory Year-End Adjustments,,Jackson Coles LLP ,1230491,,,,03/03/2023,2200305393,"6,000.00",,Other Consultants,,,,,,No
The Royal Borough of Kensington and Chelsea,RBKC,,Statutory Year-End Adjustments,Statutory Year-End Adjustments,,Redact Details,1277228,,,,04/01/2023,2200292441,"4,245.15",,Design Consultant,,,,,,No
The Royal Borough of Kensington and Chelsea,RBKC,,Statutory Year-End Adjustments,Statutory Year-End Adjustments,,Redact Details,1277228,,,,06/01/2023,2200292918,"4,828.60",,Design Consultant,,,,,,No
The Royal Borough of Kensington and Chelsea,RBKC,,Statutory Year-End Adjustments,Statutory Year-End Adjustments,,Redact Details,1277228,,,,21/02/2023,2200302737,"6,348.79",,Design Consultant,,,,,,No
The Royal Borough of Kensington and Chelsea,RBKC,,Statutory Year-End Adjustments,Statutory Year-End Adjustments,,Redact Details,1277228,,,,22/02/2023,2200303100,"5,955.00",,Design Consultant,,,,,,No
The Royal Borough of Kensington and Chelsea,RBKC,,Statutory Year-End Adjustments,Statutory Year-End Adjustments,,K & T Heating Services Ltd ,1231384,,,,27/01/2023,2200297291,"7,465.60",,Payments to main contractor,,,,,,No
The Royal Borough of Kensington and Chelsea,RBKC,,Statutory Year-End Adjustments,Statutory Year-End Adjustments,,K & T Heating Services Ltd ,1231384,,,,07/02/2023,2200299424,"7,329.43",,Payments to main contractor,,,,,,No
The Royal Borough of Kensington and Chelsea,RBKC,,Statutory Year-End Adjustments,Statutory Year-End Adjustments,,K & T Heating Services Ltd ,1231384,,,,08/02/2023,2200299802,"14,616.30",,Payments to main contractor,,,,,,No
The Royal Borough of Kensington and Chelsea,RBKC,,Statutory Year-End Adjustments,Statutory Year-End Adjustments,,K & T Heating Services Ltd ,1231384,,,,20/02/2023,2200302353,"7,329.43",,Payments to main contractor,,,,,,No
The Royal Borough of Kensington and Chelsea,RBKC,,Statutory Year-End Adjustments,Statutory Year-End Adjustments,,K & T Heating Services Ltd ,1231384,,,,20/02/2023,2200302355,"7,465.60",,Payments to main contractor,,,,,,No
The Royal Borough of Kensington and Chelsea,RBKC,,Statutory Year-End Adjustments,Statutory Year-End Adjustments,,K & T Heating Services Ltd ,1231384,,,,03/03/2023,2200305356,"4,084.80",,Heating System Replacement : CM,,,,,,No
The Royal Borough of Kensington and Chelsea,RBKC,,Statutory Year-End Adjustments,Statutory Year-End Adjustments,,K & T Heating Services Ltd ,1231384,,,,03/03/2023,2200305358,"1,241.49",,Heating System Replacement : CM,,,,,,No
The Royal Borough of Kensington and Chelsea,RBKC,,Statutory Year-End Adjustments,Statutory Year-End Adjustments,,K & T Heating Services Ltd ,1231384,,,,06/03/2023,2200305520,"7,329.43",,Payments to main contractor,,,,,,No
The Royal Borough of Kensington and Chelsea,RBKC,,Statutory Year-End Adjustments,Statutory Year-End Adjustments,,K & T Heating Services Ltd ,1231384,,,,06/03/2023,2200305521,"7,465.60",,Payments to main contractor,,,,,,No
The Royal Borough of Kensington and Chelsea,RBKC,,Statutory Year-End Adjustments,Statutory Year-End Adjustments,,K & T Heating Services Ltd ,1231384,,,,07/03/2023,2200306223,"2,731.72",,Heating System Replacement : CM,,,,,,No
The Royal Borough of Kensington and Chelsea,RBKC,,Statutory Year-End Adjustments,Statutory Year-End Adjustments,,K & T Heating Services Ltd ,1231384,,,,14/03/2023,2200307735,"134,517.27",,Payments to main contractor,,,,,,No
The Royal Borough of Kensington and Chelsea,RBKC,,Statutory Year-End Adjustments,Statutory Year-End Adjustments,,K & T Heating Services Ltd ,1231384,,,,15/03/2023,2200308004,912.36,,Heating System Replacement : CM,,,,,,No
The Royal Borough of Kensington and Chelsea,RBKC,,Statutory Year-End Adjustments,Statutory Year-End Adjustments,,K & T Heating Services Ltd ,1231384,,,,30/03/2023,2200311890,"3,170.85",,Heating System Replacement : CM,,,,,,No
The Royal Borough of Kensington and Chelsea,RBKC,,Statutory Year-End Adjustments,Statutory Year-End Adjustments,,KBH Building Services Ltd,1276614,,,,10/01/2023,2200293720,"36,628.47",,Special Maintenance,,,,,,No
The Royal Borough of Kensington and Chelsea,RBKC,,Statutory Year-End Adjustments,Statutory Year-End Adjustments,,KBH Building Services Ltd,1276614,,,,10/01/2023,2200293721,"47,684.03",,Special Maintenance,,,,,,No
The Royal Borough of Kensington and Chelsea,RBKC,,Statutory Year-End Adjustments,Statutory Year-End Adjustments,,KBH Building Services Ltd,1276614,,,,13/01/2023,2200294562,"34,650.85",,Special Maintenance,,,,,,No
The Royal Borough of Kensington and Chelsea,RBKC,,Statutory Year-End Adjustments,Statutory Year-End Adjustments,,KBH Building Services Ltd,1276614,,,,20/01/2023,2200296126,"36,016.14",,Special Maintenance,,,,,,No
The Royal Borough of Kensington and Chelsea,RBKC,,Statutory Year-End Adjustments,Statutory Year-End Adjustments,,KBH Building Services Ltd,1276614,,,,20/01/2023,2200296128,"5,128.73",,Special Maintenance,,,,,,No
The Royal Borough of Kensington and Chelsea,RBKC,,Statutory Year-End Adjustments,Statutory Year-End Adjustments,,KBH Building Services Ltd,1276614,,,,02/02/2023,2200298720,"35,688.73",,Special Maintenance,,,,,,No
The Royal Borough of Kensington and Chelsea,RBKC,,Statutory Year-End Adjustments,Statutory Year-End Adjustments,,KBH Building Services Ltd,1276614,,,,23/02/2023,2200303558,"37,651.49",,Special Maintenance,,,,,,No
The Royal Borough of Kensington and Chelsea,RBKC,,Statutory Year-End Adjustments,Statutory Year-End Adjustments,,KBH Building Services Ltd,1276614,,,,23/02/2023,2200303565,"5,440.00",,Payments to main contractor,,,,,,No
The Royal Borough of Kensington and Chelsea,RBKC,,Statutory Year-End Adjustments,Statutory Year-End Adjustments,,KBH Building Services Ltd,1276614,,,,24/02/2023,2200303736,"51,414.50",,Special Maintenance,,,,,,No
The Royal Borough of Kensington and Chelsea,RBKC,,Statutory Year-End Adjustments,Statutory Year-End Adjustments,,KBH Building Services Ltd,1276614,,,,24/02/2023,2200303745,"8,021.82",,Special Maintenance,,,,,,No
The Royal Borough of Kensington and Chelsea,RBKC,,Statutory Year-End Adjustments,Statutory Year-End Adjustments,,KBH Building Services Ltd,1276614,,,,15/03/2023,2200307948,650,,Special Maintenance,,,,,,No
The Royal Borough of Kensington and Chelsea,RBKC,,Statutory Year-End Adjustments,Statutory Year-End Adjustments,,KBH Building Services Ltd,1276614,,,,16/03/2023,2200308331,"27,782.26",,Special Maintenance,,,,,,No
The Royal Borough of Kensington and Chelsea,RBKC,,Statutory Year-End Adjustments,Statutory Year-End Adjustments,,KBH Building Services Ltd,1276614,,,,28/03/2023,2200311085,"37,594.64",,Special Maintenance,,,,,,No
The Royal Borough of Kensington and Chelsea,RBKC,,Statutory Year-End Adjustments,Statutory Year-End Adjustments,,KBH Building Services Ltd,1276614,,,,30/03/2023,2200311899,"8,859.68",,Special Maintenance,,,,,,No
The Royal Borough of Kensington and Chelsea,RBKC,,Statutory Year-End Adjustments,Statutory Year-End Adjustments,,KBH Building Services Ltd,1276614,,,,30/03/2023,2200311901,650.62,,Special Maintenance,,,,,,No
The Royal Borough of Kensington and Chelsea,RBKC,,Statutory Year-End Adjustments,Statutory Year-End Adjustments,,KBH Building Services Ltd,1276614,,,,30/03/2023,2200311902,500.44,,Special Maintenance,,,,,,No
The Royal Borough of Kensington and Chelsea,RBKC,,Statutory Year-End Adjustments,Statutory Year-End Adjustments,,KEEL SURVEYORS PARTNERSHI,1234846,,,,12/01/2023,2200294269,900,,Site Works,,,,,,No
The Royal Borough of Kensington and Chelsea,RBKC,,Statutory Year-End Adjustments,Statutory Year-End Adjustments,,Kensington +Chelsea Art Weekend Ltd,1268762,,,,24/02/2023,2200303752,"4,830.00",,Payments to main contractor,,,,,,No
The Royal Borough of Kensington and Chelsea,RBKC,,Statutory Year-End Adjustments,Statutory Year-End Adjustments,,LSE Enterprise Ltd,1281979,,,,02/03/2023,2200304985,"12,735.00",,Design Consultant,,,,,,No
The Royal Borough of Kensington and Chelsea,RBKC,,Statutory Year-End Adjustments,Statutory Year-End Adjustments,,Landmark Building Contractors Ltd,1284403,,,,23/02/2023,2200303303,"7,566.00",,Payments to main contractor,,,,,,No
The Royal Borough of Kensington and Chelsea,RBKC,,Statutory Year-End Adjustments,Statutory Year-End Adjustments,,Landmark Building Contractors Ltd,1284403,,,,23/02/2023,2200303306,"2,192.00",,Payments to main contractor,,,,,,No
The Royal Borough of Kensington and Chelsea,RBKC,,Statutory Year-End Adjustments,Statutory Year-End Adjustments,,Landmark Building Contractors Ltd,1284403,,,,15/03/2023,2200307973,"7,521.00",,Payments to main contractor,,,,,,No
The Royal Borough of Kensington and Chelsea,RBKC,,Statutory Year-End Adjustments,Statutory Year-End Adjustments,,Landmark Building Contractors Ltd,1284403,,,,29/03/2023,2200311287,"7,128.94",,Payments to main contractor,,,,,,No
The Royal Borough of Kensington and Chelsea,RBKC,,Statutory Year-End Adjustments,Statutory Year-End Adjustments,,Landrock Phillips Ltd ,1230566,,,,11/01/2023,2200294154,"2,054.40",,Construction : enhancements,,,,,,No
The Royal Borough of Kensington and Chelsea,RBKC,,Statutory Year-End Adjustments,Statutory Year-End Adjustments,,Landrock Phillips Ltd ,1230566,,,,11/01/2023,2200294155,"3,835.80",,Construction : enhancements,,,,,,No
The Royal Borough of Kensington and Chelsea,RBKC,,Statutory Year-End Adjustments,Statutory Year-End Adjustments,,Landrock Phillips Ltd ,1230566,,,,09/02/2023,2200300423,"3,000.00",,Payments to main contractor,,,,,,No
The Royal Borough of Kensington and Chelsea,RBKC,,Statutory Year-End Adjustments,Statutory Year-End Adjustments,,Landrock Phillips Ltd ,1230566,,,,01/03/2023,2200304772,"1,685.80",,Construction : enhancements,,,,,,No
The Royal Borough of Kensington and Chelsea,RBKC,,Statutory Year-End Adjustments,Statutory Year-End Adjustments,,Lawtech Group Ltd,1273996,,,,16/01/2023,2200294639,"153,919.58",,Payments to main contractor,,,,,,No
The Royal Borough of Kensington and Chelsea,RBKC,,Statutory Year-End Adjustments,Statutory Year-End Adjustments,,Lawtech Group Ltd,1273996,,,,07/02/2023,2200299603,"245,832.85",,Payments to main contractor,,,,,,No
The Royal Borough of Kensington and Chelsea,RBKC,,Statutory Year-End Adjustments,Statutory Year-End Adjustments,,Lawtech Group Ltd,1273996,,,,03/03/2023,2200305229,"284,807.16",,Payments to main contractor,,,,,,No
The Royal Borough of Kensington and Chelsea,RBKC,,Statutory Year-End Adjustments,Statutory Year-End Adjustments,,Lawtech Group Ltd,1273996,,,,30/03/2023,2200311806,"164,881.41",,Payments to main contractor,,,,,,No
The Royal Borough of Kensington and Chelsea,RBKC,,Statutory Year-End Adjustments,Statutory Year-End Adjustments,,Redact Details,1231389,,,,01/02/2023,2200298274,"8,225.00",,Payments to main contractor,,,,,,No
The Royal Borough of Kensington and Chelsea,RBKC,,Statutory Year-End Adjustments,Statutory Year-End Adjustments,,Redact Details,1231389,,,,24/02/2023,2200303654,"5,660.00",,Payments to main contractor,,,,,,No
The Royal Borough of Kensington and Chelsea,RBKC,,Statutory Year-End Adjustments,Statutory Year-End Adjustments,,Lend Lease Consulting (Emea) Ltd ,1234899,,,,02/02/2023,2200298388,"1,000.00",,Site Works,,,,,,No
The Royal Borough of Kensington and Chelsea,RBKC,,Statutory Year-End Adjustments,Statutory Year-End Adjustments,,Lend Lease Consulting (Emea) Ltd ,1234899,,,,09/03/2023,2200306696,"1,000.00",,Site Works,,,,,,No
The Royal Borough of Kensington and Chelsea,RBKC,,Statutory Year-End Adjustments,Statutory Year-End Adjustments,,Liberty Adaptations Ltd,1277725,,,,31/03/2023,2200311989,"1,989.00",,Payments to main contractor,,,,,,No
The Royal Borough of Kensington and Chelsea,RBKC,,Statutory Year-End Adjustments,Statutory Year-End Adjustments,,Lift and Engineering Services Ltd,1289449,,,,27/03/2023,2200310613,"42,447.33",,Planned Maintenance (CM),,,,,,No
The Royal Borough of Kensington and Chelsea,RBKC,,Statutory Year-End Adjustments,Statutory Year-End Adjustments,,London Carpets,1230616,,,,17/02/2023,2200302006,"2,955.40",,Payments to main contractor,,,,,,No
The Royal Borough of Kensington and Chelsea,RBKC,,Statutory Year-End Adjustments,Statutory Year-End Adjustments,,London Underground Ltd ,1230631,,,,31/01/2023,2200297845,"4,124.25",,Site Works,,,,,,No
The Royal Borough of Kensington and Chelsea,RBKC,,Statutory Year-End Adjustments,Statutory Year-End Adjustments,,M.A.Simmonds Installation Limited,1299773,,,,04/01/2023,2200292440,"1,897.12",,Construction : enhancements,,,,,,No
The Royal Borough of Kensington and Chelsea,RBKC,,Statutory Year-End Adjustments,Statutory Year-End Adjustments,,M.A.Simmonds Installation Limited,1299773,,,,01/02/2023,2200298155,"1,422.84",,Construction : enhancements,,,,,,No
The Royal Borough of Kensington and Chelsea,RBKC,,Statutory Year-End Adjustments,Statutory Year-End Adjustments,,M.A.Simmonds Installation Limited,1299773,,,,23/03/2023,2200310044,"5,372.52",,Construction : enhancements,,,,,,No
The Royal Borough of Kensington and Chelsea,RBKC,,Statutory Year-End Adjustments,Statutory Year-End Adjustments,,M10 Fire Consultncy Ltd,1273351,,,,07/02/2023,2200299604,"1,220.00",,Other Consultants,,,,,,No
The Royal Borough of Kensington and Chelsea,RBKC,,Statutory Year-End Adjustments,Statutory Year-End Adjustments,,MBNH Ltd,1295395,,,,30/01/2023,2200297560,"66,000.00",,Creditors Control : AP GRIR,,,,,,No
The Royal Borough of Kensington and Chelsea,RBKC,,Statutory Year-End Adjustments,Statutory Year-End Adjustments,,MDA Consulting Limited ,1234989,,,,25/01/2023,2200296923,800,,Payments to main contractor,,,,,,No
The Royal Borough of Kensington and Chelsea,RBKC,,Statutory Year-End Adjustments,Statutory Year-End Adjustments,,MDA Consulting Limited ,1234989,,,,30/01/2023,2200297495,800,,Payments to main contractor,,,,,,No
The Royal Borough of Kensington and Chelsea,RBKC,,Statutory Year-End Adjustments,Statutory Year-End Adjustments,,MDA Consulting Limited ,1234989,,,,07/02/2023,2200299670,840,,Other Consultants,,,,,,No
The Royal Borough of Kensington and Chelsea,RBKC,,Statutory Year-End Adjustments,Statutory Year-End Adjustments,,MDA Consulting Limited ,1234989,,,,24/02/2023,2200303655,"3,700.00",,Site Works,,,,,,No
The Royal Borough of Kensington and Chelsea,RBKC,,Statutory Year-End Adjustments,Statutory Year-End Adjustments,,MDA Consulting Limited ,1234989,,,,28/02/2023,2200304360,"3,700.00",,Site Works,,,,,,No
The Royal Borough of Kensington and Chelsea,RBKC,,Statutory Year-End Adjustments,Statutory Year-End Adjustments,,ME Construction Limited,1278687,,,,04/01/2023,2200292246,"40,531.05",,Planned Maintenance (CM),,,,,,No
The Royal Borough of Kensington and Chelsea,RBKC,,Statutory Year-End Adjustments,Statutory Year-End Adjustments,,ME Construction Limited,1278687,,,,09/01/2023,2200293522,"2,878.08",,Construction : enhancements,,,,,,No
The Royal Borough of Kensington and Chelsea,RBKC,,Statutory Year-End Adjustments,Statutory Year-End Adjustments,,ME Construction Limited,1278687,,,,13/02/2023,2200300751,"30,865.22",,Payments to main contractor,,,,,,No
The Royal Borough of Kensington and Chelsea,RBKC,,Statutory Year-End Adjustments,Statutory Year-End Adjustments,,MEC London Ltd ,1231398,,,,21/02/2023,2200302774,"5,143.00",,Planned Maintenance (CM),,,,,,No
The Royal Borough of Kensington and Chelsea,RBKC,,Statutory Year-End Adjustments,Statutory Year-End Adjustments,,MMP Consultancy Ltd,1289790,,,,03/01/2023,2200292135,"1,278.09",,Capitalised salaries,,,,,,No
The Royal Borough of Kensington and Chelsea,RBKC,,Statutory Year-End Adjustments,Statutory Year-End Adjustments,,MMP Consultancy Ltd,1289790,,,,03/01/2023,2200292149,"1,032.80",,Capitalised salaries,,,,,,No
The Royal Borough of Kensington and Chelsea,RBKC,,Statutory Year-End Adjustments,Statutory Year-End Adjustments,,MMP Consultancy Ltd,1289790,,,,03/01/2023,2200292152,"1,278.09",,Capitalised salaries,,,,,,No
The Royal Borough of Kensington and Chelsea,RBKC,,Statutory Year-End Adjustments,Statutory Year-End Adjustments,,MMP Consultancy Ltd,1289790,,,,04/01/2023,2200292390,"2,250.00",,Capitalised salaries,,,,,,No
The Royal Borough of Kensington and Chelsea,RBKC,,Statutory Year-End Adjustments,Statutory Year-End Adjustments,,MMP Consultancy Ltd,1289790,,,,04/01/2023,2200292392,"2,250.00",,Capitalised salaries,,,,,,No
The Royal Borough of Kensington and Chelsea,RBKC,,Statutory Year-End Adjustments,Statutory Year-End Adjustments,,MMP Consultancy Ltd,1289790,,,,04/01/2023,2200292407,"2,250.00",,Capitalised salaries,,,,,,No
The Royal Borough of Kensington and Chelsea,RBKC,,Statutory Year-End Adjustments,Statutory Year-End Adjustments,,MMP Consultancy Ltd,1289790,,,,04/01/2023,2200292416,852.06,,Capitalised salaries,,,,,,No
The Royal Borough of Kensington and Chelsea,RBKC,,Statutory Year-End Adjustments,Statutory Year-End Adjustments,,MMP Consultancy Ltd,1289790,,,,05/01/2023,2200292593,"1,350.00",,Capitalised salaries,,,,,,No
The Royal Borough of Kensington and Chelsea,RBKC,,Statutory Year-End Adjustments,Statutory Year-End Adjustments,,MMP Consultancy Ltd,1289790,,,,11/01/2023,2200294149,"1,800.00",,Capitalised salaries,,,,,,No
The Royal Borough of Kensington and Chelsea,RBKC,,Statutory Year-End Adjustments,Statutory Year-End Adjustments,,MMP Consultancy Ltd,1289790,,,,13/01/2023,2200294559,"1,136.08",,Capitalised salaries,,,,,,No
The Royal Borough of Kensington and Chelsea,RBKC,,Statutory Year-End Adjustments,Statutory Year-End Adjustments,,MMP Consultancy Ltd,1289790,,,,19/01/2023,2200295855,"2,582.00",,Capitalised salaries,,,,,,No
The Royal Borough of Kensington and Chelsea,RBKC,,Statutory Year-End Adjustments,Statutory Year-End Adjustments,,MMP Consultancy Ltd,1289790,,,,19/01/2023,2200295856,"2,065.60",,Capitalised salaries,,,,,,No
The Royal Borough of Kensington and Chelsea,RBKC,,Statutory Year-End Adjustments,Statutory Year-End Adjustments,,MMP Consultancy Ltd,1289790,,,,19/01/2023,2200295857,"1,420.10",,Capitalised salaries,,,,,,No
The Royal Borough of Kensington and Chelsea,RBKC,,Statutory Year-End Adjustments,Statutory Year-End Adjustments,,MMP Consultancy Ltd,1289790,,,,25/01/2023,2200296896,"2,250.00",,Capitalised salaries,,,,,,No
The Royal Borough of Kensington and Chelsea,RBKC,,Statutory Year-End Adjustments,Statutory Year-End Adjustments,,MMP Consultancy Ltd,1289790,,,,25/01/2023,2200296897,"2,250.00",,Capitalised salaries,,,,,,No
The Royal Borough of Kensington and Chelsea,RBKC,,Statutory Year-End Adjustments,Statutory Year-End Adjustments,,MMP Consultancy Ltd,1289790,,,,26/01/2023,2200297047,"2,582.00",,Capitalised salaries,,,,,,No
The Royal Borough of Kensington and Chelsea,RBKC,,Statutory Year-End Adjustments,Statutory Year-End Adjustments,,MMP Consultancy Ltd,1289790,,,,01/02/2023,2200298157,"2,250.00",,Capitalised salaries,,,,,,No
The Royal Borough of Kensington and Chelsea,RBKC,,Statutory Year-End Adjustments,Statutory Year-End Adjustments,,MMP Consultancy Ltd,1289790,,,,02/02/2023,2200298707,"2,065.60",,Capitalised salaries,,,,,,No
The Royal Borough of Kensington and Chelsea,RBKC,,Statutory Year-End Adjustments,Statutory Year-End Adjustments,,MMP Consultancy Ltd,1289790,,,,02/02/2023,2200298708,568.04,,Capitalised salaries,,,,,,No
The Royal Borough of Kensington and Chelsea,RBKC,,Statutory Year-End Adjustments,Statutory Year-End Adjustments,,MMP Consultancy Ltd,1289790,,,,02/02/2023,2200298709,852.06,,Capitalised salaries,,,,,,No
The Royal Borough of Kensington and Chelsea,RBKC,,Statutory Year-End Adjustments,Statutory Year-End Adjustments,,MMP Consultancy Ltd,1289790,,,,08/02/2023,2200300015,"1,350.00",,Capitalised salaries,,,,,,No
The Royal Borough of Kensington and Chelsea,RBKC,,Statutory Year-End Adjustments,Statutory Year-End Adjustments,,MMP Consultancy Ltd,1289790,,,,14/02/2023,2200301079,"2,582.00",,Capitalised salaries,,,,,,No
The Royal Borough of Kensington and Chelsea,RBKC,,Statutory Year-End Adjustments,Statutory Year-End Adjustments,,MMP Consultancy Ltd,1289790,,,,14/02/2023,2200301081,"1,420.10",,Capitalised salaries,,,,,,No
The Royal Borough of Kensington and Chelsea,RBKC,,Statutory Year-End Adjustments,Statutory Year-End Adjustments,,MMP Consultancy Ltd,1289790,,,,17/02/2023,2200302103,"2,250.00",,Capitalised salaries,,,,,,No
The Royal Borough of Kensington and Chelsea,RBKC,,Statutory Year-End Adjustments,Statutory Year-End Adjustments,,MMP Consultancy Ltd,1289790,,,,21/02/2023,2200302855,"2,582.00",,Capitalised salaries,,,,,,No
The Royal Borough of Kensington and Chelsea,RBKC,,Statutory Year-End Adjustments,Statutory Year-End Adjustments,,MMP Consultancy Ltd,1289790,,,,21/02/2023,2200302856,"1,278.09",,Capitalised salaries,,,,,,No
The Royal Borough of Kensington and Chelsea,RBKC,,Statutory Year-End Adjustments,Statutory Year-End Adjustments,,MMP Consultancy Ltd,1289790,,,,22/02/2023,2200303204,"2,250.00",,Capitalised salaries,,,,,,No
The Royal Borough of Kensington and Chelsea,RBKC,,Statutory Year-End Adjustments,Statutory Year-End Adjustments,,MMP Consultancy Ltd,1289790,,,,23/02/2023,2200303559,"2,582.00",,Capitalised salaries,,,,,,No
The Royal Borough of Kensington and Chelsea,RBKC,,Statutory Year-End Adjustments,Statutory Year-End Adjustments,,MMP Consultancy Ltd,1289790,,,,23/02/2023,2200303561,"1,278.09",,Capitalised salaries,,,,,,No
The Royal Borough of Kensington and Chelsea,RBKC,,Statutory Year-End Adjustments,Statutory Year-End Adjustments,,MMP Consultancy Ltd,1289790,,,,24/02/2023,2200303770,"2,582.00",,Capitalised salaries,,,,,,No
The Royal Borough of Kensington and Chelsea,RBKC,,Statutory Year-End Adjustments,Statutory Year-End Adjustments,,MMP Consultancy Ltd,1289790,,,,02/03/2023,2200304991,"2,250.00",,Capitalised salaries,,,,,,No
The Royal Borough of Kensington and Chelsea,RBKC,,Statutory Year-End Adjustments,Statutory Year-End Adjustments,,MMP Consultancy Ltd,1289790,,,,03/03/2023,2200305361,"1,136.08",,Capitalised salaries,,,,,,No
The Royal Borough of Kensington and Chelsea,RBKC,,Statutory Year-End Adjustments,Statutory Year-End Adjustments,,MMP Consultancy Ltd,1289790,,,,03/03/2023,2200305362,"2,065.60",,Capitalised salaries,,,,,,No
The Royal Borough of Kensington and Chelsea,RBKC,,Statutory Year-End Adjustments,Statutory Year-End Adjustments,,MMP Consultancy Ltd,1289790,,,,10/03/2023,2200307070,"2,250.00",,Capitalised salaries,,,,,,No
The Royal Borough of Kensington and Chelsea,RBKC,,Statutory Year-End Adjustments,Statutory Year-End Adjustments,,MMP Consultancy Ltd,1289790,,,,15/03/2023,2200307947,"2,582.00",,Capitalised salaries,,,,,,No
The Royal Borough of Kensington and Chelsea,RBKC,,Statutory Year-End Adjustments,Statutory Year-End Adjustments,,MMP Consultancy Ltd,1289790,,,,15/03/2023,2200307964,"2,582.00",,Capitalised salaries,,,,,,No
The Royal Borough of Kensington and Chelsea,RBKC,,Statutory Year-End Adjustments,Statutory Year-End Adjustments,,MMP Consultancy Ltd,1289790,,,,16/03/2023,2200308354,"1,420.10",,Capitalised salaries,,,,,,No
The Royal Borough of Kensington and Chelsea,RBKC,,Statutory Year-End Adjustments,Statutory Year-End Adjustments,,MMP Consultancy Ltd,1289790,,,,28/03/2023,2200311112,"1,420.10",,Capitalised salaries,,,,,,No
The Royal Borough of Kensington and Chelsea,RBKC,,Statutory Year-End Adjustments,Statutory Year-End Adjustments,,MMP Consultancy Ltd,1289790,,,,30/03/2023,2200311891,"1,420.10",,Capitalised salaries,,,,,,No
The Royal Borough of Kensington and Chelsea,RBKC,,Statutory Year-End Adjustments,Statutory Year-End Adjustments,,MMP Consultancy Ltd,1289790,,,,30/03/2023,2200311895,"2,582.00",,Capitalised salaries,,,,,,No
The Royal Borough of Kensington and Chelsea,RBKC,,Statutory Year-End Adjustments,Statutory Year-End Adjustments,,MMP Consultancy Ltd,1289790,,,,31/03/2023,2200312162,"2,582.00",,Capitalised salaries,,,,,,No
The Royal Borough of Kensington and Chelsea,RBKC,,Statutory Year-End Adjustments,Statutory Year-End Adjustments,,MNM Property Services Ltd,1230704,,,,13/01/2023,2200294572,"14,272.35",,Professional Fees : Non Legal,,,,,,No
The Royal Borough of Kensington and Chelsea,RBKC,,Statutory Year-End Adjustments,Statutory Year-End Adjustments,,MNM Property Services Ltd,1230704,,,,27/02/2023,2200303902,"2,925.00",,Professional Fees : Non Legal,,,,,,No
The Royal Borough of Kensington and Chelsea,RBKC,,Statutory Year-End Adjustments,Statutory Year-End Adjustments,,MNM Property Services Ltd,1230704,,,,13/03/2023,2200307292,"19,510.52",,Professional Fees : Non Legal,,,,,,No
The Royal Borough of Kensington and Chelsea,RBKC,,Statutory Year-End Adjustments,Statutory Year-End Adjustments,,Mace Limited ,1230643,,,,09/01/2023,2200293266,"376,609.77",,Payments to main contractor,,,,,,No
The Royal Borough of Kensington and Chelsea,RBKC,,Statutory Year-End Adjustments,Statutory Year-End Adjustments,,Marlborough Primary School ,1232813,,,,30/01/2023,3110516591,"424,488.59",,Payments to main contractor,,,,,,No
The Royal Borough of Kensington and Chelsea,RBKC,,Statutory Year-End Adjustments,Statutory Year-End Adjustments,,Master Locking Systems Ltd,1262396,,,,31/01/2023,2200297887,"1,082.04",,Creditors Control : AP GRIR,,,,,,No
The Royal Borough of Kensington and Chelsea,RBKC,,Statutory Year-End Adjustments,Statutory Year-End Adjustments,,Master Locking Systems Ltd,1262396,,,,01/02/2023,2200298047,"1,412.57",,Creditors Control : AP GRIR,,,,,,No
The Royal Borough of Kensington and Chelsea,RBKC,,Statutory Year-End Adjustments,Statutory Year-End Adjustments,,Master Locking Systems Ltd,1262396,,,,07/02/2023,2200299578,500,,Creditors Control : AP GRIR,,,,,,No
The Royal Borough of Kensington and Chelsea,RBKC,,Statutory Year-End Adjustments,Statutory Year-End Adjustments,,Mayer Brown Limited,1290535,,,,09/01/2023,2200293295,500,,Other Consultants,,,,,,No
The Royal Borough of Kensington and Chelsea,RBKC,,Statutory Year-End Adjustments,Statutory Year-End Adjustments,,Mayer Brown Limited,1290535,,,,09/01/2023,2200293298,600,,Site Works,,,,,,No
The Royal Borough of Kensington and Chelsea,RBKC,,Statutory Year-End Adjustments,Statutory Year-End Adjustments,,Mayer Brown Limited,1290535,,,,17/01/2023,2200295258,937.5,,Site Works,,,,,,No
The Royal Borough of Kensington and Chelsea,RBKC,,Statutory Year-End Adjustments,Statutory Year-End Adjustments,,Mayer Brown Limited,1290535,,,,20/02/2023,2200302428,"1,136.25",,Other Consultants,,,,,,No
The Royal Borough of Kensington and Chelsea,RBKC,,Statutory Year-End Adjustments,Statutory Year-End Adjustments,,Meristem Design Limited,1259153,,,,31/03/2023,2200312084,"20,000.00",,Other Consultants,,,,,,No
The Royal Borough of Kensington and Chelsea,RBKC,,Statutory Year-End Adjustments,Statutory Year-End Adjustments,,Michael Barclay Partnership LLP ,1235000,,,,17/01/2023,2200294923,"4,800.00",,Site Works,,,,,,No
The Royal Borough of Kensington and Chelsea,RBKC,,Statutory Year-End Adjustments,Statutory Year-End Adjustments,,Michael Barclay Partnership LLP ,1235000,,,,17/01/2023,2200294925,"5,500.00",,Site Works,,,,,,No
The Royal Borough of Kensington and Chelsea,RBKC,,Statutory Year-End Adjustments,Statutory Year-End Adjustments,,Michael Barclay Partnership LLP ,1235000,,,,17/01/2023,2200294926,"15,000.00",,Site Works,,,,,,No
The Royal Borough of Kensington and Chelsea,RBKC,,Statutory Year-End Adjustments,Statutory Year-End Adjustments,,Michael Dyson Associates Ltd ,1253270,,,,11/01/2023,2200293969,"16,898.13",,Professional Fees : Non Legal,,,,,,No
The Royal Borough of Kensington and Chelsea,RBKC,,Statutory Year-End Adjustments,Statutory Year-End Adjustments,,Michael Dyson Associates Ltd ,1253270,,,,13/02/2023,2200300726,"9,826.13",,Professional Fees : Non Legal,,,,,,No
The Royal Borough of Kensington and Chelsea,RBKC,,Statutory Year-End Adjustments,Statutory Year-End Adjustments,,Michael Dyson Associates Ltd ,1253270,,,,13/02/2023,2200300727,"15,130.83",,Professional Fees : Non Legal,,,,,,No
The Royal Borough of Kensington and Chelsea,RBKC,,Statutory Year-End Adjustments,Statutory Year-End Adjustments,,Michael Jenkins Ltd,1292734,,,,23/01/2023,2200296239,"10,892.00",,Construction : enhancements,,,,,,No
The Royal Borough of Kensington and Chelsea,RBKC,,Statutory Year-End Adjustments,Statutory Year-End Adjustments,,Michael Jenkins Ltd,1292734,,,,03/03/2023,2200305209,"12,479.00",,Construction : enhancements,,,,,,No
The Royal Borough of Kensington and Chelsea,RBKC,,Statutory Year-End Adjustments,Statutory Year-End Adjustments,,Michael Jenkins Ltd,1292734,,,,03/03/2023,2200305210,"42,830.00",,Construction : enhancements,,,,,,No
The Royal Borough of Kensington and Chelsea,RBKC,,Statutory Year-End Adjustments,Statutory Year-End Adjustments,,Michael Jenkins Ltd,1292734,,,,07/03/2023,2200306008,750,,Construction : enhancements,,,,,,No
The Royal Borough of Kensington and Chelsea,RBKC,,Statutory Year-End Adjustments,Statutory Year-End Adjustments,,T/A Ingine Ingine,1285916,,,,20/03/2023,2200309003,"1,050.00",,Construction : enhancements,,,,,,No
The Royal Borough of Kensington and Chelsea,RBKC,,Statutory Year-End Adjustments,Statutory Year-End Adjustments,,Milestone Contracting Limited,1289868,,,,19/01/2023,2200295730,"55,762.83",,Payments to main contractor,,,,,,No
The Royal Borough of Kensington and Chelsea,RBKC,,Statutory Year-End Adjustments,Statutory Year-End Adjustments,,Mitie Property Services (UK) Ltd ,1230701,,,,10/01/2023,2200293802,"187,664.12",,Payments to main contractor,,,,,,No
The Royal Borough of Kensington and Chelsea,RBKC,,Statutory Year-End Adjustments,Statutory Year-End Adjustments,,Mitie Property Services (UK) Ltd ,1230701,,,,10/01/2023,2200293836,"41,898.54",,Site Works,,,,,,No
The Royal Borough of Kensington and Chelsea,RBKC,,Statutory Year-End Adjustments,Statutory Year-End Adjustments,,Mitie Property Services (UK) Ltd ,1230701,,,,13/01/2023,2200294569,"33,106.16",,Planned Maintenance (CM),,,,,,No
The Royal Borough of Kensington and Chelsea,RBKC,,Statutory Year-End Adjustments,Statutory Year-End Adjustments,,Mitie Property Services (UK) Ltd ,1230701,,,,20/01/2023,2200296127,"159,062.33",,Payments to main contractor,,,,,,No
The Royal Borough of Kensington and Chelsea,RBKC,,Statutory Year-End Adjustments,Statutory Year-End Adjustments,,Mitie Property Services (UK) Ltd ,1230701,,,,06/02/2023,2200299310,"27,642.48",,Site Works,,,,,,No
The Royal Borough of Kensington and Chelsea,RBKC,,Statutory Year-End Adjustments,Statutory Year-End Adjustments,,Mitie Property Services (UK) Ltd ,1230701,,,,16/02/2023,2200301765,"69,763.36",,Payments to sub contractor,,,,,,No
The Royal Borough of Kensington and Chelsea,RBKC,,Statutory Year-End Adjustments,Statutory Year-End Adjustments,,Mitie Property Services (UK) Ltd ,1230701,,,,27/02/2023,2200304190,"37,283.61",,Payments to main contractor,,,,,,No
The Royal Borough of Kensington and Chelsea,RBKC,,Statutory Year-End Adjustments,Statutory Year-End Adjustments,,Mitie Property Services (UK) Ltd ,1230701,,,,15/03/2023,2200307917,"5,398.19",,Payments to main contractor,,,,,,No
The Royal Borough of Kensington and Chelsea,RBKC,,Statutory Year-End Adjustments,Statutory Year-End Adjustments,,Mitie Property Services (UK) Ltd ,1230701,,,,21/03/2023,2200309060,"12,849.41",,Site Works,,,,,,No
The Royal Borough of Kensington and Chelsea,RBKC,,Statutory Year-End Adjustments,Statutory Year-End Adjustments,,Mitie Property Services (UK) Ltd ,1230701,,,,22/03/2023,2200309586,"122,949.51",,Payments to main contractor,,,,,,No
The Royal Borough of Kensington and Chelsea,RBKC,,Statutory Year-End Adjustments,Statutory Year-End Adjustments,,Mitie Property Services (UK) Ltd ,1230701,,,,28/03/2023,2200311166,"24,641.75",,Site Works,,,,,,No
The Royal Borough of Kensington and Chelsea,RBKC,,Statutory Year-End Adjustments,Statutory Year-End Adjustments,,Morgan Sindall Construction,1260362,,,,06/01/2023,2200292791,"460,559.38",,Payments to main contractor,,,,,,No
The Royal Borough of Kensington and Chelsea,RBKC,,Statutory Year-End Adjustments,Statutory Year-End Adjustments,,Morgan Sindall Construction,1260362,,,,10/01/2023,2200293777,"832,437.00",,Site Works,,,,,,No
The Royal Borough of Kensington and Chelsea,RBKC,,Statutory Year-End Adjustments,Statutory Year-End Adjustments,,Morgan Sindall Construction,1260362,,,,07/02/2023,2200299668,"371,251.83",,Payments to main contractor,,,,,,No
The Royal Borough of Kensington and Chelsea,RBKC,,Statutory Year-End Adjustments,Statutory Year-End Adjustments,,Morgan Sindall Construction,1260362,,,,17/02/2023,2200302076,"487,217.00",,Site Works,,,,,,No
The Royal Borough of Kensington and Chelsea,RBKC,,Statutory Year-End Adjustments,Statutory Year-End Adjustments,,Morgan Sindall Construction,1260362,,,,13/03/2023,2200307299,"538,701.00",,Site Works,,,,,,No
The Royal Borough of Kensington and Chelsea,RBKC,,Statutory Year-End Adjustments,Statutory Year-End Adjustments,,Morgan Sindall Construction,1260362,,,,22/03/2023,2200309514,"534,710.99",,Payments to main contractor,,,,,,No
The Royal Borough of Kensington and Chelsea,RBKC,,Statutory Year-End Adjustments,Statutory Year-End Adjustments,,Mulalley & Company Ltd ,1231403,,,,09/01/2023,2200293519,"333,306.35",,Payments to main contractor,,,,,,No
The Royal Borough of Kensington and Chelsea,RBKC,,Statutory Year-End Adjustments,Statutory Year-End Adjustments,,Mulalley & Company Ltd ,1231403,,,,13/01/2023,2200294571,"85,138.27",,Construction : enhancements,,,,,,No
The Royal Borough of Kensington and Chelsea,RBKC,,Statutory Year-End Adjustments,Statutory Year-End Adjustments,,Mulalley & Company Ltd ,1231403,,,,27/01/2023,2200297307,"241,347.06",,Payments to main contractor,,,,,,No
The Royal Borough of Kensington and Chelsea,RBKC,,Statutory Year-End Adjustments,Statutory Year-End Adjustments,,Mulalley & Company Ltd ,1231403,,,,27/01/2023,2200297317,"18,212.18",,Payments to main contractor,,,,,,No
The Royal Borough of Kensington and Chelsea,RBKC,,Statutory Year-End Adjustments,Statutory Year-End Adjustments,,Mulalley & Company Ltd ,1231403,,,,30/01/2023,2200297674,"202,570.96",,Payments to main contractor,,,,,,No
The Royal Borough of Kensington and Chelsea,RBKC,,Statutory Year-End Adjustments,Statutory Year-End Adjustments,,Mulalley & Company Ltd ,1231403,,,,13/02/2023,2200300828,"7,259.59",,Payments to main contractor,,,,,,No
The Royal Borough of Kensington and Chelsea,RBKC,,Statutory Year-End Adjustments,Statutory Year-End Adjustments,,Mulalley & Company Ltd ,1231403,,,,13/02/2023,2200300832,"7,259.59",,Payments to main contractor,,,,,,No
The Royal Borough of Kensington and Chelsea,RBKC,,Statutory Year-End Adjustments,Statutory Year-End Adjustments,,Mulalley & Company Ltd ,1231403,,,,16/02/2023,2200301846,"215,929.08",,Construction : enhancements,,,,,,No
The Royal Borough of Kensington and Chelsea,RBKC,,Statutory Year-End Adjustments,Statutory Year-End Adjustments,,Mulalley & Company Ltd ,1231403,,,,16/02/2023,2200301849,"223,991.83",,Payments to main contractor,,,,,,No
The Royal Borough of Kensington and Chelsea,RBKC,,Statutory Year-End Adjustments,Statutory Year-End Adjustments,,Mulalley & Company Ltd ,1231403,,,,07/03/2023,2200306154,"27,122.68",,Payments to main contractor,,,,,,No
The Royal Borough of Kensington and Chelsea,RBKC,,Statutory Year-End Adjustments,Statutory Year-End Adjustments,,Mulalley & Company Ltd ,1231403,,,,09/03/2023,2200306542,"415,482.28",,Construction : enhancements,,,,,,No
The Royal Borough of Kensington and Chelsea,RBKC,,Statutory Year-End Adjustments,Statutory Year-End Adjustments,,Mulalley & Company Ltd ,1231403,,,,16/03/2023,2200308288,"305,314.82",,Payments to main contractor,,,,,,No
The Royal Borough of Kensington and Chelsea,RBKC,,Statutory Year-End Adjustments,Statutory Year-End Adjustments,,Mulalley & Company Ltd ,1231403,,,,21/03/2023,2200309153,"8,642.79",,Payments to main contractor,,,,,,No
The Royal Borough of Kensington and Chelsea,RBKC,,Statutory Year-End Adjustments,Statutory Year-End Adjustments,,T/A SVM Associates,1230750,,,,05/01/2023,2200292696,990,,Planned Maintenance (CM),,,,,,No
The Royal Borough of Kensington and Chelsea,RBKC,,Statutory Year-End Adjustments,Statutory Year-End Adjustments,,T/A SVM Associates,1230750,,,,10/01/2023,2200293659,"1,000.00",,Planned Maintenance (CM),,,,,,No
The Royal Borough of Kensington and Chelsea,RBKC,,Statutory Year-End Adjustments,Statutory Year-End Adjustments,,T/A SVM Associates,1230750,,,,25/01/2023,2200296912,"1,000.00",,Planned Maintenance (CM),,,,,,No
The Royal Borough of Kensington and Chelsea,RBKC,,Statutory Year-End Adjustments,Statutory Year-End Adjustments,,T/A SVM Associates,1230750,,,,09/03/2023,2200306768,"2,500.00",,Planned Maintenance (CM),,,,,,No
The Royal Borough of Kensington and Chelsea,RBKC,,Statutory Year-End Adjustments,Statutory Year-End Adjustments,,T/A SVM Associates,1230750,,,,21/03/2023,2200309291,"5,400.00",,Planned Maintenance (CM),,,,,,No
The Royal Borough of Kensington and Chelsea,RBKC,,Statutory Year-End Adjustments,Statutory Year-End Adjustments,,T/A SVM Associates,1230750,,,,22/03/2023,2200309552,590,,Planned Maintenance (CM),,,,,,No
The Royal Borough of Kensington and Chelsea,RBKC,,Statutory Year-End Adjustments,Statutory Year-End Adjustments,,T/A SVM Associates,1230750,,,,22/03/2023,2200309559,"2,000.00",,Planned Maintenance (CM),,,,,,No
The Royal Borough of Kensington and Chelsea,RBKC,,Statutory Year-End Adjustments,Statutory Year-End Adjustments,,T/A SVM Associates,1230750,,,,22/03/2023,2200309560,"1,900.00",,Planned Maintenance (CM),,,,,,No
The Royal Borough of Kensington and Chelsea,RBKC,,Statutory Year-End Adjustments,Statutory Year-End Adjustments,,T/A SVM Associates,1230750,,,,22/03/2023,2200309562,"3,000.00",,Planned Maintenance (CM),,,,,,No
The Royal Borough of Kensington and Chelsea,RBKC,,Statutory Year-End Adjustments,Statutory Year-End Adjustments,,T/A SVM Associates,1230750,,,,23/03/2023,2200309785,"6,800.00",,Planned Maintenance (CM),,,,,,No
The Royal Borough of Kensington and Chelsea,RBKC,,Statutory Year-End Adjustments,Statutory Year-End Adjustments,,T/A SVM Associates,1230750,,,,30/03/2023,2200311697,"3,600.00",,Planned Maintenance (CM),,,,,,No
The Royal Borough of Kensington and Chelsea,RBKC,,Statutory Year-End Adjustments,Statutory Year-End Adjustments,,NEO Media Signage Limited,1300847,,,,13/01/2023,2200294510,"5,432.20",,Site Supervision,,,,,,No
The Royal Borough of Kensington and Chelsea,RBKC,,Statutory Year-End Adjustments,Statutory Year-End Adjustments,,NORTH SV LIMITED,1271756,,,,15/02/2023,2200301361,"44,000.00",,Other capital equipment,,,,,,No
The Royal Borough of Kensington and Chelsea,RBKC,,Statutory Year-End Adjustments,Statutory Year-End Adjustments,,Nathaniel Lichfields and Partners,1265397,,,,17/02/2023,2200302084,"1,560.00",,Architects,,,,,,No
The Royal Borough of Kensington and Chelsea,RBKC,,Statutory Year-End Adjustments,Statutory Year-End Adjustments,,Network Communication Systems Limit,1292558,,,,17/03/2023,2200308588,"10,000.00",,Professional Fees : Non Legal,,,,,,No
The Royal Borough of Kensington and Chelsea,RBKC,,Statutory Year-End Adjustments,Statutory Year-End Adjustments,,Network Rail Infrastructure Ltd ,1231408,,,,09/03/2023,2200306694,"7,081.61",,Site Works,,,,,,No
The Royal Borough of Kensington and Chelsea,RBKC,,Statutory Year-End Adjustments,Statutory Year-End Adjustments,,Nimbus Engineering Consultants LTD,1290473,,,,18/01/2023,2200295480,"4,500.00",,Site Works,,,,,,No
The Royal Borough of Kensington and Chelsea,RBKC,,Statutory Year-End Adjustments,Statutory Year-End Adjustments,,Nimbus Engineering Consultants LTD,1290473,,,,09/02/2023,2200300132,"1,700.00",,Site Works,,,,,,No
The Royal Borough of Kensington and Chelsea,RBKC,,Statutory Year-End Adjustments,Statutory Year-End Adjustments,,Noodle Services and Solutions Limit,1301319,,,,09/01/2023,2200293176,"1,440.00",,Professional Fees : Non Legal,,,,,,No
The Royal Borough of Kensington and Chelsea,RBKC,,Statutory Year-End Adjustments,Statutory Year-End Adjustments,,Noodle Services and Solutions Limit,1301319,,,,01/02/2023,2200298280,"2,205.00",,Professional Fees : Non Legal,,,,,,No
The Royal Borough of Kensington and Chelsea,RBKC,,Statutory Year-End Adjustments,Statutory Year-End Adjustments,,Noodle Services and Solutions Limit,1301319,,,,09/03/2023,2200306754,"1,440.00",,Professional Fees : Non Legal,,,,,,No
The Royal Borough of Kensington and Chelsea,RBKC,,Statutory Year-End Adjustments,Statutory Year-End Adjustments,,T/A Manestream,1230948,,,,21/02/2023,2200302866,560,,Payments to main contractor,,,,,,No
The Royal Borough of Kensington and Chelsea,RBKC,,Statutory Year-End Adjustments,Statutory Year-End Adjustments,,Oakleaf Surveying Ltd ,1230946,,,,30/03/2023,2200311707,"2,250.00",,Planned Maintenance (CM),,,,,,No
The Royal Borough of Kensington and Chelsea,RBKC,,Statutory Year-End Adjustments,Statutory Year-End Adjustments,,Octavia Housing (Main Account) ,1230955,,,,01/03/2023,2200304654,"16,527.00",,Payments to main contractor,,,,,,No
The Royal Borough of Kensington and Chelsea,RBKC,,Statutory Year-End Adjustments,Statutory Year-End Adjustments,,Oracle Security Services Ltd ,1258033,,,,09/01/2023,2200293183,"2,030.56",,Construction Security,,,,,,No
The Royal Borough of Kensington and Chelsea,RBKC,,Statutory Year-End Adjustments,Statutory Year-End Adjustments,,Oracle Security Services Ltd ,1258033,,,,09/01/2023,2200293184,"2,030.56",,Construction Security,,,,,,No
The Royal Borough of Kensington and Chelsea,RBKC,,Statutory Year-End Adjustments,Statutory Year-End Adjustments,,Oracle Security Services Ltd ,1258033,,,,09/01/2023,2200293185,"2,248.12",,Construction Security,,,,,,No
The Royal Borough of Kensington and Chelsea,RBKC,,Statutory Year-End Adjustments,Statutory Year-End Adjustments,,Oracle Security Services Ltd ,1258033,,,,31/01/2023,2200297890,"2,030.56",,Construction Security,,,,,,No
The Royal Borough of Kensington and Chelsea,RBKC,,Statutory Year-End Adjustments,Statutory Year-End Adjustments,,Oracle Security Services Ltd ,1258033,,,,31/01/2023,2200297892,"2,030.56",,Construction Security,,,,,,No
The Royal Borough of Kensington and Chelsea,RBKC,,Statutory Year-End Adjustments,Statutory Year-End Adjustments,,Oracle Security Services Ltd ,1258033,,,,31/01/2023,2200297911,"2,030.56",,Construction Security,,,,,,No
The Royal Borough of Kensington and Chelsea,RBKC,,Statutory Year-End Adjustments,Statutory Year-End Adjustments,,Oracle Security Services Ltd ,1258033,,,,09/02/2023,2200300377,"2,030.56",,Construction Security,,,,,,No
The Royal Borough of Kensington and Chelsea,RBKC,,Statutory Year-End Adjustments,Statutory Year-End Adjustments,,Oracle Security Services Ltd ,1258033,,,,15/02/2023,2200301542,"2,030.56",,Construction Security,,,,,,No
The Royal Borough of Kensington and Chelsea,RBKC,,Statutory Year-End Adjustments,Statutory Year-End Adjustments,,Oracle Security Services Ltd ,1258033,,,,20/02/2023,2200302483,"2,030.56",,Construction Security,,,,,,No
The Royal Borough of Kensington and Chelsea,RBKC,,Statutory Year-End Adjustments,Statutory Year-End Adjustments,,Oracle Security Services Ltd ,1258033,,,,14/03/2023,2200307597,"2,030.56",,Construction Security,,,,,,No
The Royal Borough of Kensington and Chelsea,RBKC,,Statutory Year-End Adjustments,Statutory Year-End Adjustments,,Oracle Security Services Ltd ,1258033,,,,14/03/2023,2200307628,"2,030.56",,Construction Security,,,,,,No
The Royal Borough of Kensington and Chelsea,RBKC,,Statutory Year-End Adjustments,Statutory Year-End Adjustments,,Osborn Associates Ltd,1262963,,,,03/01/2023,2200292113,"1,500.00",,Other Consultants,,,,,,No
The Royal Borough of Kensington and Chelsea,RBKC,,Statutory Year-End Adjustments,Statutory Year-End Adjustments,,Osborn Associates Ltd,1262963,,,,07/02/2023,2200299671,"2,800.00",,Other Consultants,,,,,,No
The Royal Borough of Kensington and Chelsea,RBKC,,Statutory Year-End Adjustments,Statutory Year-End Adjustments,,Osborn Associates Ltd,1262963,,,,22/03/2023,2200309567,"1,800.00",,Other Consultants,,,,,,No
The Royal Borough of Kensington and Chelsea,RBKC,,Statutory Year-End Adjustments,Statutory Year-End Adjustments,,Osborn Associates Ltd,1262963,,,,22/03/2023,2200309568,500,,Other Consultants,,,,,,No
The Royal Borough of Kensington and Chelsea,RBKC,,Statutory Year-End Adjustments,Statutory Year-End Adjustments,,Oxford Gardens Primary School ,1232822,,,,06/01/2023,2200292845,"2,770.00",,Creditors Control : AP GRIR,,,,,,No
The Royal Borough of Kensington and Chelsea,RBKC,,Statutory Year-End Adjustments,Statutory Year-End Adjustments,,PAYE Stonework & Restoration Ltd,1257732,,,,27/02/2023,2200303956,"9,457.33",,Planned Maintenance (CM),,,,,,No
The Royal Borough of Kensington and Chelsea,RBKC,,Statutory Year-End Adjustments,Statutory Year-End Adjustments,,PAYE Stonework & Restoration Ltd,1257732,,,,28/03/2023,2200311088,"18,664.67",,Planned Maintenance (CM),,,,,,No
The Royal Borough of Kensington and Chelsea,RBKC,,Statutory Year-End Adjustments,Statutory Year-End Adjustments,,Penna Plc ,1231010,,,,31/03/2023,2200312045,"1,911.00",,Professional Fees : Non Legal,,,,,,No
The Royal Borough of Kensington and Chelsea,RBKC,,Statutory Year-End Adjustments,Statutory Year-End Adjustments,,Perega Limited,1264035,,,,16/03/2023,2200308270,"1,245.00",,Planned Maintenance (CM),,,,,,No
The Royal Borough of Kensington and Chelsea,RBKC,,Statutory Year-End Adjustments,Statutory Year-End Adjustments,,Perega Limited,1264035,,,,30/03/2023,2200311705,960,,Planned Maintenance (CM),,,,,,No
The Royal Borough of Kensington and Chelsea,RBKC,,Statutory Year-End Adjustments,Statutory Year-End Adjustments,,Perfect Circle JV Ltd ,1254748,,,,03/01/2023,2200292072,"18,471.00",,Payments to main contractor,,,,,,No
The Royal Borough of Kensington and Chelsea,RBKC,,Statutory Year-End Adjustments,Statutory Year-End Adjustments,,Perfect Circle JV Ltd ,1254748,,,,10/01/2023,2200293780,"3,600.00",,Payments to main contractor,,,,,,No
The Royal Borough of Kensington and Chelsea,RBKC,,Statutory Year-End Adjustments,Statutory Year-End Adjustments,,Perfect Circle JV Ltd ,1254748,,,,03/02/2023,2200298820,"17,500.00",,Other Consultants,,,,,,No
The Royal Borough of Kensington and Chelsea,RBKC,,Statutory Year-End Adjustments,Statutory Year-End Adjustments,,Perfect Circle JV Ltd ,1254748,,,,03/02/2023,2200298969,"17,501.00",,Payments to main contractor,,,,,,No
